{"text_format":"1","workbook":"xlsx","n_sheets":8,"sheets":["ListAlm","ListWet","ListSub","Misc","Calcs","Instructions","Sheet1","Notes"],"not_rendered":{"charts":0,"images":53,"macros":1,"external_links":0,"defined_names":192,"comments":5,"pivot_tables":0},"unopened":[],"bounds":{"document_bytes":16777216,"sheet_cells":100000,"rows_first":2000,"rows_last":500,"rows_between":2000,"halvings":0,"cell_chars":16384,"cell_head_chars":4096},"cells_cut":0,"cells_raw":0,"read":"whole","date_system":"1900"}

{"sheet":"ListAlm","index":0,"n_rows":126,"n_cols":101,"rows_kept":126,"cut":false,"hidden":false,"merged":[]}
[null,"Ver 2021-Jan-06   11:02",null,null,null,"ALARM parts"]
[null,null,null,null,null,null,"V16",null,null,null,null,null,null,null,null,null,null,null,null,null,null,null,null,null,null,null,null,null,null,null,null,null,null,null,null,null,null,null,null,null,82,null,8.5,8.5,null,null,null,null,null,null,null,null,null,null,null,null,null,null,82,null,8.5,8.5,null,null,3,82,null,8.5,8.5,null,null,null,null,null,null,null,null,null,null,null,null,null,null,null,null,null,null,null,null,null,null,null,null,null,null,null,null,null,null,null,"END"]
[null,"INDEX",null,null,null,"All Ranges must be sorted ALPHABETICALLY on 'Description'",null,null,null,null,null,null,null,"All Ranges must be sorted ALPHABETICALLY on 'Description'",null,null,null,null,null,"Index",null,null,"All Ranges must be sorted ALPHABETICALLY on 'Description'",null,null,null,null,null,"Index",null,"All Ranges must be sorted ALPHABETICALLY on 'Description'",null,null,null,null,null,null,"Index",null,null,"All Ranges must be sorted ALPHABETICALLY on 'Description'",null,null,null,null,"Index",null,null,"All Ranges must be sorted ALPHABETICALLY on 'Description'",null,null,null,null,null,null,"Index",null,null,"All Ranges must be sorted ALPHABETICALLY on 'Description'",null,null,null,null,"Index",null,"All Ranges must be sorted ALPHABETICALLY on 'Description'",null,null,null,null,null,null,"Index",null,null,null,null,null,null,null,"Index",null,null,"All Ranges must be sorted ALPHABETICALLY on 'Description'",null,null,null,null,null,null,"Index",null,null,"All Ranges must be sorted ALPHABETICALLY on 'Description'",null,null,null,null,null,"Index","END"]
[null,1,null,null,null,null,"SKFire Alarm parts Zach",null,null,null,{"$f":"+B4+1","v":2},null,null,null,null,null,null,null,null,null,null,null,null,null,null,null,null,{"$f":"+K4+1","v":3},null,null,"Make table: Hochiki SD devices a Japan Corp NON-Domestic",null,null,null,null,null,{"$f":"1+AB4","v":4},null,null,null,null,null,null,null,null,null,null,null,null,null,null,null,null,null,{"$f":"1+AK4","v":5},null,null,null,"http://www.systemsensor.com/en-us/Pages/welcome.aspx",null,null,null,null,null,null,null,null,null,null,null,null,{"$f":"1+BC4","v":6},null,null,null,"All Ranges must be sorted ALPHABETICALLY on 'Description'",null,null,null,null,null,null,null,null,null,null,null,null,null,{"$f":"1+BT4","v":7},null,null,null,null,null,null,null,null,{"$f":"1+CL4","v":8},null,"END"]
[null,"Bows",null,null,null,null,null,null,null,null,"Bows",null,null,"Gentex Devices",null,null,null,null,null,null,null,null,"Edwards Signals Systems EST & ESL Devices",null,null,null,null,"Bows",null,null,"Hochiki",null,null,null,null,null,"Bows",null,null,null,"Honeywell HFS",null,null,null,null,null,null,null,"Silent Knight SK Devices",null,null,null,null,null,"Bows",null,null,null,"System Sensor SS Devices",null,null,null,null,null,null,"Vigilant VS Devices",null,null,null,null,null,"Bows",null,null,null,"PANELS",null,null,null,null,null,null,null,null,null,null,null,null,null,"Bows",null,null,null,null,null,null,null,null,"Bows",null,"END"]
[null,"Dialers",null,null,null,"BOWS & LOC","Trilogie","Rounding",null,null,"Dialers",null,null,"Detectors & Smokes",{"$f":"+G6","v":"Trilogie"},{"$f":"+H6","v":"Rounding"},null,null,null,null,null,null,"Detectors & Smokes",{"$f":"+O6","v":"Trilogie"},{"$f":"+P6","v":"Rounding"},null,null,"Dialers",null,null,"Detectors & Smokes",{"$f":"+X6","v":"Trilogie"},{"$f":"+Y6","v":"Rounding"},null,null,null,"Dialers",null,null,null,"Detectors & Smokes",{"$f":"+AF6","v":"Trilogie"},{"$f":"+AG6","v":"Rounding"},null,null,null,null,null,"Addressable Devices",{"$f":"+AP6","v":"Trilogie"},{"$f":"+AQ6","v":"Rounding"},null,null,null,"Dialers",null,null,null,"Detectors & Smokes",{"$f":"+AX6","v":"Trilogie"},{"$f":"+AY6","v":"Rounding"},null,null,null,null,"Detectors & Smokes",{"$f":"+BH6","v":"Trilogie"},{"$f":"+BI6","v":"Rounding"},null,null,null,"Dialers",null,null,null,"EST/Edwards GE",{"$f":"+BO6","v":"Trilogie"},{"$f":"+BP6","v":"Rounding"},null,null,null,null,null,"Power Supplies Batteries",{"$f":"+BY6","v":"Trilogie"},{"$f":"+BZ6","v":"Rounding"},null,null,null,"Dialers",null,null,null,"Parts & Accessories",{"$f":"+CG6","v":"Trilogie"},{"$f":"+CH6","v":"Rounding"},null,null,"Dialers",null,"END"]
[null,"EST",null,null,null,"Description","$","$2","Notes",null,"EST",null,null,"Description","$","$2","Notes",null,null,null,null,null,"Description","$","$2","Notes",null,"EST",null,null,"Description","$","$CP","Notes",null,null,"EST",null,null,null,"Description","$","$2","Notes",null,null,null,null,"Description","$","$2","Notes",null,null,"EST",null,null,null,"Description","$","$2","Notes",null,null,null,"Description","$","$2","Notes",null,null,"EST",null,null,null,"Description","$","$2","Notes",null,null,null,null,"Description","$","$2","Notes",null,null,"EST",null,null,null,"Description","$","$2","Notes",null,"EST",null,"END"]
[null,null,"Detect&Smokes",null,null,"BOWS Remote",null,4000,null,null,null,"Detect&Smokes",null,"GCC 24 C R  Horn Strobe Ceiling",41.5,42,null,null,null,null,null,null,"ED-KI PD Analog Photo/Smoke add a base",null,39,"Link",null,null,"Detect&Smokes",null,"Hochiki SD505-APS Addressable P/E Smoke Head Hochiki",null,"48.00",null,null,null,null,"Detect&Smokes",null,null,"HFS GW-FCI Addressable Smoke Detectors-Sounder Bases",null,51,null,null,null,null,null,"SK-Acclimate Mult-Criteria Detector W/ Base",null,58.99,null,null,null,null,"Detect&Smokes",null,null,"Detector Carbon Monoxide with Test feature 12/24V BK CO1224T",null,40,null,null,null,null,"VS GSA-HFS CP-44 Heat detector intelligent Edwards loop only",null,44,null,null,null,null,"Detect&Smokes",null,null,"Annunciator ED-KRLCD No Comm Cntrl White En",null,254,null,null,null,null,null,"05A Battery for FACP 12v 5Amp",null,19,null,null,null,null,"Detect&Smokes",null,null,"4-Square Boxes each with cover",null,15,null,null,null,"Detect&Smokes","END"]
[null,null,"Horns",null,null,"TelSet GENERIC",null,45,null,null,null,"Horns",null,"GEC3 24 R    H/S  Wall",40.5,41,null,null,null,null,null,null,"ED-KI PDB Base for KI PD Detector mounting base aka KI SB",null,5.5,"Link",null,null,"Horns",null,"zSpare 1",null,999,null,null,null,null,"Horns",null,null,"HFS GW-FCI FCI XP95-Multi sensor detector (ISA)",null,75,"Link",null,null,null,null,"SK-Beam    Beam Detector ",null,554.99,null,null,null,null,"Horns",null,null,"Honeywell System Sensor BK5601 P 135  White",null,11,null,null,null,null,"VS GSA-HRS Heat detector Fixed/Rate0f-Rise intelligent Edwards loop only",null,null,null,null,null,null,"Horns",null,null,"Annunciator EST 36 ANN/B 3-LCD Display, 3/6ANN 3-6AN/B Back Box",null,{"$f":"218+N(\"Annun\")+532+76+N(\"Price of Box\")","v":826},"Spectrum",null,null,null,null,"07A Battery for FACP 12v 7Amp",null,15.75,"ADI",null,null,null,"Horns",null,null,"Adapter -Class A",null,68,null,null,null,"Horns","END"]
[null,null,"EST HS",null,null,"TelSet Vigilant InPanel TelSet for -BOWS Optional extra",null,2000,null,null,null,"EST HS",null,"GES3 24 R    Strobe Wall",30.5,31,null,null,null,"Index",null,null,"ED-KI PDB4 Base 4\" w/trim Skirt for KI PD smoke",null,5.5,"Link",null,null,"EST HS",null,"zSpare 2",null,999,null,null,null,null,"EST HS",null,null,"HFS GW-FCI FCI XP95-Thermal heat detector (ISA)",null,64,"Link",null,"Index",null,null,"SK-Beam-T Beam Detector W/ Test",null,742.99,null,null,null,null,"EST HS",null,null,"Honeywell System Sensor BK5602 Fixed-Rate-of-Rise 190 Temp",null,11,null,null,"Index",null,"VS GSA-PS Photoelectric Smoke Detector Intelligent",null,50,null,null,null,null,"EST HS",null,null,"ED GSA-CT-1 Single Input Alarm Contacts for Riser Stack == SK Monitor",null,35,null,null,"Index",null,null,"08A Battery for FACP 12v 8Amp",null,22,null,null,null,null,"EST HS",null,null,"Back-boxes, hangers etc bulk",null,500,null,null,null,"EST HS","END"]
[null,null,"PS&Batt",null,null,"Vigilant VM-LOC",null,1400,"LED inc NC",null,null,"PS&Batt",null,"GOELP Low Profile BB for Outdoor HS",40,40,null,null,null,null,null,null,"Edwards EST PCOS Photoelectric Smoke-Carbon Monoxide Combo with ED-SB4ULF  Sounder Base",null,{"$f":"81+N(\"CO+Smoke combo\")+79+N(\"sounderbase\")","v":160},null,null,null,"PS&Batt",null,"zSpare 3",null,999,null,null,null,null,"PS&Batt",null,null,"HFS GW-FCI P Photoelectric Smoke",null,0,null,null,null,null,null,"SK-Control   Control Module",null,56.99,null,null,null,null,"PS&Batt",null,null,"Honeywell System Sensor BK5604 Fixed-Temp 194 Temp",null,11,null,null,null,null,"VS GSA-SB Detector Standard Base",null,7.3,null,null,null,null,"PS&Batt",null,null,"ED GSA-CT-2  Dual Input Alarm Contacts for Riser Stack === SK Monitor 2",null,63,null,null,null,null,null,"08A EK-1280 for TelGuard Dialer 12v 8Amp",null,20,"ADI",null,null,null,"PS&Batt",null,null,"BRK 1st Alert SC9120 B 120V AC/DC w/9V battery Ionisation Smoke and CO Alarm",null,32,null,null,null,"PS&Batt","END"]
[null,null,"EST Pull",null,null,"Voice Evac 50 watt Gray EVAX50",null,1890,null,null,null,"EST Pull",null,"WGEC75WR   H/S Outdoor with w/water-proof-backbox",57,60,null,null,null,null,null,null,"Edwards EST RoR-Fixed Heat Detector and Base 284B-PL",null,{"$f":"11+12","v":23},null,null,null,"EST Pull",null,{"$f":"SUBTOTAL(103,Table54[Description])","v":4},null,null,{"$f":"SUBTOTAL(103,Table54[Notes])","v":0},null,null,null,"EST Pull",null,null,"HFS GW-FCI PT Photoelectric Smoke with thermal 135degree",null,0,null,null,null,null,null,"SK-Control-6 6 Output Control Module",null,340.99,null,null,null,null,"EST Pull",null,null,"Honeywell System Sensor Photo Electric smoke 2W-B Conventional",null,39,null,null,null,null,"VS GSA-SD Detector Duct Intelligent",null,113,null,null,null,null,"EST Pull",null,null,"Edwards FireShield 5-zone BARE (Deprecated)",null,240,null,null,null,null,null,"09V Battery for Alarm Panic Door Alkaline 9v",null,10,null,null,null,null,"EST Pull",null,null,"BW[G|R]-375 Protective Transformer box 4.625 x 5.75 x 3.75",null,20,"ADI",null,null,"EST Pull","END"]
[null,null,"StrobesOnly",null,null,"Voice Evac SK-SKE-450",null,1225,null,null,null,"StrobesOnly",null,null,null,null,null,null,null,null,null,null,"Edwards EST SafeAir 12/24V \\Carbon Monox Detector and Base 260-CO",null,55,null,null,null,"StrobesOnly",null,null,null,null,null,null,null,null,"StrobesOnly",null,null,"HFS GW-FCI XP95 4” Mounting Base",null,0,"Link",null,null,null,null,"SK-Duct Duct Detector W/ Photo",null,140,null,null,null,null,"StrobesOnly",null,null,"Spare 1",null,44,null,null,null,null,"VS-PS Photo Detector Analog Addressable Vernal",null,99,"Link",null,null,null,"StrobesOnly",null,null,"Edwards FireShield 5-zone w/ Dialer +2x Batteries (new P/N ED-EFSC 502)",null,{"$f":"300+110+25","v":435},null,null,null,null,null,"12 V SLAA12-12F2 12Amp Duracell",null,31,"Batteries and Bulbs",null,null,null,"StrobesOnly",null,null,"Cable Ties (Zip Ties)",null,25,null,null,null,"StrobesOnly","END"]
[null,null,"zMisc",null,null,"zSpare-1",null,20,null,null,null,"zMisc",null,null,null,null,null,null,null,null,null,null,"Edwards EST SIGA2-PCOS Photoelectric Carbon & Smoke detector w/CO detector Intelligent DEPRECATED",null,0,null,null,null,"zMisc",null,null,null,null,null,null,null,null,"zMisc",null,null,"HFS GW-FCI XP95 6” Addressable Sounder Base",null,0,"Link",null,null,null,null,"SK-FIRE-CO Addressable Combo Fire/ CO Det",null,126.99,null,null,null,null,"zMisc",null,null,{"$f":"SUBTOTAL(103,Table11[Description])","v":6},null,null,null,null,null,null,"zSpare 1",null,25,null,null,null,null,"zMisc",null,null,"ES DHS-24120c Mag Door Holder ea",null,51,null,null,null,null,null,"12 V SLAA12-18F2 18Amp Duracell",null,55,"Batteries and Bulbs",null,null,null,"zMisc",null,null,"Conduit EMT 0.5\" diam.  200ft roll @ $30 per 100",null,60,"from CED",null,null,"zMisc","END"]
[null,null,"zOther",null,null,"zSpare-2",null,20,null,null,null,"zOther",null,"Horns",null,null,null,null,null,null,null,null,"Edwards EST SIGA2-PS Photoelectric Smoke detector Intelligent DEPRECATED",null,0,null,null,null,"zOther",null,null,null,null,null,null,null,null,"zOther",null,null,"HFS GW-FCI XP95 6” E-Z Fit Mounting Base",null,0,"Link",null,null,null,null,"SK-Heat   Heat Detector W/ Base",null,46.99,null,null,null,null,"zOther",null,null,null,null,null,null,null,null,null,{"$f":"SUBTOTAL(103,Table25[Description])","v":7},null,null,null,null,null,null,"zOther",null,null,"Monitor Module EST FA Control Monitor Module 6254A Relay discontinued",null,0,null,null,null,null,null,"12V Battery Dura12-8F SLA",null,16,null,null,null,null,"zOther",null,null,"Conduit EMT 1.0\" diam.  100ft roll @ $60 per 100",null,60,"from CED",null,null,"zOther","END"]
[null,"FACP",null,null,null,"zSpare-3",null,20,null,null,"FACP",null,null,null,null,null,null,null,null,null,null,null,"Edwards EST SIGA-PCD Photoelectric Carbon & Smoke detector w/CO detector Intelligent",null,140,null,null,"FACP",null,null,null,null,null,null,null,null,"FACP",null,null,null,"HFS GW-FCI XP95 6” Low Profile Relay Base",null,0,"Link",null,null,null,null,"SK-Heat-HT High Temp Heat Detector W/ Base",null,46.99,null,null,null,"FACP",null,null,null,null,null,null,null,null,null,null,null,null,null,null,null,null,"FACP",null,null,null,"Monitor Module EST FA Control Monitor Module MR201/C",null,43,null,null,null,null,null,"12V Battery for FACP 12Amp",null,25,null,null,null,"FACP",null,null,null,"Conduit Seal Tight per foot",null,1.2,null,null,"FACP",null,"END"]
[null,null,"EST-GE-FireShield",null,null,null,null,null,null,null,null,"EST-GE-FireShield",null,null,null,null,null,null,null,null,null,null,"Edwards EST SIGA-PD Smoke detector Base  NEW",null,84,null,null,null,"EST-GE-FireShield",null,null,null,null,null,null,null,null,"EST-GE-FireShield",null,null,"HFS GW-FCI XP95 Isolator Base",null,0,"Link",null,null,null,null,"SK-Heat-ROR Rate Of Rise Heat Det. W/ Base",null,48.5,null,null,null,null,"EST-GE-FireShield",null,null,null,null,null,null,null,null,null,null,null,null,null,null,null,null,"EST-GE-FireShield",null,null,"Monitor Module EST FA Control Monitor Module PAM-1",null,25,null,null,null,null,null,"18A Battery for FACP 12v 18Amp",null,40,null,null,null,null,"EST-GE-FireShield",null,null,"Connector WAGO 222-413  3-pin  each:",null,0.51,null,null,null,"EST-GE-FireShield","END"]
[null,null,"Honeywell-Allied",null,null,"All Ranges must be sorted ALPHABETICALLY",null,null,null,null,null,"Honeywell-Allied",null,null,null,null,null,null,null,null,null,null,"Edwards EST SIGA-PS1 Photoelectric Smoke detector Intelligent DEPRECATED",null,0,"Link",null,null,"Honeywell-Allied",null,null,null,null,null,null,null,null,"Honeywell-Allied",null,null,"HFS GW-FCI XP95-Ion smoke detector (ISA)",null,85,"Link",null,null,null,null,"SK-Ion Ion Detector W/ Base",null,59.99,null,null,null,null,"Honeywell-Allied",null,null,null,null,null,null,null,null,null,null,null,null,null,null,null,null,"Honeywell-Allied",null,null,"Relay ED GSA-CR Control Relay for Door Mags or Elevator",null,44,null,null,null,null,null,"26/28 SLAA12-26NB Duracell",null,72,"Batteries and Bulbs",null,null,null,"Honeywell-Allied",null,null,"Connector WAGO 222-415  5-pin  each:",null,0.75,null,null,null,"Honeywell-Allied","END"]
[null,null,"Silent Knight",null,null,"Go to Data, Click the Funnel to turn Header Arrow on-off",null,null,null,null,null,"Silent Knight",null,null,null,null,null,null,null,"Index",null,null,"Edwards EST SIGA-PS2 Photoelectric Smoke detector Intelligent NEW HUH",null,99,null,null,null,"Silent Knight",null,null,null,null,null,null,null,null,"Silent Knight",null,null,"HFS GW-FCI XP95-Photo smoke detector (ISA)",null,69.5,"Link",null,"Index",null,null,"SK-Iso Isolator Module",null,47,null,null,null,null,"Silent Knight",null,null,null,null,null,null,null,"Index",null,null,null,null,null,null,null,null,"Silent Knight",null,null,"Relay ED GSA-CRR Control Relay for Door Mags or Elevator Reverse Polarity",null,52,null,null,"Index",null,null,"26A Battery for FACP 12v 26Amp",null,61,null,null,null,null,"Silent Knight",null,null,"Crash Bar Advantex 1001 EX w/LED & Battery Bill Cusick 303-771-0152",null,1600,"Data",null,null,"Silent Knight","END"]
[null,null,"Vigilant",null,null,null,null,null,null,null,null,"Vigilant",null,null,null,null,null,null,null,null,null,null,"Edwards EST SIGA-SB Smoke detector Base",null,13,null,null,null,"Vigilant",null,"Horns",null,null,null,null,null,null,"Vigilant",null,null,"zSpare 1",null,0,null,null,null,null,null,"SK-Minimon Input Mini-Monitor Module",null,40,null,null,null,null,"Vigilant",null,null,"Horns",null,null,null,null,null,null,null,null,null,null,null,null,null,"Vigilant",null,null,null,null,null,null,null,null,null,null,{"$f":"SUBTOTAL(103,Table30[Description])","v":12},null,null,null,null,null,null,"Vigilant",null,null,"Crash Bar V40 Robert Merril 801-263-2700",null,{"$f":"340+N(\"CostP\")+225+N(\"InstallP\")","v":565},"Data",null,null,"Vigilant","END"]
[null,"GenTex",null,null,null,null,null,null,null,null,"GenTex",null,null,null,null,null,null,null,null,null,null,null,"Edwards EST SIGA-SB4 Smoke detector Base standard 4\"",null,15,null,null,"GenTex",null,null,"Description","$","$CP","Notes",null,null,"GenTex",null,null,null,{"$f":"SUBTOTAL(103,Table37[Description])","v":13},null,null,null,null,null,null,null,"SK-Mon-10 10 Input Monitor Module",null,363.99,null,null,null,"GenTex",null,null,null,"Description","$","$2","Notes",null,null,null,null,null,null,null,null,null,"GenTex",null,null,null,null,null,null,null,null,null,null,null,null,null,null,null,null,null,"GenTex",null,null,null,"Fire Alarm Storage Cabinet",null,92,null,null,"GenTex",null,"END"]
[null,null,"All Devices",null,null,null,null,null,null,null,null,"All Devices",null,null,null,null,null,null,null,null,null,null,{"$f":"SUBTOTAL(103,Table24[Description])","v":14},null,null,null,null,null,"All Devices",null,"Add Horns HK Desc  only data",null,999,null,null,null,null,"All Devices",null,null,null,null,null,null,null,null,null,null,"SK-Monitor for tampers & flows needs 4\" box & ELR 47k terminator",null,45,null,null,null,null,"All Devices",null,null,"SystemSensor SWHK Horn, Red, Outdoor (includes plastic weatherproof back box)",null,0,null,null,null,null,"Horns",null,null,null,null,null,null,"All Devices",null,null,"Panels",null,null,null,null,null,null,null,"All Ranges must be sorted ALPHABETICALLY on 'Description'",null,null,null,null,null,null,"All Devices",null,null,"FL-IPSPLT Cat5 Reverse Splitter",null,15,"ADI",null,null,"All Devices","END"]
[null,null,null,null,null,"Dialer Units",null,null,null,null,null,null,null,null,null,null,null,null,null,null,null,null,null,null,null,null,null,null,null,null,"Make an Horns HK etAl table here",null,999,null,null,null,null,null,null,null,null,null,null,null,null,null,null,null,"SK-Monitor-2 2 Input Monitor Module",null,82,null,null,null,null,null,null,null,"Spare 1",null,44,null,null,null,null,"Description","$","$CP","Notes",null,null,null,null,null,null,"Honeywell (AlliedSignal)",null,null,null,null,null,null,null,null,null,null,null,null,null,null,null,null,null,"Glow Rods 4-per pack (Fish sticks)",null,25,null,null,null,null,"END"]
[null,null,null,null,null,"Description","$","$2","Notes",null,null,null,null,null,null,null,null,null,null,null,null,null,null,null,null,null,null,null,null,null,"zSpare HK Hornz",null,9999,null,null,null,null,null,null,null,null,null,null,null,null,null,null,null,"SK-Photo Photo Detector W/ Base",null,50.99,null,null,null,null,null,null,null,{"$f":"SUBTOTAL(103,Table21[Description])","v":2},null,null,null,null,null,null,"Add VS Horn data",null,999,null,null,null,null,null,null,null,"Description","$1 ","$2 ","Notes",null,null,null,null,null,null,null,null,null,null,null,null,null,null,"Line Cord (Power Cord) 6ft 3 Conductor",null,4,null,null,null,null,"END"]
[null,"Hochiki",null,null,null,"DSC-3G 4010-CF Universal Wireless Cellular Dialer AT&T Deprecated",null,271,"ArLenco",null,"Hochiki",null,null,"Horn-Strobes","R-red W-white",null,null,null,null,null,null,null,null,null,null,null,null,"Hochiki",null,null,{"$f":"SUBTOTAL(103,Table53[Description])","v":3},null,null,{"$f":"SUBTOTAL(103,Table53[Notes])","v":0},null,null,"Hochiki",null,null,null,null,null,null,null,null,null,null,null,"SK-Photo-T Photo Thermal Detector W/ Base",null,55.99,null,null,null,"Hochiki",null,null,null,null,null,null,null,null,null,null,"Make a VS Horn table here",null,9999,null,null,null,"Hochiki",null,null,null,"Firelite ANN-80 80char LCD serial Annunciator",null,238,"Link",null,null,null,null,null,null,null,null,null,null,"Hochiki",null,null,null,"Raceway WBox ADI 0.75  6Ft lengths 2-Pack",null,{"$f":"+N(\"Cost \")+10*4+N(\"Add allowance for fittings \")","v":40},"Raceway & Connectors",null,"Hochiki",null,"END"]
[null,null,null,null,null,"DSC-3G-4010-CF UPG Board",null,85.14,"ArLenco",null,null,null,null,null,null,null,null,null,null,null,null,null,"Horns",null,null,null,null,null,null,null,null,null,null,null,null,null,null,null,null,null,"Horns",null,null,null,null,null,null,null,"SK-Relay Relay Module",null,62,null,null,null,null,null,null,null,null,null,null,null,null,null,null,"zSpare 1",null,9999,null,null,null,null,null,null,null,"Notifier Addressable Control Mod. NOT-FCM-1-RC",null,62,null,null,null,null,null,null,null,null,null,null,null,null,null,null,null,"Raceway WBox ADI 1.25  6Ft lengths 2-Pack",null,{"$f":"+N(\"Cost \")+15*4+N(\"Add allowance for fittings \")","v":60},"Raceway & Connectors",null,null,null,"END"]
[null,"Honeywell",null,null,null,"DSC-4G 4010-CF Universal Wireless Cellular Dialer LTE AT&T NEW",null,271,null,null,"Honeywell",null,null,null,null,null,null,null,null,null,null,null,"Description","$","$CP","Notes",null,"Honeywell",null,null,null,null,null,null,null,null,"Honeywell",null,null,null,"Description","$","$2","Notes",null,null,null,null,"SK-Relay-6 6 Relay Module",null,300.99,null,null,null,"Honeywell",null,null,null,null,null,null,null,null,null,null,"Total",null,null,{"$f":"SUBTOTAL(103,Table51[Notes])","v":0},null,null,"Honeywell",null,null,null,null,null,null,null,null,null,null,null,"Pull Stations",null,null,null,null,null,"Honeywell",null,null,null,"Raceway WBox ADI 1.75  6Ft lengths 2-Pack",null,{"$f":"+N(\"Cost \")+25*4+N(\"Add allowance for fittings \")","v":100},"Raceway & Connectors",null,"Honeywell",null,"END"]
[null,null,"HW D&Smoke",null,null,"DSC-GS-15 ANT",null,60,"ArLenco",null,null,"HW D&Smoke",null,null,null,null,null,null,null,null,null,null,"Add EST zOther data",null,999,null,null,null,"HW D&Smoke",null,null,null,null,null,null,null,null,"HW D&Smoke",null,null,"Add HW Horns data",null,123,null,null,null,null,null,"SK-Relaymon-2 Two-In/ Two-Out Module",null,206.99,null,null,null,null,"HW D&Smoke",null,null,null,null,null,null,null,null,null,null,null,null,null,null,null,null,"HW D&Smoke",null,null,null,null,null,null,null,null,null,null,"Description","$","$2","Notes",null,null,null,"HW D&Smoke",null,null,"Raceway WireMold 1.0\"",null,40,null,null,null,"HW D&Smoke","END"]
[null,null,"HW Horns",null,null,"DSC-GS-25 ANT",null,110,"ArLenco",null,null,"HW Horns",null,null,null,null,null,null,null,null,null,null,"Made a EST zOther table here",null,999,null,null,null,"HW Horns",null," Horn-Strobes",null,null,null,null,null,null,"HW Horns",null,null,"Made a HW HORNZ table here",null,456,null,null,null,null,null,"SK-Zone Zone Module",null,72.989999999999995,null,null,null,null,"HW Horns",null,null," Horn-Strobes",null,null,null,null,null,null,null,null,null,null,null,null,null,"HW Horns",null,null,"Panels",null,null,null,null,null,null,null,"Conventional",null,20,null,null,null,null,"HW Horns",null,null,"Resistors ELR 47k",null,1.5,null,null,null,"HW Horns","END"]
[null,null,"HW Horn-Strobes",null,null,"DSC-GS-25 ANTQ Q Band",null,110,"ArLenco",null,null,"HW Horn-Strobes",null,null,null,null,null,null,null,"Index",null,null,"zSpare 1",null,9999,null,null,null,"HW Horn-Strobes",null,"Description","$","$CP","Notes",null,null,null,"HW Horn-Strobes",null,null,{"$f":"SUBTOTAL(103,ListAlm!$AO$28:$AO$29)","v":2},null,null,null,null,"Index",null,null,"SK-Zone-6 6 Zone Module ",null,367.99,null,null,null,null,"HW Horn-Strobes",null,null,"Description","$","$2","Notes",null,"Index",null,null,null,null,null,null,null,null,"HW Horn-Strobes",null,null,"Silent Knight",null,null,null,null,"Index",null,null,"zSpare 1",null,20,null,null,null,null,"HW Horn-Strobes",null,null,"RJ31X Phone Jack Cat5 Biscuit for TelCo POTS to Panel. 2 per panel",null,5,null,null,null,"HW Horn-Strobes","END"]
[null,null,"HW PS & Batt",null,null,"DSC-LTE 15 ANT",null,55,"ADI",null,null,"HW PS & Batt",null,null,null,null,null,null,null,null,null,null,{"$f":"SUBTOTAL(103,Table52[Description])","v":3},null,null,{"$f":"SUBTOTAL(103,Table52[Notes])","v":0},null,null,"HW PS & Batt",null,"Add HornStrobe HKDesc  only data",null,999,null,null,null,null,"HW PS & Batt",null,null,null,null,null,null,null,null,null,null,"zSpare 1",null,20,null,null,null,null,"HW PS & Batt",null,null,"SystemSensor P2R Red 2-wire Horn/Strobe Std. Candela",null,50,null,null,null,null," Horn-Strobes",null,null,null,null,null,null,"HW PS & Batt",null,null,"Description","$","$2","Notes",null,null,null,null,null,null,null,null,null,null,null,"HW PS & Batt",null,null,"Seal Tite",null,null,null,null,null,"HW PS & Batt","END"]
[null,null,"HW PullStation",null,null,"DSC-LTE 25 ANT",null,98,"ADI",null,null,"HW PullStation",null,null,null,null,null,null,null,null,null,null,null,null,null,null,null,null,"HW PullStation",null,"Make an HornStrobe HKetAl table here",null,999,null,null,null,null,"HW PullStation",null,null,"Horn-Strobes",null,null,null,null,null,null,null,"zSpare 2",null,20,null,null,null,null,"HW PullStation",null,null,"SystemSensor P2RC    Red 2-wire Horn/Strobe Ceiling Std. Candela",null,50,null,null,null,null,"Description","$","$CP","Notes",null,null,null,"HW PullStation",null,null,"SK-2 Two-Zone Panel Conventional",null,336,null,null,null,null,null,null,null,null,null,null,null,null,"HW PullStation",null,null,"Strain Relief  1/2 \"",null,5,null,null,null,"HW PullStation","END"]
[null,null,"HW StrobesOnly",null,null,"EST 3 Dialer MODCOM",null,435,"Spectrum",null,null,"HW StrobesOnly",null,"Pull Stations",null,null,null,null,null,null,null,null,null,null,null,null,null,null,"HW StrobesOnly",null,"zSpares Horn Strobes 1",null,999,null,null,null,null,"HW StrobesOnly",null,null,"Description","$","$2","Notes",null,null,null,null,{"$f":"SUBTOTAL(103,Table35[Description])","v":25},null,null,null,null,null,null,"HW StrobesOnly",null,null,"SystemSensor PC2RL  Red 2-wire Horn/Strobe Ceiling Std. Candela",null,50,null,null,null,null,"M85001-0559 Horn-Strobe Field Configurable Genesis",null,999,null,null,null,null,"HW StrobesOnly",null,null,"SK-4 Four-zone panel Conventional",null,347,null,null,null,null,null,null,null,null,null,null,null,null,"HW StrobesOnly",null,null,"Surge Protector 6-Outlet x2 per pack (5.50 ea)",null,11,null,null,null,"HW StrobesOnly","END"]
[null,null,"zMisc",null,null,"LTE Universal Wireless Commercial Fire Alarm Communicator",null,275,"ADI",null,null,"zMisc",null,null,null,null,null,null,null,null,null,null,"Horn-Strobes","R-red W-white",null,null,null,null,"zMisc",null,{"$f":"SUBTOTAL(103,Table55[Description])","v":3},null,null,{"$f":"SUBTOTAL(103,Table55[Notes])","v":0},null,null,null,"zMisc",null,null,"Add HW Horn STROBE data",null,22,null,null,null,null,null,null,null,null,null,null,null,null,"zMisc",null,null,"SystemSensor P2RH Red or W 2-wire Horn/Strobe Hi-Candela",null,50,null,null,null,null,"zSpare 1",null,999,null,null,null,null,"zMisc",null,null,"SK-5104B Six-zone",null,276,null,null,null,null,null,"Potter Electric",null,null,null,null,null,null,"zMisc",null,null,"SystemSensor SA-WBBW or R Metal Weatherproof Backbox",null,18,null,null,null,"zMisc","END"]
[null,null,"zOther",null,null,"SA-DACT Dialer unit for VS1 & VS2",null,140,"ADI",null,null,"zOther",null,null,null,null,null,null,null,null,null,null,"Description","$","$2","Notes",null,null,"zOther",null,null,null,null,null,null,null,null,"zOther",null,null,"Made a HW HornStrobe  table here",null,777,null,null,null,null,null,null,null,null,null,null,null,null,"zOther",null,null,"SystemSensor P2RH Red or W 2-wire Horn/Strobe Wall Mount",null,50,null,null,null,null,{"$f":"SUBTOTAL(103,Table4[Description])","v":2},null,null,{"$f":"SUBTOTAL(103,Table4[Notes])","v":0},null,null,null,"zOther",null,null,"SK-5208 Ten-zone basic, expandable to 30. Dialer builtin. conventional",null,720,"Data",null,null,null,null,"Description","$","$2","Notes",null,null,null,"zOther",null,null,"Tape electrical insulating roll each:",null,2,null,null,null,"zOther","END"]
[null,"HW System Sensor",null,null,null,"SK-5128 Remote Dialer (Must be after 1999 or no ContactID)",null,225,"ADI or Arlenco",null,"HW System Sensor",null,null,null,null,null,null,null,null,null,null,null,"Horn Strobe Ceiling ED CF-HDVM Horn Strobe Ceiling mounted",null,56,null,null,"HW System Sensor",null,null,null,null,null,null,null,null,"HW System Sensor",null,null,null,null,null,null,null,null,null,null,null,null,null,null,null,null,null,"HW System Sensor",null,null,null,"SystemSensor P2RK Red or W 2-wire Horn/Strobe Outdoor w/plastic weather proof backbox (FDC)",null,85,null,null,null,null,null,null,null,null,null,null,"HW System Sensor",null,null,null,"SK-5235 LCD Remote Annunciator F/5208 R Conventional",null,165,null,null,null,null,null,"Potter RTSO Room Temperature Switch",null,51.81,"Arlenco",null,null,"HW System Sensor",null,null,null,"Vigilant CT-1 Single Input Alarm Contacts for Riser Stack == SK Monitor",null,35,null,null,"HW System Sensor",null,"END"]
[null,null,"SS D&Smokes",null,null,"SK-IP-2 IP Dialer",null,487,null,null,null,"SS D&Smokes",null,null,null,null,null,null,null,null,null,null,"Horn Strobe Ceiling EG C-HDVM Horn Strobe Ceiling Mounted  (Edwards Genesis Ceiling)",null,56,null,null,null,"SS D&Smokes",null,null,null,null,null,null,null,null,"SS D&Smokes",null,null,null,null,null,null,null,null,null,null,null,null,null,null,null,null,null,"SS D&Smokes",null,null,"SystemSensor P2RL  Red 2-wire Horn/Strobe Wall Std. Candela",null,50,null,null,null,null,null,null,null,null,null,null,null,"SS D&Smokes",null,null,"SK-5495",null,335,null,null,null,null,null,"Total",null,null,{"$f":"SUBTOTAL(103,Table59[Notes])","v":1},null,null,null,"SS D&Smokes",null,null,"Vigilant CT-2 Dual Input Alarm Contacts for Riser Stack === SK Monitor 2",null,63,null,null,null,"SS D&Smokes","END"]
[null,null,"SS Horns",null,null,"SK-IP-2 UD Dialer with remote testing-login access",null,585,null,null,null,"SS Horns",null,null,null,null,null,null,null,null,null,null,"Horn Strobe ED MG1F-HDVM Horn Strobe Red w/Fire label",null,25,null,null,null,"SS Horns",null,"Power Supplies & Batteries",null,null,null,null,null,null,"SS Horns",null,null,null,null,null,null,null,null,null,null,"Silent Knight SK Devices",null,null,null,null,null,null,"SS Horns",null,null,"SystemSensor P2W Horn/Strobe  White",null,48,null,null,null,null,null,null,null,null,null,null,null,"SS Horns",null,null,"SK-5600 IntelliKnight 25 point Addressable",null,420,null,null,null,null,null,null,null,null,null,null,null,null,"SS Horns",null,null,"Weatherproof Box",null,500,null,null,null,"SS Horns","END"]
[null,null,"SS HornStrobes",null,null,"Starlink Antenna  30 50 70 CHECK this",null,200,null,null,null,"SS HornStrobes",null,"Strobes only",null,null,null,null,null,null,null,null,"Horn Strobe ED MG1F-HDVM Horn Strobe White w/Fire label",null,27,null,null,null,"SS HornStrobes",null,"Description","$","$CP","Notes",null,null,null,"SS HornStrobes",null,null,null,null,null,null,null,null,null,null,"Detectors & Smokes",null,null,null,null,null,null,"SS HornStrobes",null,null,"SystemSensor P2W White 2-wire Horn/Strobe Std. Candela",null,48,null,null,null,null,null,null,null,null,null,null,null,"SS HornStrobes",null,null,"SK-5635 LCD Remote Annunciator F/5600 R/W",null,220,null,null,null,null,null,null,null,null,null,null,null,null,"SS HornStrobes",null,null,"Wire -Bell per xx ft roll",null,20,null,null,null,"SS HornStrobes","END"]
[null,null,"SS StrobesOnly",null,null,"Starlink FL32-FACP-LTEVS-Fire 12/24/120Vw/Communicator Add 2x 12V8Ah batteries",null,575,"ArLenco",null,null,"SS StrobesOnly",null,null,null,null,null,null,null,"Index",null,null,"Horn Strobe LED Clear EG1 -AVWF Horn Strobe White w/Fire label",null,39,null,null,null,"SS StrobesOnly",null,null,null,null,null,null,null,null,"SS StrobesOnly",null,null,"Power Supplies & Batteries",null,null,null,null,"Index",null,null,"Description","$","$2","Notes",null,null,null,"SS StrobesOnly",null,null,"SystemSensor P2WC White 2-wire Horn/Strobe Ceiling Std. Candela",null,50,null,null,"Index",null,"Power Supplies & Batteries",null,null,null,null,null,null,"SS StrobesOnly",null,null,"SK-5700 IntelliKnight 50 to 100 point Addressable DEPRECATED",null,527,null,null,"Index",null,null,null,null,null,null,null,null,null,"SS StrobesOnly",null,null,"Wire -Fire 14/2 per 1000 ft roll Plenum",null,166,null,null,null,"SS StrobesOnly","END"]
[null,null,"SS zMisc",null,null,"Starlink SLE-LTEV-CFB commercial CDMA Dialer ",null,190,"ArLenco",null,null,"SS zMisc",null,null,null,null,null,null,null,null,null,null,"Horn Strobe Low Freq ED G4LFWF-HVM Horn Strobe Low Freq White Fire Mark",null,61,null,null,null,"SS zMisc",null,null,null,null,null,null,null,null,"SS zMisc",null,null,"Description","$","$2","Notes",null,null,null,null,"Add SK Detect data",null,20,null,null,null,null,"SS zMisc",null,null,"SystemSensor P2WH LF Horn Strobe",null,78,null,null,null,null,"Description","$","$2","Notes",null,null,null,"SS zMisc",null,null,"SK-5808 IntelliKnight 127 to 198 point Addressable DEPRECATED",null,726,null,null,null,null,null,null,null,null,null,null,null,null,"SS zMisc",null,null,"Wire -Fire 14/2 per 250 ft roll Plenum @ fifty Cents per Ft",null,{"$f":"250*0.5","v":125},null,null,null,"SS zMisc","END"]
[null,"Silent Knight",null,null,null,"Starlink SLE-LTEV-CFB-PS RADIO FIRE W/ Power supply",null,187,"ArLenco",null,"Silent Knight",null,null,null,null,null,null,null,null,null,null,null,"Horn Strobe Outdoor ED WGFF HVM C Horn Strobe Outdoor White Fire Mark",null,{"$f":"77+N(\"back box\") +20","v":97},null,null,"Silent Knight",null,null,null,null,null,null,null,null,"Silent Knight",null,null,null,"Add HW Power Supply Data",null,123,null,null,null,null,null,"SK-Heat   Heat Detector W/ Base",null,46.99,null,null,null,"Silent Knight",null,null,null,"SystemSensor P2WK 2-Wire Horn/Strobe, Std. Candela, White, Outdoor (w/plastic weatherproof backbox)",null,95,null,null,null,null,"VS 2 Booster Power Supplies for VS-2",null,1800,null,null,null,"Silent Knight",null,null,null,"SK-5820XL IntelliKnight 127 or 792 point w/SystemSensor w/EVS",null,2400,null,null,null,null,null,null,null,null,null,null,null,"Silent Knight",null,null,null,"Wire -Fire 14/2 per 500 ft roll Plenum",null,83,null,null,"Silent Knight",null,"END"]
[null,null,"Addressable Devices",null,null,"Starlink SLE-LTEV-Fire 12/24 Volt Universal Commercial Sole Path communicator",null,150,"ArLenco",null,null,"Addressable Devices",null,null,null,null,null,null,null,null,null,null,"zSpare 1",null,20,null,null,null,"Addressable Devices",null,null,null,null,null,null,null,null,"Addressable Devices",null,null,"HW HPF2456 24V 6A Fire Alarm NAC Power Supply",null,343,null,null,null,null,null,"SK-Heat-HT High Temp Heat Detector W/ Base",null,46.99,null,null,null,null,"Addressable Devices",null,null,"SystemSensor SPSCW Speaker Strobe Ceiling mount",null,68,null,null,null,null,"VS E-BPS-10 Amp Hr",null,423,null,null,null,null,"Addressable Devices",null,null,"SK-5820XL IntelliKnight 127 to 792 point w/SystemSensor",null,1100,null,null,null,null,null,null,null,null,null,null,null,null,"Addressable Devices",null,null,"Wire -Fire 14/4 per 500 ft roll Plenum",null,182,null,null,null,"Addressable Devices","END"]
[null,null,"Horns",null,null,"Starlink SLE-LTEVI-Fire 12/24 Volt Universal Commercial DUAL Path communicator",null,190,"ArLenco",null,null,"Horns",null,null,null,null,null,null,null,null,null,null,"zSpare 2",null,20,null,null,null,"Horns",null,null,null,null,null,null,null,null,"Horns",null,null,"HW PS Table 1",null,456,null,null,null,null,null,"SK-Heat-ROR Rate Of Rise Heat Det. W/ Base",null,48.5,null,null,null,null,"Horns",null,null,null,null,null,null,null,null,null,"VS E-BPS-6  Amp Hr EBSP6A",null,270,null,null,null,null,"Horns",null,null,"SK-5860 LCD Remote Annunciator F/5700/5820/5808 R/G Addressable",null,275,null,null,null,null,null,null,null,null,null,null,null,null,"Horns",null,null,"Wire -Fire 16/2 per 500 ft roll Plenum",null,56,null,null,null,"Horns","END"]
[null,null,"Horn-Strobes",null,null,"Telguard TG-7LAF02  AT&T",null,320,"ADI",null,null,"Horn-Strobes",null,null,null,null,null,null,null,null,null,null,null,null,null,null,null,null,"Horn-Strobes",null,null,null,null,null,null,null,null,"Horn-Strobes",null,null,"HW PS Table 2",null,789,null,null,null,null,null,"Spare-01",null,999,null,null,null,null,"Horn-Strobes",null,null,null,null,null,null,null,null,null,"M85005-0125 MIRBPS6A  & 10A Power Supply Remote Booster",null,null,null,null,null,null,"Horn-Strobes",null,null,"SK-6700 IntelliKnight 50 to 100 point Addressable One SLC",null,595,null,null,null,null,null,null,null,null,null,null,null,null,"Horn-Strobes",null,null,"Wire -Fire 16/4 per 500 ft roll NON-Plenum",null,116,null,null,null,"Horn-Strobes","END"]
[null,null,"SK PS & Batt",null,null,"Telguard TG-7LVF01 VZN",null,320,"ADI",null,null,"SK PS & Batt",null,null,null,null,null,null,null,null,null,null,null,null,null,null,null,null,"SK PS & Batt",null,"Pull Stations",null,null,null,null,null,null,"SK PS & Batt",null,null,{"$f":"SUBTOTAL(103,ListAlm!$AO$42:$AO$45)","v":4},null,null,null,null,null,null,null,"Spare-02",null,999,null,null,null,null,"SK PS & Batt",null,null,null,null,null,null,null,null,null,"zSpare 1",null,200,null,null,null,null,"SK PS & Batt",null,null,"SK-6808 up to a max of 198 point replaces 5808",null,831,null,null,null,null,null,null,null,null,null,null,null,null,"SK PS & Batt",null,null,"Wire -Fire 16/4 per 500 ft roll Plenum FPLP",null,121,null,null,null,"SK PS & Batt","END"]
[null,null,"SK PullStation",null,null,"Uplink 4555 4-Zone GSM Cell 1 Smoke Detect circuit",null,555,"ArLenco",null,null,"SK PullStation",null,null,null,null,null,null,null,null,null,null,null,null,null,null,null,null,"SK PullStation",null,"Description","$","$CP","Notes",null,null,null,"SK PullStation",null,null,null,null,null,null,null,null,null,null,{"$f":"SUBTOTAL(103,Table13[Description])","v":6},null,null,null,null,null,null,"SK PullStation",null,null,"Power Supplies & Batteries",null,null,null,null,null,null,{"$f":"SUBTOTAL(103,Table43[Description])","v":5},null,null,null,null,null,null,"SK PullStation",null,null,"SK-6860 Annunciator for the 6700/6808",null,406,null,null,null,null,null,null,null,null,null,null,null,null,"SK PullStation",null,null,"Wire Nuts",null,10,null,null,null,"SK PullStation","END"]
[null,null,"SK StrobesOnly",null,null,"zDSC-3G 3070-CF DISCONTINUED",null,425,null,null,null,"SK StrobesOnly",null,null,null,null,null,null,null,null,null,null,null,null,null,null,null,null,"SK StrobesOnly",null,null,null,null,null,null,null,null,"SK StrobesOnly",null,null,null,null,null,null,null,null,null,null,null,null,null,null,null,null,null,"SK StrobesOnly",null,null,"Description","$","$2","Notes",null,null,null,null,null,null,null,null,null,null,"SK StrobesOnly",null,null,null,null,null,null,null,null,null,null,null,null,null,null,null,null,null,"SK StrobesOnly",null,null,null,null,null,null,null,null,"SK StrobesOnly","END"]
[null,"Vigilant",null,null,null,null,null,null,null,null,"Vigilant",null,null,null,null,null,null,null,null,null,null,null,null,null,null,null,null,"Vigilant",null,null,null,null,null,null,null,null,"Vigilant",null,null,null,null,null,null,null,null,null,null,null,null,null,null,null,null,null,"Vigilant",null,null,null,null,null,null,null,null,null,null,null,null,null,null,null,null,"Vigilant",null,null,null,null,null,null,null,null,null,null,null,null,null,null,null,null,null,"Vigilant",null,null,null,null,null,null,null,null,"Vigilant",null,"END"]
[null,null,"VS D&Smokes",null,null,"Detect&Smokes",null,null,null,null,null,"VS D&Smokes",null,null,null,null,null,null,null,"Index",null,null,"Power Supplies & Batteries",null,null,null,null,null,"VS D&Smokes",null,null,null,null,null,null,null,null,"VS D&Smokes",null,null,null,null,null,null,null,"Index",null,null,null,null,null,null,null,null,null,"VS D&Smokes",null,null,null,null,null,null,null,"Index",null,null,null,null,null,null,null,null,"VS D&Smokes",null,null,"Panels",null,null,null,null,"Index",null,null,null,null,null,null,null,null,null,"VS D&Smokes",null,null,null,null,null,null,null,null,"VS D&Smokes","END"]
[null,null,"VS Hornz",null,null,"Horns",null,null,null,null,null,"VS Hornz",null,null,null,null,null,null,null,null,null,null,"Description","$","$2","Notes",null,null,"VS Hornz",null,null,null,null,null,null,null,null,"VS Hornz",null,null,null,null,null,null,null,null,null,null,null,null,null,null,null,null,null,"VS Hornz",null,null,null,null,null,null,null,null,null,null,null,null,null,null,null,null,"VS Hornz",null,null,"Vigilant",null,null,null,null,null,null,null,null,null,null,null,null,null,null,"VS Hornz",null,null,null,null,null,null,null,null,"VS Hornz","END"]
[null,null,"VS HornStrobes",null,null,"Horn-Strobes",null,null,null,null,null,"VS HornStrobes",null,null,null,null,null,null,null,null,null,null,"No EST PS Listing 1",null,null,null,null,null,"VS HornStrobes",null,null,null,null,null,null,null,null,"VS HornStrobes",null,null,null,null,null,null,null,null,null,null,null,null,null,null,null,null,null,"VS HornStrobes",null,null,null,null,null,null,null,null,null,null,null,null,null,null,null,null,"VS HornStrobes",null,null,"Description","$","$2","Notes",null,null,null,null,null,null,null,null,null,null,null,"VS HornStrobes",null,null,null,null,null,null,null,null,"VS HornStrobes","END"]
[null,null,"VS PS & Batts",null,null,"PS&Batt",null,null,null,null,null,"VS PS & Batts",null,null,null,null,null,null,null,null,null,null,"No EST PS Listing 2",null,null,null,null,null,"VS PS & Batts",null,null,null,null,null,null,null,null,"VS PS & Batts",null,null,"All Ranges must be sorted ALPHABETICALLY on 'Description'",null,null,null,null,null,null,null,"Horns",null,null,null,null,null,null,"VS PS & Batts",null,null,null,null,null,null,null,null,null,"Pull Stations",null,null,null,null,null,null,"VS PS & Batts",null,null,"Annunciator Remote RLCD/RLED or Equivalent",null,500,null,null,null,null,null,null,null,null,null,null,null,null,"VS PS & Batts",null,null,null,null,null,null,null,null,"VS PS & Batts","END"]
[null,null,"VS Pull Stations",null,null,"PullStation",null,null,null,null,null,"VS Pull Stations",null,null,null,null,null,null,null,null,null,null,null,null,null,null,null,null,"VS Pull Stations",null,"Strobes only",null,null,null,null,null,null,"VS Pull Stations",null,null,null,null,null,null,null,null,null,null,"Description","$","$2","Notes",null,null,null,"VS Pull Stations",null,null,null,null,null,null,null,null,null,"Description","$","$CP","Notes",null,null,null,"VS Pull Stations",null,null,"SA-ETH-VS-1/2  Ethernet adapter",null,300,null,null,null,null,null,null,null,null,null,null,null,null,"VS Pull Stations",null,null,null,null,null,null,null,null,"VS Pull Stations","END"]
[null,null,"VS Strobes only",null,null,"StrobesOnly",null,null,null,null,null,"VS Strobes only",null,null,null,null,null,null,null,"Index",null,null,null,null,null,null,null,null,"VS Strobes only",null,"Description","$","$CP","Notes",null,null,null,"VS Strobes only",null,null,null,null,null,null,null,"Index",null,null,"Add SK Horns data",null,21,null,null,null,null,"VS Strobes only",null,null,"Pull Stations",null,null,null,null,"Index",null,"M85001-0279 Manuall Pull Intell GSA-M270, M270P, M278 Key reset",null,45,null,null,null,null,"VS Strobes only",null,null,"Vigilant Annunciator Basic Internal",null,285,null,null,"Index",null,null,null,null,null,null,null,null,null,"VS Strobes only",null,null,null,null,null,null,null,null,"VS Strobes only","END"]
[null,null,"VS zMisc",null,null,"zMisc",null,null,null,null,null,"VS zMisc",null,null,null,null,null,null,null,null,null,null,null,null,null,null,null,null,"VS zMisc",null,null,null,null,null,null,null,null,"VS zMisc",null,null,null,null,null,null,null,null,null,null,"Made a SK HORNZ table here",null,6,null,null,null,null,"VS zMisc",null,null,"Description","$","$2","Notes",null,null,null,"zSpare 1",null,9999,null,null,null,null,"VS zMisc",null,null,"VS-1 FSS Basic Gray 1 Loop System (xx-zone) w-Adap & Eth NO dialer M85005-0131",null,{"$f":"390+N(\"Panel\")+70+N(\"Adapter Class-A\")+300+N(\"SA-ETHernet\")","v":760},null,null,null,null,null,null,null,null,null,null,null,null,"VS zMisc",null,null,null,null,null,null,null,null,"VS zMisc","END"]
[null,null,"VS zOther",null,null,"zOther",null,null,null,null,null,"VS zOther",null,null,null,null,null,null,null,null,null,null,null,null,null,null,null,null,"VS zOther",null,null,null,null,null,null,null,null,"VS zOther",null,null,null,null,null,null,null,null,null,null,{"$f":"SUBTOTAL(103,Table15[Description])","v":2},null,null,null,null,null,null,"VS zOther",null,null,null,null,null,null,null,null,null,null,null,null,null,null,null,null,"VS zOther",null,null,"VS-1 FSS Basic Red  1 Loop System (xx-zone) w-Adap & Eth NO dialer M85005-0131",null,{"$f":"390+N(\"Panel\")+70+N(\"Adapter Class-A\")+300+N(\"SA-ETHernet\")","v":760},null,null,null,null,null,null,null,null,null,null,null,null,"VS zOther",null,null,null,null,null,null,null,null,"VS zOther","END"]
[null,null,null,null,null,null,null,null,null,null,null,null,null,null,null,null,null,null,null,null,null,null,"Pull Stations",null,null,null,null,null,null,null,null,null,null,null,null,null,null,null,null,null,null,null,null,null,null,null,null,null,null,null,null,null,null,null,null,null,null,null,null,null,null,null,null,null,null,null,null,null,null,null,null,null,null,null,null,"VS-1 FSS Full Gray 1 Loop System (xx-zone) w-Adap & Eth & Dialer M85005-0131",null,{"$f":"390+N(\"Panel\")+140+N(\"Dialer\")+70+N(\"Adapter Class-A\")+300+N(\"SA-ETHernet\")","v":900},null,null,null,null,null,null,null,null,null,null,null,null,null,null,null,null,null,null,null,null,null,null,"END"]
[null,"Potter Switches",null,null,null,null,null,null,null,null,null,null,null,null,null,null,null,null,null,null,null,null,"Description","$","$2","Notes",null,null,null,null,null,null,null,null,null,null,null,null,null,null,null,null,null,null,null,null,null,null,null,null,null,null,null,null,null,null,null,null,null,null,null,null,null,null,null,null,null,null,null,null,null,null,null,null,null,"VS-1 FSS Full Red  1 Loop System (xx-zone) w-Adap & Eth & Dialer M85005-0131",null,{"$f":"390+N(\"Panel\")+140+N(\"Dialer\")+70+N(\"Adapter Class-A\")+300+N(\"SA-ETHernet\")","v":900},null,null,null,null,null,null,null,null,null,null,null,null,null,null,null,null,null,null,null,null,"Power supplies & Batts",null,"END"]
[null,null,null,null,null,null,null,null,null,null,null,null,null,null,null,null,null,null,null,null,null,null,"Edwards ESL interlogic 103-01 Manual Non-Addressable Pull Station",null,60,null,null,null,null,null,null,null,null,null,null,null,null,null,null,null,null,null,null,null,null,"Index",null,null,"Horn-Strobes",null,null,null,null,null,null,null,null,null,null,null,null,null,null,"Index",null,null,null,null,null,null,null,null,null,null,null,"VS-1 OEM Gray 1 Loop System (xx-zone) M85005-0131",null,{"$f":"390+N(\"Panel BARE\")","v":390},null,null,"Index",null,null,null,null,null,null,null,null,null,null,null,null,null,null,null,null,null,"Pull stn",null,"END"]
[null,"Power supplies & Batts",null,null,null,null,null,null,null,null,"Power supplies & Batts",null,null,null,null,null,null,null,null,null,null,null,"Edwards EST GE-270 Pull Station",null,40,null,null,"Power supplies & Batts",null,null,null,null,null,null,null,null,"Power supplies & Batts",null,null,null,null,null,null,null,null,null,null,null,"Description","$","$2","Notes",null,null,"Power supplies & Batts",null,null,null,"Strobes only",null,null,null,null,null,null,"Strobes only",null,null,null,null,null,"Power supplies & Batts",null,null,null,"VS-1 OEM Gray 1 Loop System (xx-zone) M85005-0131 ED-VS1GD ADI w/Dialer",null,{"$f":"390+N(\"SA-DACT dialer\")+140","v":530},null,null,null,null,null,null,null,null,null,null,null,"Power supplies & Batts",null,null,null,null,null,null,null,null,null,null,"END"]
[null,"Pull stn",null,null,null,null,null,null,null,null,"Pull stn",null,null,null,null,null,null,null,null,"Index",null,null,"Edwards EST GE-MPSR1-S45W Pull Station",null,200,null,null,"Pull stn",null,null,"zMisc",null,null,null,null,null,"Pull stn",null,null,null,null,null,null,null,null,null,null,null,"Add SK Horn STROBE data",null,22,null,null,null,"Pull stn",null,null,null,"Description","$","$2","Notes",null,null,null,"Description","$","$CP","Notes",null,null,"Pull stn",null,null,null,"VS-1 OEM Red  1 Loop System (xx-zone) M85005-0131",null,{"$f":"390+N(\"Panel BARE\")","v":390},null,null,null,null,null,null,null,null,null,null,null,"Pull stn",null,null,null,null,null,null,null,null,"Parts/Assy",null,"END"]
[null,null,null,null,null,null,null,null,null,null,null,null,null,null,null,null,null,null,null,null,null,null,"zSpare-01",null,2,null,null,null,null,null,"Description","$","$CP","Notes",null,null,null,null,null,null,null,null,null,null,null,null,null,null,"Made a SK HornStrobe  table here",null,7,null,null,null,null,null,null,null,"SystemSensor P2W Strobe only  White or P2R Red",null,31,null,null,null,null,"M85001-0557 Strobe Field Configurable Genesis",null,999,null,null,null,null,null,null,null,"VS-2 FSS Basic Gray or Red 10-zone NO-Adap & NO-Eth & NO dialer i.e BARE",null,{"$f":"496+4+N(\"Panel\")","v":500},"MRSP1048",null,null,null,null,null,null,null,null,null,null,null,null,null,null,null,null,null,null,null,null,null,"END"]
[null,"Parts/Assy",null,null,null,null,null,null,null,null,"Parts/Assy",null,null,null,null,null,null,null,null,null,null,null,{"$f":"SUBTOTAL(103,Table36[Description])","v":4},null,null,null,null,"Parts/Assy",null,null,null,null,null,null,null,null,"Parts/Assy",null,null,null,"zOther HW",null,null,null,null,null,null,null,null,null,null,null,null,null,"Parts/Assy",null,null,null,"SystemSensor SCR 2-wire Ceiling Strobe STD Red",null,41,null,null,null,null,"zSpare 1",null,999,null,null,null,"Parts/Assy",null,null,null,"VS-2 FSS Basic Gray or Red 10-zone w-Adap & Eth NO dialer",null,{"$f":"496+4+N(\"Panel\")+78+N(\"Adapter Class-A\")+300+N(\"SA-ETHernet\")","v":878},null,null,null,null,null,null,null,null,null,null,null,"Parts/Assy",null,null,null,null,null,null,null,null,"Index",null,"END"]
[null,null,null,null,null,null,null,null,null,null,null,null,null,null,null,null,null,null,null,null,null,null,null,null,null,null,null,null,null,null,null,null,null,null,null,null,null,null,null,null,"Description","$","$2","Notes",null,null,null,null,null,null,null,null,null,null,null,null,null,null,"SystemSensor SCRL 2-wire Ceiling Strobe STD Red",null,53,null,null,null,null,"zSpare 2",null,999,null,null,null,null,null,null,null,"VS-2 FSS Full Gray or Red 10-zone w-Adap & Eth & Dialer",null,{"$f":"496+4+N(\"Panel\")+N(\"Dialer:\")+140+N(\"Adapter Class-A:\")+78+N(\"SA-ETHernet:\")+300","v":1018},null,null,null,null,null,null,null,null,null,null,null,null,null,null,null,null,null,null,null,null,null,null,"END"]
[null,"Index",null,null,null,null,null,null,null,null,"Index",null,null,null,null,null,null,null,null,"Index",null,null,null,null,null,null,null,"Index",null,null,null,null,null,null,null,null,"Index",null,null,null,"Add HW OTHER data",null,23,null,null,"Index",null,null,null,null,null,null,null,null,"Index",null,null,null,"SystemSensor SR Strobe STD Candela Red",null,31,null,null,"Index",null,{"$f":"SUBTOTAL(103,Table50[Description])","v":3},null,null,{"$f":"SUBTOTAL(103,Table50[Notes])","v":0},null,null,"Index",null,null,null,"VS-2 OEM Basic Gray or Red 10-zone NO dialer",null,{"$f":"540+N(\"Panel BARE\")","v":540},null,null,"Index",null,null,null,null,null,null,null,null,"Index",null,null,null,null,null,null,null,null,null,null,"END"]
[null,null,null,null,null,null,null,null,null,null,null,null,null,null,null,null,null,null,null,null,null,null,null,null,null,null,null,null,null,null,null,null,null,null,null,null,null,null,null,null,"Made a HW OTHER table here",null,8,null,null,null,null,null,null,null,null,null,null,null,null,null,null,null,"SystemSensor SRHK Strobe, High cd, Red, Outdoor (includes plastic weatherproof back box)",null,0,null,null,null,null,null,null,null,null,null,null,null,null,null,null,"VS-2 OEM Full Gray or Red 10-zone w-Dialer",null,{"$f":"574+N(\"Panel\")+N(\"Dialer\")","v":574},null,null,null,null,null,null,null,null,null,null,null,null,null,null,null,null,null,null,null,null,null,null,"END"]
[null,null,null,null,null,null,null,null,null,null,null,null,null,null,null,null,null,null,null,null,null,null,"Strobes only",null,null,null,null,null,null,null,null,null,null,null,null,null,null,null,null,null,{"$f":"SUBTOTAL(103,ListAlm!$AO$66:$AO$67)","v":2},null,null,null,null,null,null,null,"Power Supplies & Batteries",null,null,null,null,null,null,null,null,null,"SystemSensor SRK Strobe, Standard cd, Red, Outdoor (includes plastic weatherproof back box)",null,0,null,null,null,null,null,null,null,null,null,null,null,null,null,null,"VS-4 Bare",null,500,null,null,null,null,null,null,null,null,null,null,null,null,null,null,null,null,null,null,null,null,null,null,"END"]
[null,null,null,null,null,null,null,null,null,null,null,null,null,null,null,null,null,null,null,null,null,null,"Description","$","$2","Notes",null,null,null,null,null,null,null,null,null,null,null,null,null,null,null,null,null,null,null,null,null,null,"Description","$","$2","Notes",null,null,null,null,null,null,"SystemSensor SW Strobe, High cd, White, Outdoor (includes plastic weatherproof back box)",null,0,null,null,null,null,null,null,null,null,null,null,null,null,null,null,"VS-4 FSS Full Gray/Wh 1 Loop System (xx-zone) w-Adap & Eth & Dialer",null,{"$f":"630+N(\"Panel\")+140+N(\"Dialer\")+70+N(\"Adapter Class-A\")+300+N(\"SA-ETHernet\")","v":1140},null,null,null,null,null,null,null,null,null,null,null,null,null,null,null,null,null,null,null,null,null,null,"END"]
[null,null,null,null,null,null,null,null,null,null,null,null,null,null,null,null,null,null,null,null,null,null,"ED MG1F-VM Strobe Multi CD White w/Fire label",null,22,null,null,null,null,null,"zOther",null,null,null,null,null,null,null,null,null,null,null,null,null,null,null,null,null,"SK 5495 6A 6 Amp NAC Power Supply W/ Sync",null,332,null,null,null,null,null,null,null,"SystemSensor SWK Strobe, Standard cd, White, Outdoor (includes plastic weatherproof back box)",null,0,null,null,null,null,"zMisc",null,null,null,null,null,null,null,null,null,"zSpare 1",null,200,null,null,null,null,null,null,null,null,null,null,null,null,null,null,null,null,null,null,null,null,null,null,"END"]
[null,null,null,null,null,null,"SK","VS",null,null,null,null,null,null,null,null,null,null,null,null,null,null,"Strobe LED Clear EG1 -VWF Strobe only White w/Fire label",null,29,null,null,null,null,null,"Description","$","$CP","Notes",null,null,null,null,null,null,null,null,null,null,null,null,null,null,"SK 5496 6A Intelligent 6 Amp Power Supply",null,345,null,null,null,null,null,null,null,{"$f":"SUBTOTAL(103,Table41[Description])","v":8},null,null,null,null,null,null,"Description","$","$2","Notes",null,null,null,null,null,null,"zSpare 2",null,300,null,null,null,null,null,null,null,null,null,null,null,null,null,null,null,null,null,null,null,null,null,null,"END"]
[null,null,null,null,null,"Class A = Redundant Path = $$$",525,390,"Panel",null,null,null,null,null,null,null,null,null,null,null,null,null,"zSpare-01",null,5,null,null,null,null,null,"SD500-AIM Addressable input module single input",null,54,null,null,null,null,null,null,null,null,null,null,null,null,null,null,null,"SK 5499 9A 9 Amp NAC Power Supply W/ Sync",null,356,null,null,null,null,null,null,null,null,null,null,null,null,null,null,"Input Modules GSA-CT1 M85001-0241 ED-GSA CT1",null,30,null,null,null,null,null,null,null,"zSpare 3",null,400,null,null,null,null,null,null,null,null,null,null,null,null,null,null,null,null,null,null,null,null,null,null,"END"]
[null,null,null,null,null,"Class B = Terminating  Resis","included",70,"Adapt",null,null,null,null,null,null,null,null,null,null,null,null,null,null,null,null,null,null,null,null,null,"Make an HK OTHER table here",null,999,null,null,null,null,null,null,null,null,null,null,null,null,null,null,null,"SK 5895 XL Inteliknight Power Supply",null,504,null,null,null,null,null,null,null,null,null,null,null,null,null,null,"Input Modules GSA-CT1HT M85001-0241",null,37,null,null,null,null,null,null,null,null,null,null,null,null,null,null,null,null,null,null,null,null,null,null,null,null,null,null,null,null,null,null,null,null,"END"]
[null,null,null,null,null,"usb built in SK","included",300,"Ethernet",null,null,null,null,null,null,null,null,null,null,null,null,null,null,null,null,null,null,null,null,null,{"$f":"SUBTOTAL(103,Table56[Description])","v":2},null,null,{"$f":"SUBTOTAL(103,Table56[Notes])","v":0},null,null,null,null,null,null,null,null,null,null,null,null,null,null,{"$f":"SUBTOTAL(103,Table22[Description])","v":4},null,null,null,null,null,null,null,null,null,null,null,null,null,null,null,null,"Input Modules GSA-CT2 M85001-0241",null,67,null,null,null,null,null,null,null,null,null,null,null,null,null,null,null,null,null,null,null,null,null,null,null,null,null,null,null,null,null,null,"Index",null,"END"]
[null,null,null,null,null,null,null,null,null,null,null,null,null,null,null,null,null,null,null,null,null,null,null,null,null,null,null,null,null,null,null,null,null,null,null,null,null,null,null,null,null,null,null,null,null,null,null,null,null,null,null,null,null,null,null,null,null,null,null,null,null,null,null,null,null,"Input Modules GSA-UM",null,80,null,null,null,null,null,null,null,null,null,null,null,null,null,null,null,null,null,null,null,null,null,null,null,null,null,null,null,null,null,null,null,null,"END"]
[null,"Index",null,null,null,null,{"$f":"SUM(G71:G75)","v":525},{"$f":"SUM(H71:H75)","v":760},null,null,"Index",null,null,null,null,null,null,null,null,"Index",null,null,null,null,null,null,null,"Index",null,null,null,null,null,null,null,null,"Index",null,null,null,null,null,null,null,null,"Index",null,null,null,null,null,null,null,null,"Index",null,null,null,null,null,null,null,null,"Index",null,"M85001-0543 GSA-CC1S, MCC1S Module Sync Output (Ring Tone)",null,55,null,null,null,"Index",null,null,null,"Note: prefix   FSS     means a BUILD from BARE. A complete package",null,null,null,null,"Index",null,null,null,null,null,null,null,null,"Index",null,null,null,null,null,null,null,null,null,null,"END"]
[null,null,null,null,null,null,null,null,null,null,null,null,null,null,null,null,null,null,null,null,null,null,null,null,null,null,null,null,null,null,null,null,null,null,null,null,null,null,null,null,null,null,null,null,null,null,null,null,null,null,null,null,null,null,null,null,null,null,null,null,null,null,null,null,null,"SA-ETH-VS-1/2  Ethernet adapter",null,300,null,null,null,null,null,null,null,null,null,null,null,null,null,null,null,null,null,null,null,null,null,null,null,null,null,null,null,null,null,null,null,null,"END"]
[null,null,null,null,null,null,null,null,null,null,null,null,null,null,null,null,null,null,null,null,null,null,"zMisc",null,null,null,null,null,null,null,null,null,null,null,null,null,null,null,null,null,null,null,null,null,null,null,null,null,null,null,null,null,null,null,null,null,null,null,"zMisc",null,null,null,null,null,null,"VS GSA-WTM  Waterflow/Tamper Module",null,63,null,null,null,null,null,null,null,null,null,null,null,null,null,null,null,null,null,null,null,null,null,null,null,null,null,null,null,null,null,null,null,null,"END"]
[null,null,null,null,null,null,null,null,null,null,null,null,null,null,null,null,null,null,null,null,null,null,"Description","$","$2","Notes",null,null,null,null,null,null,null,null,null,null,null,null,null,null,null,null,null,null,null,null,null,null,null,null,null,null,null,null,null,null,null,null,"Description","$","$2","Notes",null,null,null,{"$f":"SUBTOTAL(103,Table44[Description])","v":7},null,null,null,null,null,null,null,null,null,null,null,null,null,null,null,null,null,null,null,null,null,null,null,null,null,null,null,null,null,null,null,null,null,null,"END"]
[null,null,null,null,null,null,null,null,null,null,null,null,null,null,null,null,null,null,null,null,null,null,"Spare 1",null,20,null,null,null,null,null,null,null,null,null,null,null,null,null,null,null,null,null,null,null,null,null,null,null,"Pull Stations",null,null,null,null,null,null,null,null,null,"SystemSensor BK-DSTS Sampling Tube 5' with hole",10,10,null,null,null,null,null,null,null,null,null,null,null,null,null,null,null,null,null,null,null,null,null,null,null,null,null,null,null,null,null,null,null,null,null,null,null,null,null,null,null,"END"]
[null,null,null,null,null,null,null,null,null,null,null,null,null,null,null,null,null,null,null,null,null,null,"Spare 2",null,20,null,null,null,null,null,null,null,null,null,null,null,null,null,null,null,null,null,null,null,null,null,null,null,"Description","$","$2","Notes",null,null,null,null,null,null,"SystemSensor BK-RTS151KEY  Remote Test Station w/key",null,50,null,null,null,null,null,null,null,null,null,null,null,null,null,null,"All Ranges must be sorted ALPHABETICALLY on 'Description'",null,null,null,null,null,null,null,null,null,null,null,null,null,null,null,null,null,null,null,null,null,null,null,null,"END"]
[null,null,null,null,null,null,null,null,null,null,null,null,null,null,null,null,null,null,null,null,null,null,null,null,null,null,null,null,null,null,null,null,null,null,null,null,null,null,null,null,null,null,null,null,null,null,null,null,"SK-PSDA Dual Action Pull Stn Conventional",null,24,null,null,null,null,null,null,null,"SystemSensor SA-WBBW or R Metal Weatherproof Backbox",null,1,null,null,null,null,null,null,null,null,null,null,null,null,null,null,null,null,null,null,null,null,null,null,null,null,null,null,null,null,null,null,null,null,null,null,null,null,null,null,null,"END"]
[null,null,null,null,null,null,null,null,null,null,null,null,null,null,null,null,null,null,null,null,null,null,null,null,null,null,null,null,null,null,null,null,null,null,null,null,null,null,null,null,null,null,null,null,null,null,null,null,"SK-Pull-Dual Action Addressable",null,70,null,null,null,null,null,null,null,{"$f":"SUBTOTAL(103,Table42[Description])","v":3},null,null,null,null,null,null,null,null,null,null,null,null,null,null,null,null,null,null,null,null,null,null,null,null,null,null,null,null,null,null,null,null,null,null,null,null,null,null,null,null,null,"END"]
[null,null,null,null,null,null,null,null,null,null,null,null,null,null,null,null,null,null,null,null,null,null,null,null,null,null,null,null,null,null,null,null,null,null,null,null,null,null,null,null,null,null,null,null,null,null,null,null,"SK-Pull-Single Action Addressable",null,70,null,null,null,null,null,null,null,null,null,null,null,null,null,null,"zOther",null,null,null,null,null,null,null,null,null,null,null,null,null,null,null,null,null,null,null,null,null,null,null,null,null,null,null,null,null,null,null,null,"Index",null,"END"]
[null,null,null,null,null,null,null,null,null,null,null,null,null,null,null,null,null,null,null,null,null,null,null,null,null,null,null,null,null,null,null,null,null,null,null,null,null,null,null,null,null,null,null,null,null,null,null,null,"zSpare 1",null,10,null,null,null,null,null,null,null,null,null,null,null,null,null,null,"Description","$","$2","Notes",null,null,null,null,null,null,null,null,null,null,null,null,null,null,null,null,null,null,null,null,null,null,null,null,null,null,null,null,null,null,null,"END"]
[null,"Index",null,null,null,null,null,null,null,null,"Index",null,null,null,null,null,null,null,null,"Index",null,null,"zOther",null,null,null,null,"Index",null,null,null,null,null,null,null,null,"Index",null,null,null,null,null,null,null,null,"Index",null,null,"zSpare 2",null,20,null,null,null,"Index",null,null,null,"zOther",null,null,null,null,"Index",null,"Add VS zOther data",null,999,null,null,null,"Index",null,null,null,null,null,null,null,null,"Index",null,null,null,null,null,null,null,null,"Index",null,null,null,null,null,null,null,null,null,null,"END"]
[null,null,null,null,null,null,null,null,null,null,null,null,null,null,null,null,null,null,null,null,null,null,"Description","$","$2","Notes",null,null,null,null,null,null,null,null,null,null,null,null,null,null,null,null,null,null,null,null,null,null,{"$f":"SUBTOTAL(103,ListAlm!$AW$82:$AW$86)","v":5},null,null,null,null,null,null,null,null,null,"Description","$","$2","Notes",null,null,null,"Made a VS zOther table here",null,999,null,null,null,null,null,null,null,null,null,null,null,null,null,null,null,null,null,null,null,null,null,null,null,null,null,null,null,null,null,null,null,null,"END"]
[null,null,null,null,null,null,null,null,"Link",null,null,null,null,null,null,null,null,null,null,null,null,null,null,null,null,null,null,null,null,null,null,null,null,null,null,null,null,null,null,null,null,null,null,null,null,null,null,null,null,null,null,null,null,null,null,null,null,null,null,null,null,null,null,null,null,"zSpare 1",null,999,null,null,null,null,null,null,null,null,null,null,null,null,null,null,null,null,null,null,null,null,null,null,null,null,null,null,null,null,null,null,null,null,"END"]
[null,null,null,null,null,null,null,null,"Link",null,null,null,null,null,null,null,null,null,null,null,null,null,null,null,null,null,null,null,null,null,null,null,null,null,null,null,null,null,null,null,null,null,null,null,null,null,null,null,null,null,null,null,null,null,null,null,null,null,null,null,null,null,null,null,null,"zSpare 2",null,999,null,null,null,null,null,null,null,null,null,null,null,null,null,null,null,null,null,null,null,null,null,null,null,null,null,null,null,null,null,null,null,null,"END"]
[null,null,null,null,null,null,null,null,"Link",null,null,null,null,null,null,null,null,null,null,null,null,null,null,null,null,null,null,null,null,null,null,null,null,null,null,null,null,null,null,null,null,null,null,null,null,null,null,null,null,null,null,null,null,null,null,null,null,null,null,null,null,null,null,null,null,{"$f":"SUBTOTAL(103,Table49[Description])","v":4},null,null,null,null,null,null,null,null,null,null,null,null,null,null,null,null,null,null,null,null,null,null,null,null,null,null,null,null,null,null,null,null,null,null,"END"]
[null,null,null,null,null,null,null,null,"Link",null,null,null,null,null,null,null,null,null,null,null,null,null,null,null,null,null,null,null,null,null,null,null,null,null,null,null,null,null,null,null,null,null,null,null,null,null,null,null,null,null,null,null,null,null,null,null,null,null,null,null,null,null,null,null,null,null,null,null,null,null,null,null,null,null,null,null,null,null,null,null,null,null,null,null,null,null,null,null,null,null,null,null,null,null,null,null,null,null,null,null,"END"]
[null,null,null,null,null,null,null,null,"Link",null,null,null,null,null,null,null,null,null,null,null,null,null,null,null,null,null,null,null,null,null,null,null,null,null,null,null,null,null,null,null,null,null,null,null,null,null,null,null,"Strobes only",null,null,null,null,null,null,null,null,null,null,null,null,null,null,null,null,null,null,null,null,null,null,null,null,null,null,null,null,null,null,null,null,null,null,null,null,null,null,null,null,null,null,null,null,null,null,null,null,null,null,null,"END"]
[null,null,null,null,null,null,null,null,"Link",null,null,null,null,null,null,null,null,null,null,null,null,null,null,null,null,null,null,null,null,null,null,null,null,null,null,null,null,null,null,null,null,null,null,null,null,null,null,null,"Description","$","$2","Notes",null,null,null,null,null,null,null,null,null,null,null,null,null,null,null,null,null,null,null,null,null,null,null,null,null,null,null,null,null,null,null,null,null,null,null,null,null,null,null,null,null,null,null,null,null,null,null,null,"END"]
[null,null,null,null,null,null,null,null,null,null,null,null,null,null,null,null,null,null,null,null,null,null,null,null,null,null,null,null,null,null,null,null,null,null,null,null,null,null,null,null,null,null,null,null,null,null,null,null,"Add STRobe Only data",null,2222,null,null,null,null,null,null,null,null,null,null,null,null,null,null,null,null,null,null,null,null,null,null,null,null,null,null,null,null,null,null,null,null,null,null,null,null,null,null,null,null,null,null,null,null,null,null,null,"Index",null,"END"]
[null,null,null,null,null,null,null,null,"Link",null,null,null,null,null,null,null,null,null,null,null,null,null,null,null,null,null,null,null,null,null,null,null,null,null,null,null,null,null,null,null,null,null,null,null,null,null,null,null,"Made a STrobe Only table here",null,777,null,null,null,null,null,null,null,null,null,null,null,null,null,null,null,null,null,null,null,null,null,null,null,null,null,null,null,null,null,null,null,null,null,null,null,null,null,null,null,null,null,null,null,null,null,null,null,null,null,"END"]
[null,"Index",null,null,null,null,null,null,null,null,"Index",null,null,null,null,null,null,null,null,"Index",null,null,null,null,null,null,null,"Index",null,null,null,null,null,null,null,null,"Index",null,null,null,null,null,null,null,null,"Index",null,null,{"$f":"SUBTOTAL(103,Table23[Description])","v":2},null,null,null,null,null,"Index",null,null,null,null,null,null,null,null,"Index",null,null,null,null,null,null,null,"Index",null,null,null,null,null,null,null,null,"Index",null,null,null,null,null,null,null,null,"Index",null,null,null,null,null,null,null,null,null,null,"END"]
[null,null,null,null,null,null,null,null,"Link",null,null,null,null,null,null,null,null,null,null,null,null,null,null,null,null,null,null,null,null,null,null,null,null,null,null,null,null,null,null,null,null,null,null,null,null,null,null,null,null,null,null,null,null,null,null,null,null,null,null,null,null,null,null,null,null,null,null,null,null,null,null,null,null,null,null,null,null,null,null,null,null,null,null,null,null,null,null,null,null,null,null,null,null,null,null,null,null,null,null,null,"END"]
[null,null,null,null,null,null,null,null,null,null,null,null,null,null,null,null,null,null,null,null,null,null,null,null,null,null,null,null,null,null,null,null,null,null,null,null,null,null,null,null,null,null,null,null,null,null,null,null,null,null,null,null,null,null,null,null,null,null,null,null,null,null,null,null,null,null,null,null,null,null,null,null,null,null,null,null,null,null,null,null,null,null,null,null,null,null,null,null,null,null,null,null,null,null,null,null,null,null,null,null,"END"]
[null,null,null,null,null,null,null,null,null,null,null,null,null,null,null,null,null,null,null,null,null,null,null,null,null,null,null,null,null,null,null,null,null,null,null,null,null,null,null,null,null,null,null,null,null,null,null,null,null,null,null,null,null,null,null,null,null,null,null,null,null,null,null,null,null,null,null,null,null,null,null,null,null,null,null,null,null,null,null,null,null,null,null,null,null,null,null,null,null,null,null,null,null,null,null,null,null,null,null,null,"END"]
[null,null,null,null,null,null,null,null,null,null,null,null,null,null,null,null,null,null,null,null,null,null,null,null,null,null,null,null,null,null,null,null,null,null,null,null,null,null,null,null,null,null,null,null,null,null,null,null,"zOther SK",null,null,null,null,null,null,null,null,null,null,null,null,null,null,null,null,null,null,null,null,null,null,null,null,null,null,null,null,null,null,null,null,null,null,null,null,null,null,null,null,null,null,null,null,null,null,null,null,null,null,null,"END"]
[null,null,null,null,null,null,null,null,null,null,null,null,null,null,null,null,null,null,null,null,null,null,null,null,null,null,null,null,null,null,null,null,null,null,null,null,null,null,null,null,null,null,null,null,null,null,null,null,"Description","$","$2","Notes",null,null,null,null,null,null,null,null,null,null,null,null,null,null,null,null,null,null,null,null,null,null,null,null,null,null,null,null,null,null,null,null,null,null,null,null,null,null,null,null,null,null,null,null,null,null,null,null,"END"]
[null,null,null,null,null,null,null,null,null,null,null,null,null,null,null,null,null,null,null,null,null,null,null,null,null,null,null,null,null,null,null,null,null,null,null,null,null,null,null,null,null,null,null,null,null,null,null,null,"Add SK OTHER data",null,23,null,null,null,null,null,null,null,null,null,null,null,null,null,null,null,null,null,null,null,null,null,null,null,null,null,null,null,null,null,null,null,null,null,null,null,null,null,null,null,null,null,null,null,null,null,null,null,null,null,"END"]
[null,null,null,null,null,null,null,null,null,null,null,null,null,null,null,null,null,null,null,null,null,null,null,null,null,null,null,null,null,null,null,null,null,null,null,null,null,null,null,null,null,null,null,null,null,null,null,null,"Made a SK OTHER table here",null,8,null,null,null,null,null,null,null,null,null,null,null,null,null,null,null,null,null,null,null,null,null,null,null,null,null,null,null,null,null,null,null,null,null,null,null,null,null,null,null,null,null,null,null,null,null,null,null,null,null,"END"]
[null,null,null,null,null,null,null,null,null,null,null,null,null,null,null,null,null,null,null,null,null,null,null,null,null,null,null,null,null,null,null,null,null,null,null,null,null,null,null,null,null,null,null,null,null,null,null,null,{"$f":"SUBTOTAL(103,Table14[Description])","v":2},null,null,null,null,null,null,null,null,null,null,null,null,null,null,null,null,null,null,null,null,null,null,null,null,null,null,null,null,null,null,null,null,null,null,null,null,null,null,null,null,null,null,null,null,null,null,null,null,null,"Index",null,"END"]
[null,null,null,null,null,null,null,null,null,null,null,null,null,null,null,null,null,null,null,null,null,null,null,null,null,null,null,null,null,null,null,null,null,null,null,null,null,null,null,null,null,null,null,null,null,null,null,null,null,null,null,null,null,null,null,null,null,null,null,null,null,null,null,null,null,null,null,null,null,null,null,null,null,null,null,null,null,null,null,null,"Index",null,null,null,null,null,null,null,null,null,null,null,null,null,null,null,null,null,null,null,"END"]
[null,"Index",null,null,null,null,null,null,null,null,"Index",null,null,null,null,null,null,null,null,"Index",null,null,null,null,null,null,null,"Index",null,null,null,null,null,null,null,null,"Index",null,null,null,null,null,null,null,null,"Index",null,null,null,null,null,null,null,null,"Index",null,null,null,null,null,null,null,null,"Index",null,null,null,null,null,null,null,"Index",null,null,null,null,null,null,null,null,null,null,null,null,null,null,null,null,null,"Index",null,null,null,null,null,null,null,null,null,null,"END"]
[null,null,null,null,null,null,null,null,null,null,null,null,null,null,null,null,null,null,null,null,null,null,null,null,null,null,null,null,null,null,null,null,null,null,null,null,null,null,null,null,null,null,null,null,null,null,null,null,null,null,null,null,null,null,null,null,null,null,null,null,null,null,null,null,null,null,null,null,null,null,null,null,null,null,null,null,null,null,null,null,null,null,null,null,null,null,null,null,null,null,null,null,null,null,null,null,null,null,null,null,"END"]
[null,null,null,null,null,null,null,null,null,null,null,null,null,null,null,null,null,null,null,null,null,null,null,null,null,null,null,null,null,null,null,null,null,null,null,null,null,null,null,null,null,null,null,null,null,null,null,null,"zMisc",null,null,null,null,null,null,null,null,null,null,null,null,null,null,null,null,null,null,null,null,null,null,null,null,null,null,null,null,null,null,null,null,null,null,null,null,null,null,null,null,null,null,null,null,null,null,null,null,null,null,null,"END"]
[null,null,null,null,null,null,null,null,null,null,null,null,null,null,null,null,null,null,null,null,null,null,null,null,null,null,null,null,null,null,null,null,null,null,null,null,null,null,null,null,null,null,null,null,null,null,null,null,"Description","$","$","Notes",null,null,null,null,null,null,null,null,null,null,null,null,null,null,null,null,null,null,null,null,null,null,null,null,null,null,null,null,null,null,null,null,null,null,null,null,null,null,null,null,null,null,null,null,null,null,null,null,"END"]
[null,null,null,null,null,null,null,null,null,null,null,null,null,null,null,null,null,null,null,null,null,null,null,null,null,null,null,null,null,null,null,null,null,null,null,null,null,null,null,null,null,null,null,null,null,null,null,null,"Add SK zMisc data","Column1","51.00","Column2",null,null,null,null,null,null,null,null,null,null,null,null,null,null,null,null,null,null,null,null,null,null,null,null,null,null,null,null,null,null,null,null,null,null,null,null,null,null,null,null,null,null,null,null,null,null,null,null,"END"]
[null,null,null,null,null,null,null,null,null,null,null,null,null,null,null,null,null,null,null,null,null,null,null,null,null,null,null,null,null,null,null,null,null,null,null,null,null,null,null,null,null,null,null,null,null,null,null,null,"Make a zMisc SK table here",null,55,null,null,null,null,null,null,null,null,null,null,null,null,null,null,null,null,null,null,null,null,null,null,null,null,null,null,null,null,null,null,null,null,null,null,null,null,null,null,null,null,null,null,null,null,null,null,null,null,null,"END"]
[null,null,null,null,null,null,null,null,null,null,null,null,null,null,null,null,null,null,null,null,null,null,null,null,null,null,null,null,null,null,null,null,null,null,null,null,null,null,null,null,null,null,null,null,null,null,null,null,{"$f":"SUBTOTAL(103,Table45[Add SK zMisc data])","v":1},null,null,null,null,null,null,null,null,null,null,null,null,null,null,null,null,null,null,null,null,null,null,null,null,null,null,null,null,null,null,null,null,null,null,null,null,null,null,null,null,null,null,null,null,null,null,null,null,null,null,null,"END"]
[null,null,null,null,null,null,null,null,null,null,null,null,null,null,null,null,null,null,null,null,null,null,null,null,null,null,null,null,null,null,null,null,null,null,null,null,null,null,null,null,null,null,null,null,null,null,null,null,null,null,null,null,null,null,null,null,null,null,null,null,null,null,null,null,null,null,null,null,null,null,null,null,null,null,null,null,null,null,null,null,null,null,null,null,null,null,null,null,null,null,null,null,null,null,null,null,null,null,null,null,"END"]
[null,null,null,null,null,null,null,null,null,null,null,null,null,null,null,null,null,null,null,null,null,null,null,null,null,null,null,null,null,null,null,null,null,null,null,null,null,null,null,null,null,null,null,null,null,null,null,null,null,null,null,null,null,null,null,null,null,null,null,null,null,null,null,null,null,null,null,null,null,null,null,null,null,null,null,null,null,null,null,null,null,null,null,null,null,null,null,null,null,null,null,null,null,null,null,null,null,null,"Index",null,"END"]
[null,null,null,null,null,null,null,null,null,null,null,null,null,null,null,null,null,null,null,null,null,null,null,null,null,null,null,null,null,null,null,null,null,null,null,null,null,null,null,null,null,null,null,null,null,null,null,null,null,null,null,null,null,null,null,null,null,null,null,null,null,null,null,null,null,null,null,null,null,null,null,null,null,null,null,null,null,null,null,null,"Index",null,null,null,null,null,null,null,null,null,null,null,null,null,null,null,null,null,null,null,"END"]
[null,"Index",null,null,null,null,null,null,null,null,"Index",null,null,null,null,null,null,null,null,"Index",null,null,null,null,null,null,null,"Index",null,null,null,null,null,null,null,null,"Index",null,null,null,null,null,null,null,null,"Index",null,null,null,null,null,null,null,null,"Index",null,null,null,null,null,null,null,null,"Index",null,null,null,null,null,null,null,"Index",null,null,null,null,null,null,null,null,null,null,null,null,null,null,null,null,null,"Index",null,null,null,null,null,null,null,null,null,null,"END"]
[null,null,null,null,null,null,null,null,null,null,null,null,null,null,null,null,null,null,null,null,null,null,null,null,null,null,null,null,null,null,null,null,null,null,null,null,null,null,null,null,null,null,null,null,null,null,null,null,null,null,null,null,null,null,null,null,null,null,null,null,null,null,null,null,null,null,null,null,null,null,null,null,null,null,null,null,null,null,null,null,null,null,null,null,null,null,null,null,null,null,null,null,null,null,null,null,null,null,null,null,"END"]
[null,null,null,null,null,null,null,null,null,null,null,null,null,null,null,null,null,null,null,null,null,null,null,null,null,null,null,null,null,null,null,null,null,null,null,null,null,null,null,null,null,null,null,null,null,null,null,null,null,null,null,null,null,null,null,null,null,null,null,null,null,null,null,null,null,null,null,null,null,null,null,null,null,null,null,null,null,null,null,null,null,null,null,null,null,null,null,null,null,null,null,null,null,null,null,null,null,null,null,null,"END"]
[null,null,null,null,null,null,null,null,null,null,null,null,null,null,null,null,null,null,null,null,null,null,null,null,null,null,null,null,null,null,null,null,null,null,null,null,null,null,null,null,null,null,null,null,null,null,null,null,null,null,null,null,null,null,null,null,null,null,null,null,null,null,null,null,null,null,null,null,null,null,null,null,null,null,null,null,null,null,null,null,null,null,null,null,null,null,null,null,null,null,null,null,null,null,null,null,null,null,null,null,"END"]
[null,null,null,null,null,null,null,null,null,null,null,null,null,null,null,null,null,null,null,null,null,null,null,null,null,null,null,null,null,null,null,null,null,null,null,null,null,null,null,null,null,null,null,null,null,null,null,null,null,null,null,null,null,null,null,null,null,null,null,null,null,null,null,null,null,null,null,null,null,null,null,null,null,null,null,null,null,null,null,null,null,null,null,null,null,null,null,null,null,null,null,null,null,null,null,null,null,null,null,null,"END"]
[null,null,null,null,null,null,null,null,null,null,null,null,null,null,null,null,null,null,null,null,null,null,null,null,null,null,null,null,null,null,null,null,null,null,null,null,null,null,null,null,null,null,null,null,null,null,null,null,null,null,null,null,null,null,null,null,null,null,null,null,null,null,null,null,null,null,null,null,null,null,null,null,null,null,null,null,null,null,null,null,null,null,null,null,null,null,null,null,null,null,null,null,null,null,null,null,null,null,null,null,"END"]
["END","END","END","END","END",null,null,null,null,"END","END","END","END","END","END","END","END","END","END","END","END","END","END","END","END","END","END","END","END","END","END","END","END","END","END","END","END","END","END","END","END","END","END","END","END","END","END","END","END","END","END","END","END","END","END","END","END","END",null,null,null,null,"END","END","END","END","END","END","END","END","END","END","END","END","END","END","END","END","END","END","END","END","END",null,null,null,null,"END","END","END","END","END","END","END","END","END","END","END","END","END","END"]
[null,null,null,null,null,null,null,null,null,null,null,null,null,null,null,null,null,null,null,null,null,null,null,null,null,null,null,null,null,null,null,null,null,null,null,null,null,null,null,null,null,null,null,null,null,null,null,null,null,null,null,null,null,null,null,null,null,null,"END","END","END","END"]
[null,null,null,null,null,null,null,null,null,null,null,null,null,null,null,null,null,null,null,null,null,null,null,null,null,null,null,null,null,null,null,null,null,null,null,null,null,null,null,null,null,null,null,null,null,null,null,null,null,null,null,null,null,null,null,null,null,null,null,null,null,null,null,null,null,null,null,null,null,null,null,null,null,null,null,null,null,null,null,null,null,null,null,"END","END","END","END"]
[]
[null,null,null,null,null,"END","END","END","END"]

{"sheet":"ListWet","index":1,"n_rows":140,"n_cols":110,"rows_kept":140,"cut":false,"hidden":false,"merged":[]}
[" ","Ver 2021-Mar-11   14:00",null,null,"SPRINKLER parts",null,null,null,null,null,null,null,null,null,null,null,null,null,null,"PTD = Painted",null,null,null,null,null,null,null,null,null,null,null,null,null,null,null,null,null,null,null,null,null,null,null,null,null,null,null,null,null,null,null,null,null,{"$f":"+T1","v":"PTD = Painted"},null,null,null,null,null,null,null,null,null,"Val*(1+x%)",null,null,null,null,null,null,null,null,null,null,null,null,null,null,null,null,null,null,null,null,null,null,null,null,null,null,null,null,null,null,null,null,null,null,null,null,null,null,null,null,null,null,null,null,null,"END"]
[null,null,null,"All Ranges must be sorted ALPHABETICALLY on 'Description'",null,null,null,null,null,null,null,null,null,null,null,null,null,null,null,null,null,null,null,null,null,null,null,null,null,null,null,null,null,null,null,null,null,null,"Change head format to  PN SSU/SSP QR/SR 135/155/200 K5.6 brass",null,null,"RASCO Pricing",null,null,null,null,null,null,null,null,null,null,null,null,null,null,null,null,null,null,null,null,null,null,null,null,null,null,null,null,null,null,null,null,null,null,null,null,null,null,null,null,null,null,null,null,null,null,null,null,null,null,null,null,null,null,null,null,null,null,null,null,null,null,null,null,null,null,null,"END"]
[null,"INDEX",null,null,null,"All Ranges must be sorted ALPHABETICALLY on 'Description'",null,null,null,"Index",null,"All Ranges must be sorted ALPHABETICALLY on 'Description'",null,null,null,null,null,"INDEX",null,null,null,null,null,null,null,null,null,"INDEX",null,"All Ranges must be sorted ALPHABETICALLY on 'Description'",null,"Increase date","CP increase",null,null,"INDEX",null,null,"PN SIN -Spray-Response-Temp K-factor-Material-Desc-Color- Conc-Recessed",null,null,null,null,"INDEX",null,null,"All Ranges must be sorted ALPHABETICALLY on 'Description'",null,null,null,null,"INDEX",null,null,null,null,null,"INDEX",null,null,null,"All Ranges must be sorted ALPHABETICALLY on 'Description'",null,null,null,null,null,null,"INDEX",null,null,"All Ranges must be sorted ALPHABETICALLY on 'Description'",null,null,null,null,null,"INDEX",null,null,"All Ranges must be sorted ALPHABETICALLY on 'Description'",null,null,null,null,null,null,null,"INDEX",null,null,"All Ranges must be sorted ALPHABETICALLY on 'Description'",null,null,null,"INDEX",null,null,"http://www.amesfirewater.com/",null,null,null,null,null,null,null,null,null,"INDEX","END"]
[null,null,null,null,null,"COMMENTS do not move with its cell",null,null,null,null,null,null,null,"MrkUp","Tax",null,null,null,null,null,null,null,null,null,null,null,null,null,null,null,null,"2018-05-01",0.36,null,null,null,null,null,null,null,null,null,null,null,null,null,"Updated Head Wrench $ 2018-10-23",null,null,null,null,null,null,null,null,null,null,null,null,null,null,null,null,null,null,null,null,null,null,null,null,"Index",null,null,null,null,null,null,null,null,null,null,null,null,null,null,null,null,null,null,null,"OUT-OF-SERVICE 2016-10-16",null,null,null,null,null,null,null,null,null,null,null,null,null,null,null,null,null,"END"]
[null,"Anti Freeze",null,null,null,"Anti-Freeze One Gallon of Water weighs 8.34lb",null,null,null,null,null,"Dry Riser Compressor & Components",null,{"$f":"4%+3%","v":7.0000000000000007E-2},7.2999999999999995E-2,null,null,"Anti Freeze",null,"Els/90's Tees et al","$","$","$",null,"$",null,null,"Anti Freeze",null,"Hangers",null,null,null,null,null,"Anti Freeze",null,null,"Heads",null,null,null,null,"Anti Freeze",null,null,"Wrenches",null,null,null,null,"Anti Freeze",null,"Mech-Tee",null,null,null,"Anti Freeze",null,null,"Pipe",{"$f":"(25+12)%","v":0.37},{"$f":"(25+12)%","v":0.37},0.37,{"$f":"(25+12)%","v":0.37},{"$f":"(25+12)%","v":0.37},{"$f":"(25+12)%","v":0.37},null,"Anti Freeze",null,null,"Valves/Drains/Gauges FDC",null,null,null,null,null,"Anti Freeze",null,null,"Weldlets Couplings & Nipples",null,{"$f":"(25+10)%","v":0.35},{"$f":"(25+12)%","v":0.37},{"$f":"(25+12)%","v":0.37},{"$f":"(25+12)%","v":0.37},{"$f":"(25+12)%","v":0.37},null,"Anti Freeze",null,null,"Misc Out-Of-Service",null,null,null,"Anti Freeze",null,null,"BFP's & IBR",0.1,0.1,0.1,0.1,0.1,0.1,0.1,0.1,null,"Anti Freeze","END"]
[null,"AWP & Rentals",null,null,null,"ChemName","Freight","Price",null,null,null,"Description","PriceStart","Price","Stax","Notes",null,"AWP & Rentals",null,null,"Black-S10","Black-S40","CPVC","DynaFlow-S10","Galvanised","Brass",null,"AWP & Rentals",null,"Description","Column1","$","increase","Notes",null,"AWP & Rentals",null,null,"Description","Column1","$","Notes",null,"AWP & Rentals",null,null,"Description","Column1","$","Notes",null,"AWP & Rentals",null,"Description","Column1","$",null,"AWP & Rentals",null,null,"inches","$","$","$","$","$","$",null,"AWP & Rentals",null,null,"Description","Type","$","Blank","Notes",null,"AWP & Rentals",null,null,"Description","Black S10","Black-S40","CPVC","DynaFlow-S10","DynaThread","Galvanised",null,"AWP & Rentals",null,null,"Description","$","$2",null,"AWP & Rentals",null,null,"Description","1.5\"","2.0\"","2.5\"","3.0\"","4.0\"","6.0\"","8.0\"","Notes",null,"AWP & Rentals","END"]
[null,null,null,null,null,"Glycerine 48% per gal",10,{"$f":"8+(8*7%)","v":8.56},null,null,null,"GAST 6LCF-10-M616NEX Riser-Mounted plus Mounting Kit",1100,{"$f":"(+M7*(1+$N$5))","v":1177},{"$f":"+Table6[[#This Row],[Price]]*$O$5","v":85.920999999999992},null,null,null,null,"Description","Black-S10","Black-S40","CPVC","DynaFlow-S10","Galvanised","Brass",null,null,null,"3\" Ring 3/8 button",null,{"$f":"0.78","v":0.78},{"$f":"+Table09[[#This Row],[$]]+(Table09[[#This Row],[$]]*$AG$4)","v":1.0608},null,null,null,null,null,"00 Manufacturer head painting -per color SETUP Fee",null,450,null,null,null,null,null,"Post Indicator Wrench (adjustable)",66.459999999999994,67,null,null,null,null,"Gasket 3.0 x 2 PTD Coupling Set",null,41.454000000000001,null,null,null,null,"Diam","Black-S10","Black-S40","CPVC","DynaFlow-S10","DynaThread","Galvanised",null,null,null,null,"Adapter addition 4X2-1/2X2-1/2 STRT SGL CLPR",null,86,null,null,null,null,null,null,"ANV Nipple 1-1/2x2 Blk Stl",null,6,null,null,null,null,null,null,null,null,null,null,null,null,null,null,null,"Ames In-Bldg Riser SS",null,null,null,null,878,1150,1520,null,null,null,"END"]
[null,"BFP & IBR's",null,null,null,"Glycerine Ferguson 48% per 55gal bbl",25,{"$f":"461+(462*7%)","v":493.34000000000003},null,null,null,"GAST RISER Mounted plus Mounting Kit",{"$f":"895+157+N(\"mount kit\")+25+N(\"bolts\")","v":1077},1152.3900000000001,{"$f":"+Table6[[#This Row],[Price]]*$O$5","v":84.124470000000002},"Info Page",null,"BFP & IBR's",null,"45 degree   0.75 inch",null,null,1.2,null,null,null,null,"BFP & IBR's",null,"Argco Flex Drop 48\"",null,22.15,22.15,null,null,"BFP & IBR's",null,null,"00 Manufacturer head painting -per head Fee",null,9,null,null,"BFP & IBR's",null,null,"RASCO FC (Concealed)",null,125,null,null,"BFP & IBR's",null,"Gasket 3.0 x 2-1/2 Coupling Set",null,36.015000000000001,null,"BFP & IBR's",null,null,0.5,{"$f":"2+(2*$BJ$5)","v":2.74},{"$f":"1.75*(1+$BK$5)","v":2.3975},{"$f":"0.5*(1+$BL$5)","v":0.68500000000000005},{"$f":"2+(2*$BM$5)","v":2.74},2,{"$f":"3+(3*$BO$5)","v":4.1099999999999994},null,"BFP & IBR's",null,null,"Adapter Swivel 2-1/2 FNST X 3 FNPT RB",null,74,null,null,null,"BFP & IBR's",null,null,"ANV Nipple 1-1/4x3 Blk Stl",null,{"$f":"3.9+(3.9*$CE$5)","v":5.2649999999999997},null,null,null,null,null,"BFP & IBR's",null,null,null,null,null,null,"BFP & IBR's",null,null,"BFP Ames 2000B Dbl/Chk BFP w/ Ball v/v",368,401,null,null,null,null,null,null,null,"BFP & IBR's","END"]
[null,null,null,null,null,"Glycerine FireFighter GL-48% per 55gal bbl",425,{"$f":"((750*4)+1600+N(\"freight per pallet of 4\"))/4","v":1150},null,null,null,"GAST Tankless 5LCA-46S-M550GX with PADS & Flex-Line 0.75HP",1000,1070,{"$f":"+Table6[[#This Row],[Price]]*$O$5","v":78.11},null,null,null,null,"45 degree   1.00 inch",null,2.89,1.25,null,2.9,null,null,null,null,"Clamp Beam 1/2\"",null,2.1800000000000002,{"$f":"+Table09[[#This Row],[$]]+(Table09[[#This Row],[$]]*$AG$4)","v":2.9648000000000003},null,null,null,null,null,"00 Paint Cap Cover Plastic prevent painted head  each",null,1.25,null,null,null,null,null,"RASCO G6 Head",null,165,null,null,null,null,"Gasket 4.0 x 3 Coupling for the ELS",null,55.125,null,null,null,null,0.75,{"$f":"2+(2*$BJ$5)","v":2.74},{"$f":"2*(1+$BK$5)","v":2.74},{"$f":"0.55*(1+$BL$5)","v":0.75350000000000017},{"$f":"2+(2*$BM$5)","v":2.74},2.25,{"$f":"4+(4*$BO$5)","v":5.48},null,null,null,null,"Ball Drip Valve 0.5\"",null,18,null,null,null,null,null,null,"Anvil  Gruvlok 7107 Plain End Sock-It 1.00\"",null,{"$f":"26+(26*$CE$5)","v":35.1},null,null,null,null,null,null,null,null,null,null,null,null,null,null,null,"BFP Ames 4000B RP BFP w/Ball v/v",540,null,null,null,null,null,null,null,null,null,"END"]
[null,"Compressor stuff",null,null,null,"Glycerine Thatcher per 55gal bbl 552 lbs",100,565,null,null,null,"GAST Tankless 6LCF-46S-M616NEX with PADS & Flex-Line 1.0HP",{"$f":"983+15+25","v":1023},1094.6100000000001,{"$f":"+Table6[[#This Row],[Price]]*$O$5","v":79.906530000000004},null,null,"Compressor stuff",null,"45 degree   1.25 inch",null,null,1.85,null,null,null,null,"Compressor stuff",null,"Clamp Beam 3/8\"",null,1,{"$f":"+Table09[[#This Row],[$]]+(Table09[[#This Row],[$]]*$AG$4)","v":1.3599999999999999},null,null,"Compressor stuff",null,null,"Dry Pendant One Foot Length = $150",null,150,null,null,"Compressor stuff",null,null,"RASCO RC1 Socket Recessed",null,148,null,null,"Compressor stuff",null,"Gasket spare Coupling Set",null,66.015000000000001,null,"Compressor stuff",null,null,1,{"$f":"1.1+(1.1*$BJ$5)","v":1.5070000000000001},{"$f":"1.62249+(1.62249*$BK$5)","v":2.2228113},{"$f":"1*(1+$BL$5)","v":1.37},{"$f":"1.1+(1.1*$BM$5)","v":1.5070000000000001},1.5,{"$f":"4.2+(4.2*$BO$5)","v":5.7540000000000004},null,"Compressor stuff",null,null,"Ball Valve 1.00\" domestic",null,39.31,null,null,null,"Compressor stuff",null,null,"Anvil  Gruvlok 7107 Plain End Sock-It 1.25\"",null,{"$f":"26+(26*$CE$5)","v":35.1},null,null,null,null,null,"Compressor stuff",null,null,null,null,null,null,"Compressor stuff",null,null,"BFP Ames C200  Backflow Assy w/ Butterfly v/v","wrong unit",{"$f":"1275","v":1275},1550,1690,1912,3133,5610,null,null,"Compressor stuff","END"]
[null,null,null,null,null,"Propylene Glycol 100% per gal",10,25,null,null,null,"General Air AD3400 Manual Desiccant-Filled Air Dryer $310 +$85 for Dessicant",395,422.65000000000003,{"$f":"+Table6[[#This Row],[Price]]*$O$5","v":30.853450000000002},"Manual",null,null,null,"45 degree   1.50 inch",null,null,2.48,null,null,null,null,null,null,"Clamp Beam adapter Erico",null,40.5,{"$f":"+Table09[[#This Row],[$]]+(Table09[[#This Row],[$]]*$AG$4)","v":55.08},null,null,null,null,null,"Escutcheon 0.5\" 2PC Recessed CP",null,1.25,null,null,null,null,null,"Tyc RF2 CONC",null,60,null,null,null,null,"Mech Tee PTD 6 x 1.5",null,36,null,null,null,null,1.25,{"$f":"1.75+(1.75*$BJ$5)","v":2.3975},{"$f":"2.2+(2.2*$BK$5)","v":3.0140000000000002},{"$f":"1.25*(1+$BL$5)","v":1.7125000000000001},{"$f":"1.75+(1.75*$BM$5)","v":2.3975},1.75,{"$f":"4.25+(4.25*$BO$5)","v":5.8224999999999998},null,null,null,null,"Ball Valve Gear operated  1\" to 2\" units",null,290,null,null,null,null,null,null,"Anvil  Gruvlok 7107 Plain End Sock-It 1.50\"",null,{"$f":"32+(32*$CE$5)","v":43.2},null,null,null,null,null,null,null,null,null,null,null,null,null,null,null,"BFP Ames C200  Backflow Assy w/ OS&Y v/v",null,null,null,null,null,null,3927,null,null,null,"END"]
[null,"Elz Teez",null,null,null,"Propylene Glycol 48% per gal",10,19,null,null,null,"General Air GLT1220200ACT Floor mounted with Tank, AMD & Pads 2.0HP",{"$f":"1500+N(\"Compressor\")+310+N(\"AMD\")+58+N(\"I added the price for four pads\")+25+N(\"mounting bolts\")","v":1893},2025.5100000000002,{"$f":"+Table6[[#This Row],[Price]]*$O$5","v":147.86223000000001},null,null,"Elz Teez",null,"45 degree   2.00 inch",null,null,3.25,null,null,null,null,"Elz Teez",null,"Clamp Beam Assy A",null,5,{"$f":"+Table09[[#This Row],[$]]+(Table09[[#This Row],[$]]*$AG$4)","v":6.8},null,null,"Elz Teez",null,null,"Escutcheon for Viking VK685 head Direct Order + Freight",null,10,null,null,"Elz Teez",null,null,"Tyc W-Type 1 EC25",null,39,null,null,"Elz Teez",null,"Mech Tee VIC 920 FIP 3x2",null,33,null,"Elz Teez",null,null,1.5,{"$f":"1.85+(1.85*$BJ$5)","v":2.5345},{"$f":"2.65+(2.65*$BK$5)","v":3.6304999999999996},{"$f":"1.75+(1.75*$BL$5)","v":2.3975},{"$f":"1.85+(1.85*$BM$5)","v":2.5345},1.85,{"$f":"4.5+(4.5*$BO$5)","v":6.165},null,"Elz Teez",null,null,"Butterfly or Gate Valve 6\" Flange x Flange w/HandWheel","6\" Wet",650,null,null,null,"Elz Teez",null,null,"Anvil Reducing Coupling RC-2 1x1/2\"",null,{"$f":"1.7+(1.7*$CE$5)","v":2.2949999999999999},null,null,null,null,null,"Elz Teez",null,null,null,null,null,null,"Elz Teez",null,null,"BFP Ames C300  Backflow Assy w/ Butterfly v/v",null,null,null,null,1950,null,null,null,null,"Elz Teez","END"]
[null,null,null,null,null,"Tyco Glycerine 30 gal (Ferguson)",null,{"$f":"872+N(\"DocFee\")+25+N(\"NoteFee\")+125+N(\"PumpFee\")+(1*55)","v":1077},null,null,null,"General Air GLT900150ACT Floor mounted with Tank, AMD & Pads 1.5HP",{"$f":"1500+N(\"Compressor\")+310+N(\"AMD\")+58+N(\"I added the price for four pads\")+25+N(\"mounting bolts\")","v":1893},2025.5100000000002,{"$f":"+Table6[[#This Row],[Price]]*$O$5","v":147.86223000000001},null,null,null,null,"45 degree   2.50 inch",null,null,6,null,null,null,null,null,null,"Clamp Beam Assy A B C & M",null,4.8,{"$f":"+Table09[[#This Row],[$]]+(Table09[[#This Row],[$]]*$AG$4)","v":6.5279999999999996},null,null,null,null,null,"Flexhead 2000 Series 1/2\" X 24",null,35," Hose is AH2  Bracket is AB2 see Hangars",null,null,null,null,"Tyc W-Type 12 TY-FRL REC",null,21.9,null,null,null,null,"Mech Tee VIC 920 FIP 3x2",null,33,null,null,null,null,2,{"$f":"2.5+(2.5*$BJ$5)","v":3.4249999999999998},{"$f":"4.9+(4.9*$BK$5)","v":6.713000000000001},{"$f":"2.7+(2.7*$BL$5)","v":3.6990000000000003},{"$f":"2.51+(2.51*$BM$5)","v":3.4386999999999999},2.5,{"$f":"5+(5*$BO$5)","v":6.85},null,null,null,null,"Butterfly Valve Grooved  2\" 728",null,302,null,null,null,null,null,null,"Coup Grv E-Gskt 6 x 4 ",null,{"$f":"105+(105*$CE$5)","v":141.75},null,null,null,null,null,null,null,null,null,null,null,null,null,null,null,"BFP Ames LF2000 BFG",{"$f":"+(290*(1+$CV$5))","v":319},null,{"$f":"1210*(1+$CX$5)","v":1331},{"$f":"1500*(1+$CY$5)","v":1650.0000000000002},{"$f":"1900*(1+$CZ$5)","v":2090},null,null,null,null,null,"END"]
[null,"Hangars",null,null,null,null,null,null,null,null,null,"General Air KVP4x4 Vibration Isolation Pads. Price per Pkt of 4",{"$f":"17*4","v":68},72.760000000000005,{"$f":"+Table6[[#This Row],[Price]]*$O$5","v":5.3114800000000004},"Info Page",null,"Hangars",null,"45 degree   3.00 inch",null,null,8.25,null,null,null,null,"Hangars",null,"Clamp Beam Erico 300 or 310",null,2.25,{"$f":"+Table09[[#This Row],[$]]+(Table09[[#This Row],[$]]*$AG$4)","v":3.06},null,null,"Hangars",null,null,"Flexhead 2000 Series 1/2\" X 36",null,41,null,null,"Hangars",null,null,"Tyc W-Type 18 LF2 CONC",49.22,60,null,null,"Hangars",null,"Mech Tee VIC 920 FIP 4x1",null,33,null,"Hangars",null,null,2.5,{"$f":"4+(4*$BJ$5)","v":5.48},{"$f":"4.47708+(4.47708*$BK$5)","v":6.1335996000000002},{"$f":"4.7+(4.7*$BL$5)","v":6.4390000000000001},{"$f":"4+(4*$BM$5)","v":5.48},4,{"$f":"7+(7*$BO$5)","v":9.59},null,"Hangars",null,null,"Butterfly Valve Grooved  3\"",null,231,null,null,null,"Hangars",null,null,"Coupler 4\" threaded",null,{"$f":"100+(100*$CE$5)","v":135},null,null,null,null,null,"Hangars",null,null,null,null,null,null,"Hangars",null,null,"Deringer D200DC VAL F",{"$f":"+(1000*(1+$CV$5))","v":1100},null,{"$f":"1295*(1+$CX$5)","v":1424.5000000000002},null,null,null,null,null,null,"Hangars","END"]
[null,"Heads",null,null,null,"Disposal Fee",null,null,null,null,null,"General Air OL616-100-BCT (230v) 1HP Tank 3 phse Magnetic Starter+AMD",{"$f":"2385+300+330","v":3015},3226.05,{"$f":"+Table6[[#This Row],[Price]]*$O$5","v":235.50165000000001},null,null,"Heads",null,"90 EL 0.75\" & 0.25",null,null,0.7,null,null,0.25,null,"Heads",null,"Clamp B-Line B3140- 1.50\" Std Pipe Clamp",null,2.35,{"$f":"+Table09[[#This Row],[$]]+(Table09[[#This Row],[$]]*$AG$4)","v":3.1960000000000002},null,null,"Heads",null,null,"Flexhead 2000 Series 1/2\" X 72",null,57,null,null,"Heads",null,null,"Tyc W-Type 2 ESFR-1",null,30,null,null,"Heads",null,"Mech Tee VIC 920 FIP 4x2",null,43,null,"Heads",null,null,3,{"$f":"3+(3*$BJ$5)","v":4.1099999999999994},{"$f":"8.75+(8.75*$BK$5)","v":11.987500000000001},{"$f":"7.15+(7.15*$BL$5)","v":9.7955000000000005},{"$f":"4+(4*$BM$5)","v":5.48},4,{"$f":"9+(9*$BO$5)","v":12.33},null,"Heads",null,null,"Butterfly Valve Grooved  4\"",null,242,null,null,null,"Heads",null,null,"Coupling DI 1.0\"",null,5.4,null,null,null,null,null,"Heads",null,null,null,null,null,null,"Heads",null,null,"Fireloop Expansion joints",null,630,699,895,1125,2155,null,null,null,"Heads","END"]
[null,null,null,null,null,"$100 Document Creation Fee and $125 per drum",null,null,null,null,null,"General Air OLTseries Floor mounted with Tank, AMD & Pads",{"$f":"2175+N(\"Compressor\")+200+N(\"AMD\")+68+N(\"4xPads\")+25+N(\"mounting bolts\")","v":2468},2640.76,{"$f":"+Table6[[#This Row],[Price]]*$O$5","v":192.77548000000002},"Info Page",null,null,null,"90 EL 1.00\" IBDI9G",null,2.5,1.5,null,null,null,null,null,null,"Clamp Pipe EQ UL FM",null,4.25,{"$f":"+Table09[[#This Row],[$]]+(Table09[[#This Row],[$]]*$AG$4)","v":5.78},null,null,null,null,null,"Flexhead 2000 Series 3/4\" X 72",null,60,null,null,null,null,null,"Tyc W-Type 3 EC/ELO",null,50.3,null,null,null,null,"Mech Tee VIC 920 FIP 5x2",null,42,null,null,null,null,3.5,{"$f":"4+(4*$BJ$5)","v":5.48},{"$f":"8+(8*$BK$5)","v":10.96},{"$f":"8+(8*$BL$5)","v":10.96},{"$f":"4.65+(4.65*$BM$5)","v":6.3705000000000007},4.6500000000000004,{"$f":"13+(13*$BO$5)","v":17.809999999999999},null,null,null,null,"Check Valve 4\" NOT PERMITTED",null,0,null,null,null,null,null,null,"Coupling DI 1.25\"",null,8,null,null,null,null,null,null,null,null,null,null,null,null,null,null,null,"Rasco Ready-Riser 1MPLL",{"$f":"+(425*(1+$CV$5))","v":467.50000000000006},null,null,null,null,null,null,null,null,null,"END"]
[null,"Mech-Tee",null,null,null,"$225 Stop Fee per drum, plus 30 cents per gal to pump",null,null,null,null,null,"General Air QL 25050ACT Floor mounted QUIET with Tank, AMD & Pads",{"$f":"2876+N(\"Compressor\")+310+N(\"AMD\")+68+N(\"I added the price for four pads\")+25+N(\"mounting bolts\")","v":3279},3508.53,{"$f":"+Table6[[#This Row],[Price]]*$O$5","v":256.12268999999998},"Brochure",null,"Mech-Tee",null,"90 EL 1.00\" x 1/2 RED DI",null,2.5099999999999998,2,null,null,null,null,"Mech-Tee",null,"Clamp StandPipe Globe Pipe Hanger 4\" each:",null,6,{"$f":"+Table09[[#This Row],[$]]+(Table09[[#This Row],[$]]*$AG$4)","v":8.16},null,null,"Mech-Tee",null,null,"FPPI Escutcheon 401 Head Skirt and Cover for a pendant head Chrome F01600",null,{"$f":"0.75+0.75","v":1.5},"2018-10-22",null,"Mech-Tee",null,null,"Tyc W-Type 4 EC14/EC11",null,12.68,null,null,"Mech-Tee",null,"Mech Tee VIC 920 Grvd outlet 2 x 1.25",null,23,null,"Mech-Tee",null,null,4,{"$f":"6.46+(6.46*$BJ$5)","v":8.850200000000001},{"$f":"11.25+(11.25*$BK$5)","v":15.4125},{"$f":"8.25+(8.25*$BL$5)","v":11.3025},{"$f":"4.65+(4.65*$BM$5)","v":6.3705000000000007},4.6500000000000004,{"$f":"13+(13*$BO$5)","v":17.809999999999999},null,"Mech-Tee",null,null,"Check Valve Brass 1\"",null,22,null,null,null,"Mech-Tee",null,null,"Coupling DI 1.50\"",null,{"$f":"3.25+(3.25*$CE$5)","v":4.3875000000000002},null,null,null,null,null,"Mech-Tee",null,null,null,null,null,null,"Mech-Tee",null,null,"Repair Kit 800M4 Ck 1.5\" - 0.74\" Vacuum Breaker",{"$f":"+(25*(1+$CV$5))","v":27.500000000000004},null,null,null,null,null,null,null,null,"Mech-Tee","END"]
[null,"Misc Parts & Access.",null,null,null,"$250 Sample Fee and Pump fee $1.05 per gal engine oil",null,null,null,null,null,"General Air QL500100ACT Floor mounted QUIET with Tank, AMD & Pads",{"$f":"2876+N(\"Compressor\")+310+N(\"AMD\")+68+N(\"I added the price for four pads\")+25+N(\"mounting bolts\")","v":3279},3508.53,{"$f":"+Table6[[#This Row],[Price]]*$O$5","v":256.12268999999998},"Manual",null,"Misc Parts & Access.",null,"90 EL 1.00\" x 3/4 RED DI",null,2.25,null,null,null,null,null,"Misc Parts & Access.",null,"Clamp Strut 1.00\" IPS Plated",null,1.75,3,null,null,"Misc Parts & Access.",null,null,"FPPI Escutcheon 401 Head Skirt and Cover for a pendant head White",null,{"$f":"0.75+0.75","v":1.5},"2018-10-22",null,"Misc Parts & Access.",null,null,"Tyc W-Type 6 1/2 & 3/4",null,31,null,null,"Misc Parts & Access.",null,"Mech Tee VIC 920 Grvd outlet 3 x 2",null,33,null,"Misc Parts & Access.",null,null,6,{"$f":"8.5+(8.5*$BJ$5)","v":11.645},{"$f":"20+(20*$BK$5)","v":27.4},{"$f":"15+(15*$BL$5)","v":20.55},{"$f":"8.5+(8.5*$BM$5)","v":11.645},8.5,{"$f":"20+(20*$BO$5)","v":27.4},null,"Misc Parts & Access.",null,null,"Check Valve Brass 2\"",null,53,null,null,null,"Misc Parts & Access.",null,null,"Coupling DI 2.00\"",null,16.600000000000001,null,null,null,null,null,"Misc Parts & Access.",null,null,null,null,null,null,"Misc Parts & Access.",null,null,"Repair Kit Watts RK 007 M1T DC Backflow",{"$f":"+(125*(1+$CV$5))","v":137.5},null,null,null,null,null,null,null,null,"Misc Parts & Access.","END"]
[null,null,null,null,null,"so:",null,null,null,null,null,"General Air SWP60304 Pressure Control MinOn-13 MaxOff-18 Dif 6-16psi",120,128.4,{"$f":"+Table6[[#This Row],[Price]]*$O$5","v":9.3732000000000006},"GenAir",null,null,null,"90 EL 1.25\"",null,8.99,2,null,null,null,null,null,null,"Clamp Strut 1.25\" IPS Plated",null,2.25,3.75,null,null,null,null,null,"FPPI Head Guard 4.25\" Cage",0.91,1.25,null,null,null,null,null,"Tyc W-Type 7 SOCKET TYB",null,50,null,null,null,null,"Mech Tee VIC 920 Grvd outlet 3.5 x 2",null,125,null,null,null,null,8,{"$f":"10+(10*$BJ$5)","v":13.7},{"$f":"36+(36*$BK$5)","v":49.32},{"$f":"30+(30*$BL$5)","v":41.1},null,null,null,null,null,null,null,"Check Valve Brass 4\"",null,83,null,null,null,null,null,null,"Coupling DI 2.50\"",null,16.600000000000001,null,null,null,null,null,null,null,null,null,null,null,null,null,null,null,"WAF Style BFV",0,0,0,0,300,0,0,null,null,null,"END"]
[null,"Pipe",null,null,null,"      $10 per gallon waste disposal fee (6.25+2(1.10))",null,null,null,null,null,"Hubbell-Furnas 69HAU3 Pressure Control MinOn-14 MaxOff-80 Dif 6-16psi",250,267.5,{"$f":"+Table6[[#This Row],[Price]]*$O$5","v":19.5275},"Hubbell",null,"Pipe",null,"90 EL 1.25\" x 1.0\" RED DI",null,3.3,null,null,null,null,null,"Pipe",null,"Clamp Strut 1.50\" IPS Plated",null,2.5,3.75,null,null,"Pipe",null,null,"FPPI Head Guard one piece, for recessed sprinkler F0261000",null,1.7,null,null,"Pipe",null,null,"Tyc W-Type 8 K17",null,60.77,null,null,"Pipe",null,"Mech Tee VIC 920 Grvd outlet 4 x 2",null,34,null,"Pipe",null,null,null,null,null,null,null,null,null,null,"Pipe",null,null,"CLA-Val 55L-60 100-300 psi UL half inch for 90A-21",null,750,null,null,null,"Pipe",null,null,"Coupling DI 3.00\"",null,16.600000000000001,null,null,null,null,null,"Pipe",null,null,null,null,null,null,"Pipe",null,null,"Watts 007QT BACKFLOW W/BV",{"$f":"250*(1+$CV$5)","v":275},{"$f":"250*(1+$CW$5)","v":275},{"$f":"580*(1+$CX$5)","v":638},{"$f":"580*(1+$CY$5)","v":638},null,null,null,null,null,"Pipe","END"]
[null,null,null,null,null,{"$f":"(250/40)+1.1+1.1","v":8.4499999999999993},null,null,null,null,null,"TYCO Rapid Response Model RCP-1 P/N 523102601 1.0\"",5950,6000,{"$f":"+Table6[[#This Row],[Price]]*$O$5","v":438},null,null,null,null,"90 EL 1.25\" x 1/2 RED DI",null,3.75,null,null,null,null,null,null,null,"Clamp Strut 2.00\" IPS Plated",null,null,4.5,null,null,null,null,null,"FPPI Head Guard TWO piece, adjustable base",null,2.75,null,null,null,null,null,"Tyc W-Type 9 FLAT",null,27,null,null,null,null,"Mech Tee VIC 920 Grvd outlet 4 x 3",null,38,null,null,null,null,null,null,null,null,null,null,null,null,null,null,null,"CLA-Val 55L-60 20-200 psi UL half inch for 90A-21",null,565,null,null,null,null,null,null,"Coupling Flex VIC 004 1\"",null,6.25,null,null,null,null,null,null,null,null,null,null,null,null,null,null,null,"WILKINS 350ABG DCA W/VIC BFV G X G",null,null,null,null,{"$f":"1600*(1+$CZ$5)","v":1760.0000000000002},null,null,null,null,null,"END"]
[null,"Valves Drains FDC",null,null,null,null,null,null,null,null,null,"TYCO Rapid Response Model RCP-1 P/N 523102602 1.50\"",7150,7200,{"$f":"+Table6[[#This Row],[Price]]*$O$5","v":525.6},null,null,"Valves Drains FDC",null,"90 EL 1.25\" x 3/4 RED DI",null,4,null,null,null,null,null,"Valves Drains FDC",null,"Clamp Strut 3.00\" IPS Plated",null,null,4.75,null,null,"Valves Drains FDC",null,null,"Head box 03",5.32,5.5,null,null,"Valves Drains FDC",null,null,"Tyc W-Type10 SOCKET TY-L",null,50.3,null,null,"Valves Drains FDC",null,"Mech Tee VIC 920 Grvd outlet 6 x 2",null,43,null,"Valves Drains FDC",null,null,null,null,null,null,null,null,null,null,"Valves Drains FDC",null,null,"CLA-Val 90A-21Grv-x-Grv 4 inch",null,3000,2909,null,null,"Valves Drains FDC",null,null,"Coupling Flex VIC 004 1.5\"",null,9,null,null,null,null,null,"Valves Drains FDC",null,null,null,null,null,null,"Valves Drains FDC",null,null,null,null,null,null,null,null,null,null,null,null,"Valves Drains FDC","END"]
[null,null,null,null,4,"Propylene Glycol",165,{"$f":"+E23*G23","v":660},null,null,null,"VIC Firelock 757 Air Trim",540,{"$f":"(+M23*(1+$N$5))","v":577.80000000000007},{"$f":"+Table6[[#This Row],[Price]]*$O$5","v":42.179400000000001},"Info Page",null,null,null,"90 EL 1.50\"",null,7.7,2.7,null,null,null,null,null,null,"Clamp TolCo 10012 1.25x1.0 Fast Clamp",null,7.46,{"$f":"+Table09[[#This Row],[$]]+(Table09[[#This Row],[$]]*$AG$4)","v":10.1456},null,null,null,null,null,"Head box 06  head cabinet 14.5 x 2.5 x 5.25\"",7.99,16,null,null,null,null,null,"Tyc W-Type-18 Head",null,{"$f":"58+2","v":60},null,null,null,null,"Mech Tee VIC 920 Grvd outlet 6 x 3",null,49,null,null,null,null,null,null,null,null,null,null,null,null,null,null,null,"CLA-Val 90A-21Grv-x-Grv 4 inch with Epoxy",null,{"$f":"3000+350","v":3350},null,null,null,null,null,null,"Coupling Flex VIC 004 2\"",null,8.25,null,null,null,null,null,null,null,null,null,null,null,null,null,null,null,"https://www.watts.com/",null,null,null,null,null,null,null,null,null,null,"END"]
[null,"Weldlets & Couplings",null,null,null,null,null,null,null,null,null,"zSpare",null,null,null,null,null,"Weldlets & Couplings",null,"90 EL 1.50\" x .50\" RED DI",null,4.5999999999999996,null,null,null,null,null,"Weldlets & Couplings",null,"Hanger Ring 1.00\"",null,0.5,{"$f":"+Table09[[#This Row],[$]]+(Table09[[#This Row],[$]]*$AG$4)","v":0.67999999999999994},null,null,"Weldlets & Couplings",null,null,"Head box 12 head cabinet  14.5 x 4\" x 5.25\"",9.1,16,null,null,"Weldlets & Couplings",null,null,"VIC V27-1 3/4\" (Recessed)",null,89,null,null,"Weldlets & Couplings",null,"Mech Tee VIC 920 Grvd outlet 6 x 4",null,54,null,"Weldlets & Couplings",null,null,null,null,null,null,null,null,null,null,"Weldlets & Couplings",null,null,"Drain AFG Test and Drain Model 1000 1.0\"",null,160,null,null,null,"Weldlets & Couplings",null,null,"Coupling Flex VIC 004 2.5\"",null,10,null,null,null,null,null,"Weldlets & Couplings",null,null,null,null,null,null,"Weldlets & Couplings",null,null,null,null,null,null,null,null,null,null,null,null,"Weldlets & Couplings","END"]
[null,"Wrenches",null,null,1,"Doc creation/Manifest Fee each drum",27.5,{"$f":"+E25*G25","v":27.5},null,null,null,null,null,null,null,null,null,"Wrenches",null,"90 EL 2.00\"",null,7.5,3.7,null,null,null,null,"Wrenches",null,"Hanger Ring 1.25\"",null,0.5,{"$f":"+Table09[[#This Row],[$]]+(Table09[[#This Row],[$]]*$AG$4)","v":0.67999999999999994},null,null,"Wrenches",null,null,"Head box 24 head cabinet  14.5 x 4\" x 8.5\"",null,15,null,null,"Wrenches",null,null,"VIC V27-2 (semi-R)",null,79,null,null,"Wrenches",null,"Mech Tee VIC 920 Grvd outlet 8 x 2.5",null,74,null,"Wrenches",null,null,null,null,null,null,null,null,null,null,"Wrenches",null,null,"Drain Inspector Test 1011T",null,236,null,null,null,"Wrenches",null,null,"Coupling Flex VIC 004 3\"",null,14,null,null,null,null,null,"Wrenches",null,null,null,null,null,null,"Wrenches",null,null,null,null,null,null,null,null,null,null,null,null,"Wrenches","END"]
[null,null,null,null,4,"Drum collection fee 0-50 miles",35,{"$f":"+E26*G26","v":140},null,null,null,null,null,null,null,null,null,null,null,"90 EL 2.50\"",null,9.6999999999999993,7.25,null,null,null,null,null,null,"Hanger Ring 1.5 x 6 IPS   each",null,{"$f":"0.88*25","v":22},{"$f":"+Table09[[#This Row],[$]]+(Table09[[#This Row],[$]]*$AG$4)","v":29.92},null,null,null,null,null,"Head Extenders Brass 0.5x 1.0 inch long",null,5.5,null,null,null,null,null,"VIC V27-3 1/2\" (Open) (Upright)",null,{"$f":"494/6","v":82.333333333333329},null,null,null,null,"Mech Tee VIC 920 Grvd outlet 8 x 3",null,78,null,null,null,null,null,null,null,null,null,null,null,null,null,null,null,"Drain Inspector Test 2511A w/ 0.5 gxg orifice",null,354,null,null,null,null,null,null,"Coupling Flex VIC 004 4\"",null,20,null,null,null,null,null,null,null,null,null,null,null,null,null,null,null,null,null,null,null,null,null,null,null,null,null,null,"END"]
[null,null,null,null,null,"Sub total",null,{"$f":"SUM(H23:H26)","v":827.5},null,null,null,null,null,null,null,null,null,null,null,"90 EL 3.00\"",null,12,10,null,null,null,null,null,null,"Hanger Ring 1.50\"",null,0.75,{"$f":"+Table09[[#This Row],[$]]+(Table09[[#This Row],[$]]*$AG$4)","v":1.02},null,null,null,null,null,"Head Extenders Brass 0.5x 1/2 inch long",null,5.5,null,null,null,null,null,"VIC V2xx socket   (Pendant)",null,125,null,null,null,null,"Mech Tee VIC 920 Grvd outlet 8 x 4",null,81,null,null,null,null,null,null,null,null,null,null,null,null,null,null,null,"Drain Inspector Test w/relief v/v 0.5\" orifice",null,180,null,null,null,null,null,null,"Coupling Sprink CPVC 1-1/4 cpvc",null,{"$f":"0+(0*$CE$5)","v":0},{"$f":"1.69+(1.69*$CF$5)","v":2.3152999999999997},null,null,null,null,null,null,null,null,null,null,null,null,null,null,null,null,null,null,null,null,null,null,null,null,null,"END"]
[null,null,null,null,1,"Energy, Insurance & Security fee",9.5000000000000001E-2,{"$f":"H27*G28","v":78.612499999999997},null,null,null,"Cannot INSERT rows move the lower table",null,null,null,null,null,null,null,"90 EL 4.00\"",null,16.2,null,null,null,null,null,null,null,"Hanger Ring 2.00\"",null,0.75,{"$f":"+Table09[[#This Row],[$]]+(Table09[[#This Row],[$]]*$AG$4)","v":1.02},null,null,null,null,null,"Head Extenders Brass 0.5x 2.0 inch long",null,11,null,null,null,null,null,"VIC V33 conc",null,70,null,null,null,null,"Mech Tee VIC 922 1.25 x 1",null,6.64,null,null,null,null,null,null,null,null,null,null,null,null,null,null,null,"Drain VIC #10 90 Ell  2.0x1",null,27,null,null,null,null,null,null,"Flex Coupling Grooved 4\"",null,20,null,null,null,null,null,null,null,null,null,null,null,null,null,null,null,null,null,null,null,null,null,null,null,null,null,null,"END"]
[null,null,null,null,null,null,null,{"$f":"+H28+H27","v":906.11249999999995},null,null,null,null,null,null,null,null,null,null,null,"Anvil K-9 drain cap Grooved",null,40,null,null,null,null,null,null,null,"Hanger Ring 2.50\"",null,1,{"$f":"+Table09[[#This Row],[$]]+(Table09[[#This Row],[$]]*$AG$4)","v":1.3599999999999999},null,null,null,null,null,"Head Extenders Brass 0.5x 3/4 inch long",null,4.25,null,null,null,null,null,"VIC V34-1  3/4\" (open)",54.1,55,null,null,null,null,"Mech Tee VIC 922 2.50 x 1.00",null,8,null,null,null,null,null,null,null,null,null,null,null,null,null,null,null,"Drain VIC #10 90 Ell  2.5x1",null,97,null,null,null,null,null,null,"Grooved Coupling 1.25\"",null,{"$f":"18.22+(18.22*$CE$5)","v":24.596999999999998},null,null,null,null,null,null,null,null,null,null,null,null,null,null,null,null,null,null,null,null,null,null,null,null,null,null,"END"]
[null,"Index",null,null,null,"per barrell",null,{"$f":"+H29/4","v":226.52812499999999},null,null,null,"FHT = Female Hose Thread",null,null,null,null,null,"Index",null,"Bushing 0.50\" x 0.25\" LF Brass",null,null,null,null,null,2.25,null,"Index",null,"Hanger Ring 3.00\"",null,1,{"$f":"+Table09[[#This Row],[$]]+(Table09[[#This Row],[$]]*$AG$4)","v":1.3599999999999999},null,null,"Index",null,null,"R 1015 0.50\" SSP SR 165 K5.6 Brass w/escutcheon",null,{"$f":"8+N(\"Escutcheon 2-pce\")+1.5","v":9.5},null,null,"Index",null,null,"VIC V34-2  3/4\" (Recessed)",79.67,80,null,null,"Index",null,"Mech Tee VIC 922 2.50 x 1.25",null,24.192,null,"Index",null,null,null,null,null,null,null,null,null,null,"Index",null,null,"Drain VIC #10 90 Ell  3.0x1",null,124,null,null,null,"Index",null,null,"Grooved Coupling 1.50\"",null,{"$f":"18.68+(18.68*$CE$5)","v":25.218},null,null,null,null,null,"Index",null,null,null,null,null,null,"Index",null,null,null,null,null,null,null,null,null,null,null,null,"Index","END"]
[null,null,null,null,null,null,null,null,null,null,null,"FIP = Female Iron Pipe=FPT",null,null,null,null,null,null,null,"Bushing 1.00\" x 0.50\"",null,2.5,null,null,null,null,null,null,null,"Hanger Ring 4.00\"",null,1.07,{"$f":"+Table09[[#This Row],[$]]+(Table09[[#This Row],[$]]*$AG$4)","v":1.4552},null,null,null,null,null,"RA F-1FR56 155 P1W 0.5\" NPT Brass White Pendent Recessed head only",null,7.5,null,null,null,null,null,"VIC V36 (Recessed) (Concealed) Dry Head",55,55,null,null,null,null,"Mech Tee VIC 922 2.50 x 1.5 ",null,24.192,null,null,null,null,null,null,null,null,null,null,null,null,null,null,null,"Drain VIC #10 90 Ell  4.0x1",null,125,null,null,null,null,null,null,"Grooved Coupling 3\"",null,{"$f":"27.99+(27.99*$CE$5)","v":37.786499999999997},null,null,null,null,null,null,null,null,null,null,null,null,null,null,null,null,null,null,null,null,null,null,null,null,null,null,"END"]
[null,null,null,null,null,null,null,null,null,null,null,"MHT = Male Hose Thread",null,null,null,null,null,null,null,"Bushing 1.00\" x 0.50\" Blk Hex",null,3.5,null,null,null,null,null,null,null,"Hanger Ring 6.00\"",null,2.04,{"$f":"+Table09[[#This Row],[$]]+(Table09[[#This Row],[$]]*$AG$4)","v":2.7744},null,null,null,null,null,"RA F-1FR56 155 P1W Brass White Pendent Recessed w/escut & collar",null,17,null,null,null,null,null,"VIC V38-4 1/2\" (Socket) (Concealed)",79.67,80,null,null,null,null,"Mech Tee VIC 922 2.50 x 2",null,26.321999999999999,null,null,null,null,null,null,null,null,null,null,null,null,null,null,null,"Drum drip galv 1\" including sign @ $1.00",null,160,null,null,null,null,null,null,"Grooved Coupling 3x2.50\" PTD",null,{"$f":"45+(42*$CE$5)","v":59.7},null,null,null,null,null,null,null,null,null,null,null,null,null,null,null,null,null,null,null,null,null,null,null,null,null,null,"END"]
[null,null,null,null,null,"Code of Federal Regulations",null,null,null,null,null,"NPT=National Pipe thread",null,null,null,null,null,null,null,"Bushing 1.00\" x 1.50\" Blk Hex",null,3.5,null,null,null,null,null,null,null,"Hanger Ring Afcon 303 Trapeze",null,3.18,{"$f":"+Table09[[#This Row],[$]]+(Table09[[#This Row],[$]]*$AG$4)","v":4.3247999999999998},null,null,null,null,null,"RA F-1SR56 155 Brass Pendent w/escut",null,{"$f":"5+8.66","v":13.66},null,null,null,null,null,"zSpare 01",null,999,null,null,null,null,"Mech Tee VIC 922 3.00 x 1 ",null,19.872,null,null,null,null,null,null,null,null,null,null,null,null,null,null,null,"FDC Caps Brass Female 1.5\" NST Thread",null,18,null,null,null,null,null,null,"Grooved Coupling 4\"",null,{"$f":"27.99+(27.99*$CE$5)","v":37.786499999999997},null,null,null,null,null,null,null,null,null,null,null,null,null,null,null,null,null,null,null,null,null,null,null,null,null,null,"END"]
[null,null,null,null,null,"AKA Administrative Law",null,null,null,null,null,"NSF = National Fine",null,null,null,null,null,null,null,"Bushing 1.00\" x 3/4\"",1,2.5009999999999999,0.75,3,4,8,null,null,null,"Hanger Side STL Beam 1.5\" each",null,88,{"$f":"+Table09[[#This Row],[$]]+(Table09[[#This Row],[$]]*$AG$4)","v":119.68},null,null,null,null,null,"RA F-1SR56 155 HSW Brass w/escut",null,{"$f":"17+9","v":26},null,null,null,null,null,{"$f":"SUBTOTAL(103,Table07[Description]) & \" Items\"","v":"27 Items"},null,null,{"$f":"SUBTOTAL(103,Table07[Notes])","v":0},null,null,null,"Mech Tee VIC 922 3.00 x 1.25",null,25.164000000000001,null,null,null,null,null,null,null,null,null,null,null,null,null,null,null,"FDC Caps Brass Female 2.5\" NST Thread",null,21,null,null,null,null,null,null,"Grooved Reducing Coupling 4\" x 3\"",null,{"$f":"51.66+(51.66*$CE$5)","v":69.740999999999985},null,null,null,null,null,null,null,null,null,null,null,null,null,null,null,null,null,null,null,null,null,null,null,null,null,null,"END"]
[null,null,null,null,null,null,"SORT",null,null,null,null,null,null,null,null,null,null,null,null,"Bushing 1.25\" x 1.00\"",null,3.5,0.95,null,null,null,null,null,null,"Hanger Stand off 2H CPVC",null,1.18,{"$f":"+Table09[[#This Row],[$]]+(Table09[[#This Row],[$]]*$AG$4)","v":1.6048},null,null,null,null,null,"RA F-1SR56 155 White HSW w/escut",null,{"$f":"20+1.5","v":21.5},null,null,null,null,null,"All Ranges must be sorted ALPHABETICALLY",null,null,null,null,null,null,"Mech Tee VIC 922 3.00 x 1.5",null,25.164000000000001,null,null,null,null,null,null,null,null,null,null,null,null,null,null,null,"FDC Caps Metal Breakable Female 2.5\" $3.25 ea. Comes as a pair (2)",null,6.5,null,null,null,null,null,null,"Nipple 1.0\"x2\" BNGK",null,4,null,null,null,4,null,null,null,null,null,null,null,null,null,null,null,null,null,null,null,null,null,null,null,null,null,null,"END"]
[null,null,null,null,null,null,"Black-S10",null,null,null,null,null,null,null,null,null,null,null,null,"Bushing 1.25\" x 3/4\"",null,3.5,0.95,null,null,null,null,null,null,"Hanger TolCo  FG 200 1\" Band hanger PGLfor CPVC",null,0.3,{"$f":"+Table09[[#This Row],[$]]+(Table09[[#This Row],[$]]*$AG$4)","v":0.40799999999999997},null,null,null,null,null,"RA F-1SR56 155 White PENDANT w/escut",null,{"$f":"15+1.5","v":16.5},null,null,null,null,null,null,null,null,null,null,null,null,"Mech Tee VIC 922 3.00 x 2",null,28.943999999999999,null,null,null,null,null,null,null,null,null,null,null,null,null,null,null,"FDC Caps Plastic Breakable Argco 2.5\" $1.20 ea. Comes as a pair (2)",null,2.4,null,null,null,null,null,null,"Nipple 1.0\"x3\" BNGM",null,4.25,null,null,null,4.25,null,null,null,null,null,null,null,null,null,null,null,null,null,null,null,null,null,null,null,null,null,null,"END"]
[null,null,null,null,null,{"$f":"872/30","v":29.066666666666666},"Black-S40",null,null,null,null,null,null,null,null,null,null,null,null,"Bushing 1.50\" x 1.00\"",null,4,0.95,null,null,null,null,null,null,"HangerMate Threaded Rod Anchoring System wood  EZG650 & EZG670 Anchors",null,0,{"$f":"+Table09[[#This Row],[$]]+(Table09[[#This Row],[$]]*$AG$4)","v":0},null,null,null,null,null,"RA G6 Cover plate. QR EC-Lhazard",null,100,"Doubled to account for escutcheons",null,null,null,null,null,null,{"$f":"76.506+(76.506*0.0725)","v":82.052684999999997},null,null,null,null,"Mech Tee VIC 922 4.00 x 1.25",null,27.54,null,null,null,null,null,null,null,null,null,null,null,null,null,null,null,"FDC Caps Plastic Breakable Female 2.5\" $1.53 ea. Comes as a pair (2)",null,3,null,null,null,null,null,null,"Nipple 1.0\"x3.5\" BNGN",null,4.25,null,null,null,null,null,null,null,null,null,null,null,null,null,null,null,null,null,null,null,null,null,null,null,null,null,null,"END"]
[null,null,null,null,null,null,"CPVC",null,null,null,null,null,null,null,null,null,null,null,null,"Bushing 1.50\" x 1.25\"",null,4.25,0.95,null,null,null,null,null,null,"Sammy Wood 3/8 horiz sidewinder SWG20 per case of 100",null,{"$f":"109*2.25","v":245.25},{"$f":"+Table09[[#This Row],[$]]+(Table09[[#This Row],[$]]*$AG$4)","v":333.53999999999996},"Link",null,null,null,null,"RA G-F1W Collar & Escutcheon for F-1FR56 P1W",null,2,null,null,null,null,null,null,null,null,null,null,null,null,"Mech Tee VIC 922 4.00 x 1.5",null,28.728000000000002,null,null,null,null,null,null,null,null,null,null,null,null,null,null,null,"FDC Croker 2-Way Clapper Inlet Grooved 6010 COMPLETE",null,{"$f":"+(433+110)+((433+110)*6%)+N(\"2018-05-02 Steel increase\")","v":575.58000000000004},null,null,null,null,null,null,"Nipple 1.0\"x4\" BNGP",null,5,null,null,null,5.25,null,null,null,null,null,null,null,null,null,null,null,null,null,null,null,null,null,null,null,null,null,null,"END"]
[null,"Index",null,null,null,null,"DynaFlow-S10",null,null,null,null,null,null,null,null,null,null,"Index",null,"Bushing 1.50\" x 1.25\" Blk Hex",null,4.25,null,null,null,null,null,"Index",null,"Sammy Wood horiz sidewinder per box of 25",null,{"$f":"25*0.676","v":16.900000000000002},{"$f":"+Table09[[#This Row],[$]]+(Table09[[#This Row],[$]]*$AG$4)","v":22.984000000000002},null,null,"Index",null,null,"RA0616 SP 155/135 K3.0 to7.0  RFC49 White Concealed W/Cover Residential",null,{"$f":"12.1+5.5","v":17.600000000000001},null,null,"Index",null,null,null,null,null,null,null,"Index",null,{"$f":"SUBTOTAL(103,Table18[Description])","v":32},null,{"$f":"SUBTOTAL(109,Table18[$])","v":1295.367},null,"Index",null,null,null,null,null,null,null,null,null,null,"Index",null,null,"FDC Croker 2-Way Plate 6900 PB-A PLATE ONLY  4514575995 HD",null,{"$f":"+(92.65)+((92.65)*6%)+N(\"2018-05-02 Steel increase\")","v":98.209000000000003},null,null,null,"Index",null,null,"Nipple 1.0\"x4.5\" BNGR",null,5.2,null,null,null,null,null,"Index",null,null,null,null,null,null,"Index",null,null,null,null,null,null,null,null,null,null,null,null,"Index","END"]
[null,null,null,null,null,null,"DynaThread",null,null,null,null,null,null,null,null,null,null,null,null,"Bushing 1.50\" x 3/4\"",null,null,0.95,null,null,null,null,null,null,"Sammy Wood Pendant 25 per box",null,{"$f":"0.88*25","v":22},{"$f":"+Table09[[#This Row],[$]]+(Table09[[#This Row],[$]]*$AG$4)","v":29.92},null,null,null,null,null,"RA3415 G5 G51B  Concealed Head. Add CG40W cover",null,11.25,null,null,null,null,null,null,null,null,null,null,null,null,null,null,null,null,null,null,null,null,null,null,null,null,null,null,null,null,null,null,"FDC Croker 2-Way Plate 6900 PB-A PLATE ONLY Ferguson",null,{"$f":"+(91+50)+((91+50)*6%)+N(\"2018-05-02 Steel increase\")","v":149.46},null,null,null,null,null,null,"Nipple 1.0\"x5\" BNGS",null,5.2,null,null,null,null,null,null,null,null,null,null,null,null,null,null,null,null,null,null,null,null,null,null,null,null,null,null,"END"]
[null,null,null,null,null,null,"Galvanised",null,null,null,null,"All Ranges must be sorted ALPHABETICALLY on 'Description'",null,null,null,null,null,null,null,"Bushing 2.00\" x 1.00\" ",null,null,1.5,null,null,null,null,null,null,"Strap Erico 109 Side Mount for CPVC 1090100EG from 1\" thru 2\" each",null,0.75,{"$f":"+Table09[[#This Row],[$]]+(Table09[[#This Row],[$]]*$AG$4)","v":1.02},null,null,null,null,null,"RA3415 G5 G51B CG40W   for G51B head",null,8,null,null,null,null,null,null,null,null,null,null,null,null,null,null,null,null,null,null,null,null,null,null,null,null,null,null,null,null,null,null,"FDC Name plate escutcheon Auto-Sprinkler (circle)","Brass",45,null,null,null,null,null,null,"Nipple 1.0\"x6\" BNGU",null,7.2,null,null,null,7.25,null,null,null,null,null,null,null,null,null,null,null,null,null,null,null,null,null,null,null,null,null,null,"END"]
[null,null,null,null,null,null,null,null,null,null,null,null,null,null,null,null,null,null,null,"Bushing 2.00\" x 1.25\"",null,null,1.5,null,null,null,null,null,null,"Strap TolCo 132010 FG 22 1\" Strap for CPVC",null,1,{"$f":"+Table09[[#This Row],[$]]+(Table09[[#This Row],[$]]*$AG$4)","v":1.3599999999999999},null,null,null,null,null,"RA4762 G6-80 Conc. QR EC-Lhazard Side-wall Dorms Hospitals",null,100,null,null,null,null,null,null,null,null,null,null,null,null,"All Ranges must be sorted ALPHABETICALLY on 'Description'",null,null,null,null,null,null,null,null,null,null,null,null,null,null,null,null,null,"FDC Name plate escutcheon StandPipe (circle)","Blk",12,null,null,null,null,null,null,"Nipple 2.0\"x3\" BNKM",null,8.25,null,null,null,8.5,null,null,null,null,null,null,null,null,null,null,null,null,null,null,null,null,null,null,null,null,null,null,"END"]
[null,null,null,null,null,null,null,"CategoryWetLst",null,null,null,null,null,null,null,null,null,null,null,"Bushing 2.00\" x 1.50\"",null,null,1.5,null,null,null,null,null,null,"Strap TolCo 136010 Dble Faster Side Mount strap-type for CPVC    per 100",null,72,{"$f":"+Table09[[#This Row],[$]]+(Table09[[#This Row],[$]]*$AG$4)","v":97.92},null,null,null,null,null,"RA4835 HSW 155/135 K4.2 White Flat Concealed W/Cover (RFS42) Residential",null,{"$f":"25+7","v":32},null,null,null,null,null,null,null,null,null,null,null,null,null,null,null,null,null,null,null,null,null,null,null,null,null,null,null,null,null,null,"FDC Siamese Brass 3\" & chk v/v & nipple",null,{"$f":"+(150+152)+((150+152)*6%)+N(\"2018-05-02 Steel increase\")","v":320.12},null,null,null,null,null,null,"Nipple 2.0\"x4\" BNKP",null,10,null,null,null,10,null,null,null,null,null,null,null,null,null,null,null,null,null,null,null,null,null,null,null,null,null,null,"END"]
[null,null,null,null,null,null,null,"Antifreeze",null,null,null,null,null,null,null,null,null,null,null,"Bushing 2.00\" x 1.50\" LF Brass",null,22,null,null,null,null,null,null,null,"Strut 1-5/8 x1-5/8 x 10  12 GREE H/SL  each",null,2.2000000000000002,{"$f":"+Table09[[#This Row],[$]]+(Table09[[#This Row],[$]]*$AG$4)","v":2.992},null,null,null,null,null,"RA6414 SP SR 155 K5.6 Stainless Steel F1-56SS",null,0,null,null,null,null,null,null,null,null,null,null,null,null,null,null,null,null,null,null,null,null,null,null,null,null,null,null,null,null,null,null,"FDC Siamese Brass 4\" 2.5x2.5\"  STR NST   BARE no valve",null,89,null,null,null,null,null,null,"Nipple 2.0\"x6\" BNKU",null,15,null,null,null,15,null,null,null,null,null,null,null,null,null,null,null,null,null,null,null,null,null,null,null,null,null,null,"END"]
[null,null,null,null,null,null,null,"AWP Rentals",null,null,null,null,null,null,null,null,null,null,null,"Bushing 2.00\" x 3/4\"",null,null,1.5,null,null,null,null,null,null,"Sway brace EQ COMPLETE Beam to branchline pipe",null,{"$f":"7.25+N(\"Quick-end\")+7.25+N(\"2 bolts\")+2+N(\"beam clamp\")+6.55","v":23.05},{"$f":"+Table09[[#This Row],[$]]+(Table09[[#This Row],[$]]*$AG$4)","v":31.347999999999999},null,null,null,null,null,"RA6424 SU SR 155 K5.6 Stainless Steel F1-56SS",null,0,null,null,null,null,null,null,null,null,null,null,null,null,null,null,null,null,null,null,null,null,null,null,null,null,null,null,null,null,null,null,"FDC Siamese Brass 4\" 2.5x2.5\" & chk v/v & nipple",null,{"$f":"200+165","v":365},null,null,null,null,null,null,"Nipple 2.0\"xClose Blk Stl",null,7.5,null,null,null,7.5,null,null,null,null,null,null,null,null,null,null,null,null,null,null,null,null,null,null,null,null,null,null,"END"]
[null,null,null,null,null,null,null,"BFP's",null,null,null,null,null,null,null,null,null,null,null,"Bushing 2.00\" x 3/4\" ",null,null,1.5,null,null,null,null,null,null,"Sway brace fitting Afcon 035 Model K 1.25\"",null,8.65,{"$f":"+Table09[[#This Row],[$]]+(Table09[[#This Row],[$]]*$AG$4)","v":11.763999999999999},null,null,null,null,null,"TY DS-1 Dry HSW 155 QR Chrome 12\"",null,92,null,null,null,null,null,null,null,null,null,null,null,null,null,null,null,null,null,null,null,null,null,null,null,null,null,null,null,null,null,null,"FDC Single Blk 2.5\" swivel FNST x FPT",null,55,null,null,null,null,null,null,"Nipple 2.5\"x6\" BNGNLU",null,35,null,null,null,32,null,null,null,null,null,null,null,null,null,null,null,null,null,null,null,null,null,null,null,null,null,null,"END"]
[null,null,null,null,null,null,null,"Compressor Stuff",null,null,null,null,null,null,null,null,null,null,null,"Bushing 2.50\" x 1.25\" ",null,null,2.6,null,null,null,null,null,null,"Sway brace fitting Afcon 035 Model K 1.50\"",null,8.65,{"$f":"+Table09[[#This Row],[$]]+(Table09[[#This Row],[$]]*$AG$4)","v":11.763999999999999},null,null,null,null,null,"TY DS-1 Dry Pend 155 QR Chrome  12\"",null,79,null,null,null,null,null,null,null,null,null,null,null,null,null,null,null,null,null,null,null,null,null,null,null,null,null,null,null,null,null,null,"FDC Single Brass 2.5\" Angle Hose Valves for StandPipes FPPI RB FXM",null,83,null,"http://www.fppi.com/angle-hose-valves/",null,null,null,null,"Thread by groove 4 x 4",null,{"$f":"70+(70*$CE$5)","v":94.5},null,null,null,null,null,null,null,null,null,null,null,null,null,null,null,null,null,null,null,null,null,null,null,null,null,null,"END"]
[null,null,null,null,null,null,null,"Els/90's Tees et al",null,null,null,null,null,null,null,null,null,null,null,"Bushing 2.50\" x 1.50\" ",null,null,2.6,null,null,null,null,null,null,"Sway Bracing 1.50 x 1\"",null,7.5,{"$f":"+Table09[[#This Row],[$]]+(Table09[[#This Row],[$]]*$AG$4)","v":10.199999999999999},"Link",null,null,null,null,"TY DS-1 Dry Pend 200 QR Chrome  12\"",null,79,null,null,null,null,null,null,null,null,null,null,null,null,null,null,null,null,null,null,null,null,null,null,null,null,null,null,null,null,null,null,"FPPI 02-018 Alarm Test 6\"x2\"",null,0.67,null,null,null,null,null,null,"TYC 577 Rigid Coupling PTD 2\" W/p Lube",null,{"$f":"6.5+(6.5*$CE$5)","v":8.7750000000000004},null,null,null,null,null,null,null,null,null,null,null,null,null,null,null,null,null,null,null,null,null,null,null,null,null,null,"END"]
[null,null,null,null,null,null,null,"Hangers",null,null,null,null,null,null,null,null,null,null,null,"Bushing 2.50\" x 2.00\" ",null,null,2.6,null,null,null,null,null,null,"Sway Bracing Attachment Fitting Locking Afcon 075 or 077",null,7.05,{"$f":"+Table09[[#This Row],[$]]+(Table09[[#This Row],[$]]*$AG$4)","v":9.5879999999999992},"Link",null,null,null,null,"TY#### 0.75\" 200 deg 7.8k Attic Hip Brass",null,147,null,null,null,null,null,null,null,null,null,null,null,null,null,null,null,null,null,null,null,null,null,null,null,null,null,null,null,null,null,null,"FPPI 02-082 Main Control 6\"x2\"",null,0.67,null,null,null,null,null,null,"TYC 577 Rigid Coupling PTD 4\" W/p Lube",null,{"$f":"9+(9*$CE$5)","v":12.15},null,null,null,null,null,null,null,null,null,null,null,null,null,null,null,null,null,null,null,null,null,null,null,null,null,null,"END"]
[null,null,null,null,null,null,null,"Heads",null,null,null,null,null,null,null,null,null,null,null,"Bushing 3.00\" x 2.00\" ",null,null,4,null,null,null,null,null,null,"Sway Bracing EQ 4\"",null,9.5,{"$f":"+Table09[[#This Row],[$]]+(Table09[[#This Row],[$]]*$AG$4)","v":12.92},"Link",null,null,null,null,"TY#### Attic BB1 3/4 8.0k",null,89,null,null,null,null,null,null,null,null,null,null,null,null,null,null,null,null,null,null,null,null,null,null,null,null,null,null,null,null,null,null,"FPPI 02-086 Main Drain 6\"x2\"",null,0.67,null,null,null,null,null,null,"TYC 577 Rigid Coupling PTD 6\" W/p Lube",null,{"$f":"11+(11*$CE$5)","v":14.85},null,null,null,null,null,null,null,null,null,null,null,null,null,null,null,null,null,null,null,null,null,null,null,null,null,null,"END"]
[null,null,null,null,null,null,null,"Mech-Tees",null,null,null,null,null,null,null,null,null,"Index",null,"Caps 1 inch",null,2.98,null,null,null,null,null,"Index",null,"Sway Bracing lag bolts each",null,1,{"$f":"+Table09[[#This Row],[$]]+(Table09[[#This Row],[$]]*$AG$4)","v":1.3599999999999999},"Link",null,"Index",null,null,"TY1334 TYC LFII 1/2 K4.2 155 WH HSW",null,10,null,null,"Index",null,null,null,null,null,null,null,"Index",null,null,null,null,null,"Index",null,null,null,null,null,null,null,null,null,null,"Index",null,null,"FPPI 06-526 BBV  2\" Grv Brz",null,180,null,null,null,"Index",null,null,"TYC 577 Rigid Coupling PTD 8\" W/p Lube",null,{"$f":"17+(17*$CE$5)","v":22.95},null,null,null,null,null,"Index",null,null,null,null,null,null,"Index",null,null,null,null,null,null,null,null,null,null,null,null,"Index","END"]
[null,null,null,null,null,null,null,"Misc Parts & Accessories",null,null,null,null,null,null,null,null,null,null,null,"Caps 1.25 inch",null,3.95,null,null,null,null,null,null,null,"Sway Bracing Lock-In attachment (Quick-End) Afcon A077G",null,7.5,{"$f":"+Table09[[#This Row],[$]]+(Table09[[#This Row],[$]]*$AG$4)","v":10.199999999999999},"Link",null,null,null,null,"TY2235 TYC DSR DRY RES PD 12IN 1\" NPT 155F W/REC ESC K=4.9 WH/WH",null,94,null,null,null,null,null,null,null,null,null,null,null,null,null,null,null,null,null,null,null,null,null,null,null,null,null,null,null,null,null,null,"FPPI 06-866 Swing Check Valve 1 1/4\" ",null,24,null,null,null,null,null,null,"Union 1.00\"",null,{"$f":"10.25+(10.25*$CE$5)","v":13.8375},null,null,null,null,null,null,null,null,null,null,null,null,null,null,null,null,null,null,null,null,null,null,null,null,null,null,"END"]
[null,null,null,null,null,null,null,"Pipe",null,null,null,null,null,null,null,null,null,null,null,"Caps 3 inch",null,28.36,null,null,null,null,null,null,null,"Trubolt (RedHead) Wedge Anchor 3/8x2-3/4 CS WA38234 $106 per 100",null,{"$f":"(105.287/100)","v":1.05287},{"$f":"+Table09[[#This Row],[$]]+(Table09[[#This Row],[$]]*$AG$4)","v":1.4319031999999998},null,null,null,null,null,"TY2524 0.50\" SP LFII 160F K4.9 Brass Concealed Residential",null,"see 3569",null,null,null,null,null,null,null,null,null,null,null,null,null,null,null,null,null,null,null,null,null,null,null,null,null,null,null,null,null,null,"FPPI 11-566 1/4 Gauge Kit",null,20,null,null,null,null,null,null,"Union 1.25\"",null,{"$f":"14.7+(14.7*$CE$5)","v":19.844999999999999},null,null,null,null,null,null,null,null,null,null,null,null,null,null,null,null,null,null,null,null,null,null,null,null,null,null,"END"]
[null,null,null,null,null,null,null,"Valves/Drains/Gauges FDC",null,null,null,null,null,null,null,null,null,null,null,"EL 1.00\" x 1/2\" Reducing elbow",null,4,null,null,null,null,null,null,null,"Unistrut=Universal Strut= Strut $2.50 per foot per 10 feet:",null,25,{"$f":"+Table09[[#This Row],[$]]+(Table09[[#This Row],[$]]*$AG$4)","v":34},null,null,null,null,null,"TY3111 0.50\" SU TY-L 212F K5.6 Brass OP",null,11,null,null,null,null,null,null,null,null,null,null,null,null,null,null,null,null,null,null,null,null,null,null,null,null,null,null,null,null,null,null,"FPPI AGF600 0.5\" Model 7000 Pressure Relief valve PRV-UL",null,58,null,null,null,null,null,null,"Union 1.50\"",null,{"$f":"18.33+(18.33*$CE$5)","v":24.745499999999996},null,null,null,null,null,null,null,null,null,null,null,null,null,null,null,null,null,null,null,null,null,null,null,null,null,null,"END"]
[null,null,"Notes:",null,null,null,null,"Weldlets & Couplings",null,null,null,null,null,null,null,null,null,null,null,"EL 1.25\" Blk CI",null,4.25,null,null,null,null,null,null,null,"VIC Flex AB1 Brackets 24\"",null,8,{"$f":"+Table09[[#This Row],[$]]+(Table09[[#This Row],[$]]*$AG$4)","v":10.879999999999999},"Link",null,null,null,null,"TY3187 0.50\" 200 deg 5.6k Brass Attic Hip",null,122,null,null,null,null,null,null,null,null,null,null,null,null,null,null,null,null,null,null,null,null,null,null,null,null,null,null,null,null,null,null,"Gauge AIR 300 psi 3/4\", price each is","1/4\"",18,null,null,null,null,null,null,"Union Dielectric 1-1/2\" FIP x SWT",null,25,null,null,null,null,null,null,null,null,null,null,null,null,null,null,null,null,null,null,null,null,null,null,null,null,null,null,"END"]
[null,null,"Right-Click in bottom row of table, Left-Click on Insert. Choose Table Row Above",null,null,null,null,"Wrenches",null,null,null,null,null,null,null,null,null,null,null,"EL 1.25\" slipxslip cpvc",null,null,2.5499999999999998,null,null,null,null,null,null,"VIC Flex AB1 Brackets 48\"",null,11,{"$f":"+Table09[[#This Row],[$]]+(Table09[[#This Row],[$]]*$AG$4)","v":14.96},"Link",null,null,null,null,"TY3211 0.50\" Pend brass TY-L 165 SR 5.6K CP Plus Cvr SolderLink",null,{"$f":"11+1.25","v":12.25},null,null,null,null,null,null,null,null,null,null,null,null,null,null,null,null,null,null,null,null,null,null,null,null,null,null,null,null,null,null,"Gauge WATER 0-300 for Riser room FNW9101P NEED two, price each is","3.5\"",32,null,null,null,null,null,null,"VIC 000 F/Lck PTD 6 x 4\"  Grv Coup E-Gskt",null,{"$f":"105+(105*$CE$5)","v":141.75},null,null,null,null,null,null,null,null,null,null,null,null,null,null,null,null,null,null,null,null,null,null,null,null,null,null,"END"]
[null,null,null,null,null,null,null,null,null,null,null,null,null,null,null,null,null,null,null,"EL 2\" Blk DI",null,6,null,null,null,null,null,null,null,"VIC Flex AB2 Brackets 24\"",null,8,{"$f":"+Table09[[#This Row],[$]]+(Table09[[#This Row],[$]]*$AG$4)","v":10.879999999999999},"Link",null,null,null,null,"TY3211 0.50\" Pend brass TY-L 165 SR 5.6K OP",null,8.25,"http://www.tyco-fire.com/TD_TFP/TFP/TFP110_11_2015.pdf",null,null,null,null,null,null,null,null,null,null,null,null,null,null,null,null,null,null,null,null,null,null,null,null,null,null,null,null,null,"Gauge WIKA 213.53 2.5\" Pressure 0-300 psi. Glycerine filled for copper pipe",null,45,null,null,null,null,null,null,"VIC 000 F/Lck PTD 6\" 45",null,{"$f":"47+(47*$CE$5)","v":63.45},null,null,null,null,null,null,null,null,null,null,null,null,null,null,null,null,null,null,null,null,null,null,null,null,null,null,"END"]
[null,null,"When 'Protecting' WorkSheet, allow users to Edit Objects; and they will be able to use the combobox.",null,null,null,null,null,null,null,null,null,null,null,null,null,null,null,null,"EL 2\" x 1.50\" Blk DI",null,7.125,null,null,null,null,null,null,null,"VIC Flex AB5 Brackets allows for vertical sprinkler adjustment",null,null,{"$f":"+Table09[[#This Row],[$]]+(Table09[[#This Row],[$]]*$AG$4)","v":0},"Link",null,null,null,null,"TY3311 0.50\" Upright brass TY-L 165 SR 5.6K CP SolderLink",null,14.09,null,null,null,null,null,null,null,null,null,null,null,null,null,null,null,null,null,null,null,null,null,null,null,null,null,null,null,null,null,null,"Hose Valve RB FXM NST 1.50\"",null,69,null,null,null,null,null,null,"VIC 000 F/lock flange adapter with 744",null,99,null,null,null,null,null,null,null,null,null,null,null,null,null,null,null,null,null,null,null,null,null,null,null,null,null,null,"END"]
[null,null,"subtracted 6 to remove .xlsm. Or if want the extension use -1",null,null,null,null,null,null,null,null,null,null,null,null,null,null,null,null,"EL 3.00\" Grooved",null,13,null,null,null,null,null,null,null,"VIC Flex AB7 Brackets 24\" Adjustable for suspended and hard-lid ceilings",null,6,{"$f":"+Table09[[#This Row],[$]]+(Table09[[#This Row],[$]]*$AG$4)","v":8.16},"Link",null,null,null,null,"TY3335 1.00\" 21\" NPT HSW brass RF-II 155 QR 5.6K Conc Plus cvr DS1",null,{"$f":"83+3","v":86},null,null,null,null,null,null,null,null,null,null,null,null,null,null,null,null,null,null,null,null,null,null,null,null,null,null,null,null,null,null,"Hose Valve RB FXM NST 2.50\"",null,89,null,null,null,null,null,null,"VIC 005 Rigid Coup E 2.0\"",null,11,null,null,null,null,null,null,null,null,"All Ranges must be sorted ALPHABETICALLY on 'Description'",null,null,null,null,null,null,null,null,null,null,null,null,null,null,null,null,null,"END"]
[null,null,"Developer>Design Mode",null,null,null,null,null,null,null,null,null,null,null,null,null,null,null,null,"EL 3.00\" x 4\"",null,18.082999999999998,null,null,null,null,null,null,null,"VIC Flex AB7 Brackets 36\" Adjustable for suspended and hard-lid ceilings",null,7,{"$f":"+Table09[[#This Row],[$]]+(Table09[[#This Row],[$]]*$AG$4)","v":9.52},"Link",null,null,null,null,"TY3335 1.00\" 24\" NPT HSW brass RF-II 155 QR 5.6K Conc Plus cvr DS1",null,{"$f":"92+3","v":95},null,null,null,null,null,null,null,null,null,null,null,null,null,null,null,null,null,null,null,null,null,null,null,null,null,null,null,null,null,null,"LF 1-1/2\" WTR Press Reducing V/V",null,515,null,"Ferg Plumbing",null,null,null,null,"VIC 005 Rigid Coup E 2.5\"",null,12,null,null,null,null,null,null,null,null,null,null,null,null,null,null,null,null,null,null,null,null,null,null,null,null,null,null,"END"]
[null,"Index",null,null,null,null,null,null,null,"Index",null,null,null,null,null,null,null,null,null,"EL 4\" PTD F/Lck",null,17,null,null,null,null,null,null,null,"VIC Flex AB7 Brackets 48\" Adjustable for suspended and hard-lid ceilings",null,8,{"$f":"+Table09[[#This Row],[$]]+(Table09[[#This Row],[$]]*$AG$4)","v":10.879999999999999},"Link",null,null,null,null,"TY3531 0.50\" Pend brass RF-II 155 QR 5.6K Conc Plus cvr",null,{"$f":"13+6.5","v":19.5},null,null,null,null,null,null,null,null,null,null,null,null,null,null,null,null,null,null,null,null,null,null,null,null,null,null,null,null,null,null,"Low-Air Manual Press. Maint. device",null,597,null,null,null,null,null,null,"VIC 005 Rigid Coup E 3.0\"",null,13.6,null,null,null,null,null,null,null,null,null,null,null,null,null,null,null,null,null,null,null,null,null,null,null,null,null,null,"END"]
[null,null,null,null,null,null,null,null,null,null,null,null,null,null,null,null,null,null,null,"EL 4.00\" Grooved",null,19,null,null,null,null,null,null,null,"VIC Flex AH1 Braided Hose 1/2x 31\"",null,25,{"$f":"+Table09[[#This Row],[$]]+(Table09[[#This Row],[$]]*$AG$4)","v":34},null,null,null,null,null,"TY3531 RFII T567924135 0.75\" brs Cover Plate White",null,6.5,null,null,null,null,null,null,null,null,null,null,null,null,null,null,null,null,null,null,null,null,null,null,null,null,null,null,null,null,null,null,"Meuller OS&Y Flange x Flange no tamper 8.0\"",null,1192,null,null,null,null,null,null,"VIC 005 Rigid Coup E 3.5\"",null,16,null,null,null,null,null,null,null,null,null,null,null,null,null,null,null,null,null,null,null,null,null,null,null,null,null,null,"END"]
[null,null,null,null,null,null,null,null,null,null,null,null,null,null,null,null,null,null,null,"EL 6\" PTD F/Lck",null,58,null,null,null,null,null,null,null,"VIC Flex AH1 Braided Hose 1/2x 72\"",null,37,{"$f":"+Table09[[#This Row],[$]]+(Table09[[#This Row],[$]]*$AG$4)","v":50.32},null,null,null,null,null,"TY3569 0.50\" Pend brass Conc res LF-II 160 QR 49K CP only 562024135",null,6,null,null,null,null,null,null,null,null,null,null,null,null,null,null,null,null,null,null,null,null,null,null,null,null,null,null,null,null,null,null,"Meuller OS&Y NRS Flange x Flange no tamper 6.0\"",null,732,null,null,null,null,null,null,"VIC 005 Rigid Coup E 4.0\"",null,19,null,null,null,null,null,null,null,null,null,null,null,null,null,null,null,null,null,null,null,null,null,null,null,null,null,null,"END"]
[null,null,null,null,null,null,null,null,null,null,null,null,null,null,null,null,null,null,null,"FPPI 65DC3080 drain cap Grooved",null,38,null,null,null,null,null,null,null,"VIC Flex AH1 Braided Hose 3/4x 48\"",null,28,{"$f":"+Table09[[#This Row],[$]]+(Table09[[#This Row],[$]]*$AG$4)","v":38.08},null,null,null,null,null,"TY3569 0.50\" Pend brass Conc res LF-II 160 QR 49K HEAD only",null,14,null,null,null,null,null,null,null,null,null,null,null,null,null,null,null,null,null,null,null,null,null,null,null,null,null,null,null,null,null,null,"NXT-746-LPA Dry Accelerator",null,910,null,null,null,null,null,null,"VIC 005H F/Lck PTD 3.0\" EZ Rigid Coup E",null,{"$f":"12.64+(12.64*$CE$5)","v":17.064},null,null,null,null,null,null,null,null,null,null,null,null,null,null,null,null,null,null,null,null,null,null,null,null,null,null,"END"]
[null,null,null,null,null,null,null,null,null,null,null,null,null,null,null,null,null,null,null,"Plug Brass 0.5\"",null,null,null,null,null,4.5,null,null,null,"VIC Flex AH1 Braided Hose 3/4x 72\"",null,37,{"$f":"+Table09[[#This Row],[$]]+(Table09[[#This Row],[$]]*$AG$4)","v":50.32},null,null,null,null,null,"TY3569 0.50\" Pend brass Conc res LF-II 160 QR 49K Plus cvr",null,{"$f":"14+6","v":20},"RF = Royal Flush",null,null,null,null,null,null,null,null,null,null,null,null,null,null,null,null,null,null,null,null,null,null,null,null,null,null,null,null,null,"NXT-768N 2\" Dry VS-024-N69-403 w/776 768 from 1 to 2.5 \"","2.5\" Dry",{"$f":"3385","v":3385},null,null,null,null,null,null,"VIC 009N F/Lck PTD 1.5\" EZ Rigid Coup E",null,{"$f":"6+(6*CE$5)","v":8.1},null,null,null,{"$f":"7+(7*CI$5)","v":9.59},null,null,null,null,null,null,null,null,null,null,null,null,null,null,null,null,null,null,null,null,null,null,"END"]
[null,"Index",null,null,null,null,null,null,null,"Index",null,null,null,null,null,null,null,"Index",null,"Plug Brass 1.0\"",null,null,null,null,null,6.5,null,"Index",null,"VIC Flex AH2 Braided Hose 1/2x 31\"",null,33,{"$f":"+Table09[[#This Row],[$]]+(Table09[[#This Row],[$]]*$AG$4)","v":44.879999999999995},null,null,"Index",null,null,"TY4111 0.75\" SSU brass TY-L 165 SR 8K OP",null,null,null,null,"Index",null,null,null,null,null,null,null,"Index",null,null,null,null,null,"Index",null,null,null,null,null,null,null,null,null,null,"Index",null,null,"NXT-768N 3\" Dry VS-030-N69-403 w/776 768","3\" Dry",{"$f":"3385","v":3385},null,null,null,"Index",null,null,"VIC 009N F/Lck PTD 2.0\" EZ Rigid Coup E",null,{"$f":"7+(7*$CE$5)","v":9.4499999999999993},null,null,null,7.75,null,"Index",null,null,null,null,null,null,"Index",null,null,null,null,null,null,null,null,null,null,null,null,"Index","END"]
[null,null,null,null,null,null,null,null,null,null,null,null,null,null,null,null,null,null,null,"Plug MI 0.5\"",0.55000000000000004,null,null,null,null,null,null,null,null,"VIC Flex AH2 Braided Hose 1/2x 36\"",null,35,{"$f":"+Table09[[#This Row],[$]]+(Table09[[#This Row],[$]]*$AG$4)","v":47.6},null,null,null,null,null,"TY4211 0.75\" Pend brass TY-L 165 SR 8K CP Plus Cvr",null,null,null,null,null,null,null,null,null,null,null,null,null,null,null,null,null,null,null,null,null,null,null,null,null,null,null,null,null,null,null,null,"NXT-768N 4\" Dry VS-040-N69-403 w/776 768","4\" Dry",3518,null,null,null,null,null,null,"VIC 009N F/Lck PTD 2.5\" EZ Rigid Coup E",null,{"$f":"8+(8*$CE$5)","v":10.8},null,null,null,9.5,null,null,null,null,null,null,null,null,null,null,null,null,null,null,null,null,null,null,null,null,null,null,"END"]
[null,null,null,null,null,null,null,null,null,null,null,null,null,null,null,null,null,null,null,"Plug MI 1.0\"",1.8,null,null,null,null,null,null,null,null,"VIC Flex AH2 Braided Hose 1/2x 48\"",null,37,{"$f":"+Table09[[#This Row],[$]]+(Table09[[#This Row],[$]]*$AG$4)","v":50.32},null,null,null,null,null,"TY5111 0.75\" SSU 212 K11.2  ELO-231",null,null,null,null,null,null,null,null,null,null,null,null,null,null,null,null,null,null,null,null,null,null,null,null,null,null,null,null,null,null,null,null,"NXT-768N 6\" Dry Gasket repair kit","8\"",60,null,null,null,null,null,null,"VIC 009N F/Lck PTD 3.0\" EZ Rigid Coup E",null,{"$f":"9+(9*$CE$5)","v":12.15},null,null,null,11,null,null,null,null,null,null,null,null,null,null,null,null,null,null,null,null,null,null,null,null,null,null,"END"]
[null,null,null,null,null,null,null,null,null,null,null,null,null,null,null,null,null,null,null,"Plug MI 1.5\"",3.25,null,null,null,null,null,null,null,null,"VIC Flex AH2 Braided Hose 1/2x 60\"",null,41,{"$f":"+Table09[[#This Row],[$]]+(Table09[[#This Row],[$]]*$AG$4)","v":55.76},null,null,null,null,null,"TY5137 0.75\" SSU brass EC11 155/200/286 QR 11.2K ELO",null,16,"HD light/ord hazard Extnded Coverage",null,null,null,null,null,null,null,null,null,null,null,null,null,null,null,null,null,null,null,null,null,null,null,null,null,null,null,null,null,"NXT-768N 6\" Dry VS-060-N69-403 w/776 768","6\" Dry",4081,null,null,null,null,null,null,"VIC 009N F/Lck PTD 4.0\" EZ Rigid Coup E",null,{"$f":"12.5+(12.5*$CE$5)","v":16.875},null,null,null,15,null,null,null,null,null,null,null,null,null,null,null,null,null,null,null,null,null,null,null,null,null,null,"END"]
[null,null,null,null,null,null,null,null,null,null,null,null,null,null,null,null,null,null,null,"Plug MI 2.0\"",4.5,null,null,null,null,null,null,null,null,"VIC Flex AH2 Braided Hose 1/2x 72\"",null,45.5,{"$f":"+Table09[[#This Row],[$]]+(Table09[[#This Row],[$]]*$AG$4)","v":61.879999999999995},null,null,null,null,null,"TY5211 0.75\" SSP 212 K11.2  ELO-231",null,null,null,null,null,null,null,null,null,null,null,null,null,null,null,null,null,null,null,null,null,null,null,null,null,null,null,null,null,null,null,null,"NXT-776-LPA Accelerator",null,null,null,null,null,null,null,null,"VIC 009N F/Lck PTD 6.0\" EZ Rigid Coup E",null,{"$f":"19.5+(19.5*$CE$5)","v":26.324999999999999},null,null,null,23.5,null,null,null,null,null,null,null,null,null,null,null,null,null,null,null,null,null,null,null,null,null,null,"END"]
[null,null,null,null,null,null,null,null,null,null,null,null,null,null,null,null,null,null,null,"Tee 0.50 Half-inch",null,3.75,null,null,null,null,null,null,null,"VIC Flex AH2 Braided Hose 3/4x 31\"",null,33,{"$f":"+Table09[[#This Row],[$]]+(Table09[[#This Row],[$]]*$AG$4)","v":44.879999999999995},null,null,null,null,null,"TY5237 0.75\" SSP brass EC11 155 QR 11.2K Plus cvr BLACK",null,null,null,null,null,null,null,null,null,null,null,null,null,null,null,null,null,null,null,null,null,null,null,null,null,null,null,null,null,null,null,null,"Post Indicator Valve - ADJUSTABLE",null,695.51,null,null,null,null,null,null,"VIC 2.00\" Quick Rigid",null,{"$f":"8+(8*$CE$5)","v":10.8},null,null,null,null,null,null,null,null,null,null,null,null,null,null,null,null,null,null,null,null,null,null,null,null,null,null,"END"]
[null,null,null,null,null,null,null,null,null,null,null,null,null,null,null,null,null,null,null,"Tee 1.00 One-inch",null,2.5,1.4,null,null,null,null,null,null,"VIC Flex AH2 Braided Hose 3/4x 36\"",null,35,{"$f":"+Table09[[#This Row],[$]]+(Table09[[#This Row],[$]]*$AG$4)","v":47.6},null,null,null,null,null,"TY5811 0.50\" SSU 212 K11.2 ELO-231",null,19,null,null,null,null,null,null,null,null,null,null,null,null,null,null,null,null,null,null,null,null,null,null,null,null,null,null,null,null,null,null,"Post Indicator Valve R/W FLG X FLG","4\"",426.57,null,null,null,null,null,null,"VIC 2.50\" Quick Rigid",null,{"$f":"8.25+(8.25*$CE$5)","v":11.137499999999999},null,null,null,null,null,null,null,null,null,null,null,null,null,null,null,null,null,null,null,null,null,null,null,null,null,null,"END"]
[null,null,null,null,null,null,null,null,null,null,null,null,null,null,null,null,null,null,null,"Tee 1.00\" x 1.00\" x half",null,2.665,null,null,null,null,null,null,null,"VIC Flex AH2 Braided Hose 3/4x 48\"",null,37,{"$f":"+Table09[[#This Row],[$]]+(Table09[[#This Row],[$]]*$AG$4)","v":50.32},null,null,null,null,null,"TY6137 0.75\" SSU brass EC14 155 QR 14K Plus cvr BLACK",null,null,null,null,null,null,null,null,null,null,null,null,null,null,null,null,null,null,null,null,null,null,null,null,null,null,null,null,null,null,null,null,"Post Indicator Valve R/W FLG X FLG","6\"",616.72,null,null,null,null,null,null,"VIC 3.00\" Quick Rigid",null,{"$f":"8.5+(8.5*$CE$5)","v":11.475},null,null,null,null,null,null,null,null,null,null,null,null,null,null,null,null,null,null,null,null,null,null,null,null,null,null,"END"]
[null,null,null,null,null,null,null,null,null,null,null,null,null,null,null,null,null,null,null,"Tee 1.25 inch",null,12.5,2.5499999999999998,null,null,null,null,null,null,"VIC Flex AH2 Braided Hose 3/4x 72\"",null,45.5,{"$f":"+Table09[[#This Row],[$]]+(Table09[[#This Row],[$]]*$AG$4)","v":61.879999999999995},null,null,null,null,null,"TY6237 0.75\" SSP brass EC14 155 QR 14K Plus cvr BLACK",null,null,"HD light/ord hazard",null,null,null,null,null,null,null,null,null,null,null,null,null,null,null,null,null,null,null,null,null,null,null,null,null,null,null,null,null,"Post Indicator Valve WALL 773",null,585,null,null,null,null,null,null,"VIC 3.50\" Quick Rigid",null,{"$f":"8.75+(8.75*$CE$5)","v":11.8125},null,null,null,null,null,null,null,null,null,null,null,null,null,null,null,null,null,null,null,null,null,null,null,null,null,null,"END"]
[null,null,null,null,null,null,null,null,null,null,null,null,null,null,null,null,null,null,null,"Tee 1.25 x 1.00 x 1.50",null,9.89,null,null,null,null,null,null,null,"VIC Flex AH5 Braided Hose 1/2x 31\"",null,25,{"$f":"+Table09[[#This Row],[$]]+(Table09[[#This Row],[$]]*$AG$4)","v":34},null,null,null,null,null,"TY911060007 Escutcheon for DS1 Dry pend head One-Piece Push-on",null,3.1,null,null,null,null,null,null,null,null,null,null,null,null,null,null,null,null,null,null,null,null,null,null,null,null,null,null,null,null,null,null,"Post Indicator Wrench-ADJUSTABLE",null,70.52,null,null,null,null,null,null,"VIC 4.00\" Quick Rigid",null,{"$f":"12+(12*$CE$5)","v":16.2},null,null,null,null,null,null,null,null,null,null,null,null,null,null,null,null,null,null,null,null,null,null,null,null,null,null,"END"]
[null,null,null,null,null,null,null,null,null,null,null,null,null,null,null,null,null,null,null,"Tee 1.25 x 1.00 x half",null,4.3230000000000004,null,null,null,null,null,null,null,"VIC Flex AH5 Braided Hose 1/2x 72\"",null,39,{"$f":"+Table09[[#This Row],[$]]+(Table09[[#This Row],[$]]*$AG$4)","v":53.04},null,null,null,null,null,"Tyco Head Guard TY569381066 ",null,6,null,null,null,null,null,null,null,null,null,null,null,null,null,null,null,null,null,null,null,null,null,null,null,null,null,null,null,null,null,null,"Potter Electric Control Valve PCVS-2 Supervisory Switch",null,75,null,null,null,null,null,null,"VIC 4.00\" Standard Rigid",null,{"$f":"14+(14*$CE$5)","v":18.899999999999999},null,null,null,null,null,null,null,null,null,null,null,null,null,null,null,null,null,null,null,null,null,null,null,null,null,null,"END"]
[null,null,null,null,null,null,null,null,null,null,null,null,null,null,null,null,null,null,null,"Tee 1.25 x 1.25 x .50\"",null,null,null,null,null,null,null,null,null,"VIC Flex AH5 Braided Hose 3/4x 48\"",null,29,{"$f":"+Table09[[#This Row],[$]]+(Table09[[#This Row],[$]]*$AG$4)","v":39.44},null,null,null,null,null,"TY-FRB 0.50\" Uprit brass K5.6 175 BLK TY323",null,{"$f":"7.5+N(\"add esc+collar\")+2+1","v":10.5},null,null,null,null,null,null,null,null,null,null,null,null,null,null,null,null,null,null,null,null,null,null,null,null,null,null,null,null,null,null,"Potter Electric Flow Sw PVSRG 1.5\"",null,115,null,null,null,null,null,null,"VIC 50 2.0 x1.00\" Reducing Groove Coupling CONCENTRIC",null,null,null,null,null,{"$f":"42+(42*$CE$5)","v":56.7},null,null,null,null,null,null,null,null,null,null,null,null,null,null,null,null,null,null,null,null,null,null,"END"]
[null,null,null,null,null,null,null,null,null,null,null,null,null,null,null,null,null,null,null,"Tee 1.25 x 1.25 x .75\"",null,0,3.25,null,null,null,null,null,null,"VIC Flex AH5 Braided Hose 3/4x 72\"",null,39,{"$f":"+Table09[[#This Row],[$]]+(Table09[[#This Row],[$]]*$AG$4)","v":53.04},null,null,null,null,null,"Uprt Brass  5.6k  200 deg  1/2\"",null,10,null,null,null,null,null,null,null,null,null,null,null,null,null,null,null,null,null,null,null,null,null,null,null,null,null,null,null,null,null,null,"Potter Electric Flow Sw PVSRK 2.0\"",null,113,null,null,null,null,null,null,"VIC 50 2.0 x1.50\" Reducing Groove Coupling CONCENTRIC",null,null,null,null,null,{"$f":"46+(46*$CE$5)","v":62.099999999999994},null,null,null,null,null,null,null,null,null,null,null,null,null,null,null,null,null,null,null,null,null,null,"END"]
[null,null,null,null,null,null,null,null,null,null,null,null,null,null,null,null,null,null,null,"Tee 1.25 x 1.25 x 1\"",null,10.78,2.6,null,null,null,null,null,null,{"$f":"SUBTOTAL(103,Table09[Description]) & \" Items\"","v":"72 Items"},null,null,null,null,null,null,null,null,"Uprt Brass  5.6k  212 deg  1/2\"",null,10,null,null,null,null,null,null,null,null,null,null,null,null,null,null,null,null,null,null,null,null,null,null,null,null,null,null,null,null,null,null,"Potter Electric Flow Sw PVSRM 2.5\"",null,125,null,"pdf",null,null,null,null,"VIC 50 2.5 x1.50\" Reducing Groove Coupling CONCENTRIC",null,null,null,null,null,{"$f":"43+(43*$CE$5)","v":58.05},null,null,null,null,null,null,null,null,null,null,null,null,null,null,null,null,null,null,null,null,null,null,"END"]
[null,null,null,null,null,null,null,null,null,null,null,null,null,null,null,null,null,null,null,"Tee 1.25 x 1.25 x 1.50\"",null,10.78,null,null,null,null,null,null,null,null,null,null,null,null,null,null,null,null,"V2701 SR 0.375 SSUp Brs V27 155 K2.8 VIC Firelock",null,null,null,null,null,null,null,null,null,null,null,null,null,null,null,null,null,null,null,null,null,null,null,null,null,null,null,null,null,null,null,null,"Potter Electric Flow Sw PVSRM 3.0\"",null,113,null,null,null,null,null,null,"VIC 50 4.0 x2.50\" Reducing Groove Coupling CONCENTRIC",null,null,null,null,null,70,null,null,null,null,null,null,null,null,null,null,null,null,null,null,null,null,null,null,null,null,null,null,"END"]
[null,"Index",null,null,null,null,null,null,null,"Index",null,null,null,null,null,null,null,"Index",null,"Tee 1.25\" blk CI",null,7.25,null,null,null,null,null,"Index",null,null,null,null,null,null,null,"Index",null,null,"V2702 QR 0.375 SSUp Brs V27 155 K2.8 VIC Firelock",null,null,null,null,"Index",null,null,null,null,null,null,null,"Index",null,null,null,null,null,"Index",null,null,null,null,null,null,null,null,null,null,"Index",null,null,"Potter Electric Flow Sw PVSRN 3.5\"",null,113,null,null,null,"Index",null,null,"VIC 50 4.0 x2.50\" Reducing Groove Coupling CONCENTRIC",null,null,null,null,null,145,null,"Index",null,null,null,null,null,null,"Index",null,null,null,null,null,null,null,null,null,null,null,null,"Index","END"]
[null,null,null,null,null,null,null,null,null,null,null,null,null,null,null,null,null,null,null,"Tee 1.50 x 1.25 x 0.5",null,12.65,null,null,null,null,null,null,null,null,null,null,null,null,null,null,null,null,"V2704 QR 0.50 SSUp Brs V27 155 K5.6 VIC Firelock",null,7.5,null,null,null,null,null,null,null,null,null,null,null,null,null,null,null,null,null,null,null,null,null,null,null,null,null,null,null,null,null,null,"Potter Electric Flow Sw PVSRP 4.0\" w/retard",null,115,null,null,null,null,null,null,"VIC 741 Grv Flange 10\"",null,{"$f":"648+(648*$CE$5)","v":874.8},null,null,null,null,null,null,null,null,null,null,null,null,null,null,null,null,null,null,null,null,null,null,null,null,null,null,"END"]
[null,null,null,null,null,null,null,null,null,null,null,null,null,null,null,null,null,null,null,"Tee 1.50 x 1.25 x half",null,5.415,null,null,null,null,null,null,null,"All Ranges must be sorted ALPHABETICALLY on 'Description'",null,null,null,null,null,null,null,null,"V2704 QR 0.50 SSUp Brs V27 200 K5.6 VIC Firelock",null,7.75,null,null,null,null,null,null,null,null,null,null,null,null,null,null,null,null,null,null,null,null,null,null,null,null,null,null,null,null,null,null,"Potter Electric Flow Sw PVSRS 5.0\"",null,115,null,null,null,null,null,null,"VIC 741 Grv Flange 4.0\"",null,{"$f":"287+(287*$CE$5)","v":387.45},null,null,null,null,null,null,null,null,null,null,null,null,null,null,null,null,null,null,null,null,null,null,null,null,null,null,"END"]
[null,null,null,null,null,null,null,null,null,null,null,null,null,null,null,null,null,null,null,"Tee 1.50 x 1.50 x 0.50\"",null,12.65,null,null,null,null,null,null,null,null,null,null,null,null,null,null,null,null,"V2705 SR 0.375 SSPend Brs V27 155 K2.8 VIC Firelock",null,null,null,null,null,null,null,null,null,null,null,null,null,null,null,null,null,null,null,null,null,null,null,null,null,null,null,null,null,null,null,null,"Potter Electric Flow Sw PVSRU 6.0\"",null,120,null,null,null,null,null,null,"VIC 741 Grv Flange 6.0\"",null,{"$f":"370+(370*$CE$5)","v":499.5},null,null,null,null,null,null,null,null,null,null,null,null,null,null,null,null,null,null,null,null,null,null,null,null,null,null,"END"]
[null,null,null,null,null,null,null,null,null,null,null,null,null,null,null,null,null,null,null,"Tee 1.50\"",null,7.33,null,null,null,null,null,null,null,null,null,null,null,null,null,null,null,null,"V2705 SR 0.375 SSPend Brs V27 155 K2.8 VIC Firelock RECESSED",null,null,null,null,null,null,null,null,null,null,null,null,null,null,null,null,null,null,null,null,null,null,null,null,null,null,null,null,null,null,null,null,"Potter Electric Flow Sw PVSRX 8.0\"",null,127,null,null,null,null,null,null,"VIC 743 Grv Flange 6.0\"",null,{"$f":"640+(640*$CE$5)","v":864},null,null,null,null,null,null,null,null,null,null,null,null,null,null,null,null,null,null,null,null,null,null,null,null,null,null,"END"]
[null,null,null,null,null,null,null,null,null,null,null,null,null,null,null,null,null,null,null,"Tee 2.00 x 1.50 x half",null,8.8919999999999995,null,null,null,null,null,null,null,null,null,null,null,null,null,null,null,null,"V2706 QR 0.375 SSPend Brs V27 155 K2.8 VIC Firelock",null,null,null,null,null,null,null,null,null,null,null,null,null,null,null,null,null,null,null,null,null,null,null,null,null,null,null,null,null,null,null,null,"Potter Electric SASH Horn Strobe PSASH 120 VAC",null,99,null,null,null,null,null,null,"VIC 744 Grv Flange 2.0\"",null,{"$f":"52+(52*$CE$5)","v":70.2},null,null,null,null,null,null,null,null,null,null,null,null,null,null,null,null,null,null,null,null,null,null,null,null,null,null,"END"]
[null,null,null,null,null,null,null,null,null,null,null,null,null,null,null,null,null,null,null,"Tee 2.00 x x 2.00 x 1.25",null,17.29,null,null,null,null,null,null,null,null,null,null,null,null,null,null,null,null,"V2706 QR 0.375 SSPend Brs V27 155 K2.8 VIC Firelock RECESSED",null,null,null,null,null,null,null,null,null,null,null,null,null,null,null,null,null,null,null,null,null,null,null,null,null,null,null,null,null,null,null,null,"Potter Electric Supervisory Sw PPS402A 1.5 x $\" MNPT",null,108,null,null,null,null,null,null,"VIC 744 Grv Flange 2.5\"",null,{"$f":"61+(61*$CE$5)","v":82.35},null,null,null,null,null,null,null,null,null,null,null,null,null,null,null,null,null,null,null,null,null,null,null,null,null,null,"END"]
[null,null,null,null,null,null,null,null,null,null,null,null,null,null,null,null,null,null,null,"Tee 2.00 x x 2.00 x 1.50",null,17.649999999999999,null,null,null,null,null,null,null,null,null,null,null,null,null,null,null,null,"V2707 SR 0.50 Pendant brass 155 K5.6 VIC Firelock Chrome or White RECESSED",null,12,null,null,null,null,null,null,null,null,null,null,null,null,null,null,null,null,null,null,null,null,null,null,null,null,null,null,null,null,null,null,"Pressure Tank",null,34,null,null,null,null,null,null,"VIC 744 Grv Flange 3.0\"",null,{"$f":"69+(69*$CE$5)","v":93.15},null,null,null,null,null,null,null,null,null,null,null,null,null,null,null,null,null,null,null,null,null,null,null,null,null,null,"END"]
[null,null,null,null,null,null,null,null,null,null,null,null,null,null,null,null,null,null,null,"Tee 2.50 x 2.50 x 3",null,12.75,null,null,null,null,null,null,null,null,null,null,null,null,null,null,null,null,"V2707 SR 0.50 Pendant brass 155 K5.6 VIC Firelock RECESSED",null,10,null,null,null,null,null,null,null,null,null,null,null,null,null,null,null,null,null,null,null,null,null,null,null,null,null,null,null,null,null,null,"RASCO Model B1 Accelerator Accelo-Check",null,null,null,null,null,null,null,null,"VIC 744 Grv Flange 4.0\"",null,{"$f":"89+(89*$CE$5)","v":120.15},null,null,null,108,null,null,null,null,null,null,null,null,null,null,null,null,null,null,null,null,null,null,null,null,null,null,"END"]
[null,null,null,null,null,null,null,null,null,null,null,null,null,null,null,null,null,null,null,"Tee 3 x 2 x 3",null,20.027000000000001,null,null,null,null,null,null,null,null,null,null,null,null,null,null,null,null,"V2708 QR 0.50 Pendant brass 155 K5.6 VIC Firelock White RECESSED",null,9,null,null,null,null,null,null,null,null,null,null,null,null,null,null,null,null,null,null,null,null,null,null,null,null,null,null,null,null,null,null,"System Sensor Water Flow Detector Valves P/N 4WDN & WFD 40N",null,999,null,null,null,null,null,null,"VIC 744 Grv Flange 6.0\"",null,{"$f":"116+(116*$CE$5)","v":156.6},null,null,null,141,null,null,null,null,null,null,null,null,null,null,null,null,null,null,null,null,null,null,null,null,null,null,"END"]
[null,null,null,null,null,null,null,null,null,null,null,null,null,null,null,null,null,null,null,"Tee 3 x 3 x 2.5",null,20.027000000000001,null,null,null,null,null,null,null,null,null,null,null,null,null,null,null,null,"V2708 QR 0.50 Pendant brass 200 K5.6 VIC Firelock White Commercial",null,9,null,null,null,null,null,null,null,null,null,null,null,null,null,null,null,null,null,null,null,null,null,null,null,null,null,null,null,null,null,null,"TYC 523122001 QRS Electric Trim",null,1572,null,null,null,null,null,null,"VIC 744 Grv Flange 8.0\"",null,{"$f":"146+(146*$CE$5)","v":197.1},null,null,null,null,null,null,null,null,null,null,null,null,null,null,null,null,null,null,null,null,null,null,null,null,null,null,"END"]
[null,null,null,null,null,null,null,null,null,null,null,null,null,null,null,null,null,null,null,"Tee 3 x 3 x 3",null,17.774999999999999,null,null,null,null,null,null,null,null,null,null,null,null,null,null,null,null,"V2710 0.50 QR HSW 155 K5.6 VIC Firelock Chr, Wh or Brs",null,13.5,null,null,null,null,null,null,null,null,null,null,null,null,null,null,null,null,null,null,null,null,null,null,null,null,null,null,null,null,null,null,"TYC 87AMD-1 Air Maint Device",null,257,null,null,null,null,null,null,"VIC 750 2.00\"x1.5\" Reducing Groove Coupling",null,{"$f":"32+(32*$CE$5)","v":43.2},null,null,null,39,null,null,null,null,null,null,null,null,null,null,null,null,null,null,null,null,null,null,null,null,null,null,"END"]
[null,null,null,null,null,null,null,null,null,null,null,null,null,null,null,null,null,null,null,"Tee 4 x 4 x 3",null,30.251000000000001,null,null,null,null,null,null,null,null,null,null,null,null,null,null,null,null,"V2710 0.50 QR HSW 200 K5.6 VIC Firelock Chr, Wh or Brs",null,13,null,null,null,null,null,null,null,null,null,null,null,null,null,null,null,null,null,null,null,null,null,null,null,null,null,null,null,null,null,null,"TYC ACC-1 523111001P Accelerator -MECHANICAL A",null,720,null,null,null,null,null,null,"VIC 750 2.50\"x2.0\" Reducing Groove Coupling",null,{"$f":"42+(42*$CE$5)","v":56.7},null,null,null,52,null,null,null,null,null,null,null,null,null,null,null,null,null,null,null,null,null,null,null,null,null,null,"END"]
[null,null,null,null,null,null,null,null,null,null,null,null,null,null,null,null,null,null,null,"Tee 4 x 4 x 4",null,34,null,null,null,null,null,null,null,null,null,null,null,null,null,null,null,null,"V2738 0.50 QR HSW 155 K4.2 RES VIC Firelock",null,11,null,null,null,null,null,null,null,null,null,null,null,null,null,null,null,null,null,null,null,null,null,null,null,null,null,null,null,null,null,null,"TYC ACC-1 87523112010 Accelerator Trim Galv -MECHANICAL B",null,279,null,null,null,null,null,null,"VIC 750 3.00\"x2.0\" Reducing Groove Coupling",null,{"$f":"47+(47*$CE$5)","v":63.45},null,null,null,59,null,null,null,null,null,null,null,null,null,null,null,null,null,null,null,null,null,null,null,null,null,null,"END"]
[null,null,null,null,null,null,null,null,null,null,null,null,null,null,null,null,null,null,null,"Tee F/Lck PTD 6\"",null,76,null,null,null,null,null,null,null,null,null,null,null,null,null,null,null,null,"V2740 0.50 QR HSW Brs 155 K4.9 Res VIC Firelock",null,12,null,null,null,null,null,null,null,null,null,null,null,null,null,null,null,null,null,null,null,null,null,null,null,null,null,null,null,null,null,null,"TYC DPV-1 87523103940 4\" Dry pipe valve GXG pre-trimmed galv.",null,2250,null,null,null,null,null,null,"VIC 750 3.00\"x2.5\" Reducing Groove Coupling",null,{"$f":"41+(41*$CE$5)","v":55.35},null,null,null,52,null,null,null,null,null,null,null,null,null,null,null,null,null,null,null,null,null,null,null,null,null,null,"END"]
[null,"Index",null,null,null,null,null,null,null,"Index",null,null,null,null,null,null,null,"Index",null,"Tee Three-inch",null,45.66,null,null,null,null,null,"Index",null,null,null,null,null,null,null,"Index",null,null,"V2740 0.50 QR SSPend Brs Conc 155 K4.9 RES VIC Firelock",null,10,null,null,"Index",null,null,null,null,null,null,null,"Index",null,null,null,null,null,"Index",null,null,null,null,null,null,null,null,null,null,"Index",null,null,"TYC VIZOR Dry Pipe Accelerator Electronic EDPA Switch -ELECTRIC",null,{"$f":"1300+60+N(\"Battery\")","v":1360},null,null,null,"Index",null,null,"VIC 750 4.00\"x2.0\" Reducing Groove Coupling",null,{"$f":"74+(74*$CE$5)","v":99.9},null,null,null,93,null,"Index",null,null,null,null,null,null,"Index",null,null,null,null,null,null,null,null,null,null,null,null,"Index","END"]
[null,null,null,null,null,null,null,null,null,null,null,null,null,null,null,null,null,null,null,"VIC 006 Cap Grooved 2.5 inch",null,5.3,null,null,null,null,null,null,null,null,null,null,null,null,null,null,null,null,"V2742 0.50 QR Pend Brs Conc 155 K4.9 VIC Firelock",null,20,null,null,null,null,null,null,null,null,null,null,null,null,null,null,null,null,null,null,null,null,null,null,null,null,null,null,null,null,null,null,"VIC 705 Butterfly valve 4\" Supervised",null,230,null,"Specs",null,null,null,null,"VIC 750 4.00\"x2.5\" Reducing Groove Coupling",null,{"$f":"66+(66*$CE$5)","v":89.1},null,null,null,87,null,null,null,null,null,null,null,null,null,null,null,null,null,null,null,null,null,null,null,null,null,null,"END"]
[null,null,null,null,null,null,null,null,null,null,null,null,null,null,null,null,null,null,null,"VIC 006 Cap Grooved 3 inch",null,6.5,null,null,12,null,null,null,null,null,null,null,null,null,null,null,null,null,"V2744 0.50 QR HSW Brs 155 K5.6 Res VIC Firelock",null,29,null,null,null,null,null,null,null,null,null,null,null,null,null,null,null,null,null,null,null,null,null,null,null,null,null,null,null,null,null,null,"VIC 717 Valve Check Brass GxG 2\"",null,158,null,null,null,null,null,null,"VIC 750 4.00\"x3.0\" Reducing Groove Coupling",null,{"$f":"64+(64*$CE$5)","v":86.4},null,null,null,80,null,null,null,null,null,null,null,null,null,null,null,null,null,null,null,null,null,null,null,null,null,null,"END"]
[null,null,null,null,null,null,null,null,null,null,null,null,null,null,null,null,null,null,null,"VIC 006 Cap Grooved 4 inch",null,9.25,null,null,17,null,null,null,null,null,null,null,null,null,null,null,null,null,"V27-V29 Conc Cvr Plate White 135/57 deg VIC Firelock",null,7.75,null,null,null,null,null,null,null,null,null,null,null,null,null,null,null,null,null,null,null,null,null,null,null,null,null,null,null,null,null,null,"VIC 717 Valve Check Brass GxG 3\"",null,165,null,null,null,null,null,null,"VIC 750 5.00\"x4.0\" Reducing Groove Coupling",null,{"$f":"84+(84*$CE$5)","v":113.4},null,null,null,89,null,null,null,null,null,null,null,null,null,null,null,null,null,null,null,null,null,null,null,null,null,null,"END"]
[null,null,null,null,null,null,null,null,null,null,null,null,null,null,null,null,null,null,null,"VIC 20 Grv Tee 2.0\"",null,18.75,null,null,null,null,null,null,null,null,null,null,null,null,null,null,null,null,"V3401 SSU 17/32 (3/4\") SPKR HD BRASS 155",null,10,null,null,null,null,null,null,null,null,null,null,null,null,null,null,null,null,null,null,null,null,null,null,null,null,null,null,null,null,null,null,"VIC 717 Valve Check Brass GxG 4\"",null,175,null,null,null,null,null,null,"VIC 750 6.00\"x4.0\" Reducing Groove Coupling",null,{"$f":"125+(125*$CE$5)","v":168.75},null,null,null,158,null,null,null,null,null,null,null,null,null,null,null,null,null,null,null,null,null,null,null,null,null,null,"END"]
[null,null,null,null,null,null,null,null,null,null,null,null,null,null,null,null,null,null,null,"VIC 20 Grv Tee 2.5\"",null,25,null,null,null,null,null,null,null,null,null,null,null,null,null,null,null,null,"V3401 SSU 17/32 (3/4\") SPKR HD BRASS 286",null,10,null,null,null,null,null,null,null,null,null,null,null,null,null,null,null,null,null,null,null,null,null,null,null,null,null,null,null,null,null,null,"VIC 717 Valve Check Brass GxG 6\"",null,430,null,null,null,null,null,null,"VIC 750 6.00\"x5.0\" Reducing Groove Coupling",null,{"$f":"110+(110*$CE$5)","v":148.5},null,null,null,null,null,null,null,null,null,null,null,null,null,null,null,null,null,null,null,null,null,null,null,null,null,null,"END"]
[null,null,null,null,null,null,null,null,null,null,null,null,null,null,null,null,null,null,null,"VIC 20 Grv Tee 3.0\"",null,35,null,null,null,null,null,null,null,null,null,null,null,null,null,null,null,null,"V3401 SSU 17/32 (3/4\") SPKR HD BRASS 299",null,10,null,null,null,null,null,null,null,null,null,null,null,null,null,null,null,null,null,null,null,null,null,null,null,null,null,null,null,null,null,null,"VIC 717 Valve Check Brass GxG 8\"",null,745,null,null,null,null,null,null,"VIC 750 8.00\"x6.0\" Reducing Groove Coupling",null,{"$f":"189+(189*$CE$5)","v":255.14999999999998},null,null,null,235,null,null,null,null,null,null,null,null,null,null,null,null,null,null,null,null,null,null,null,null,null,null,"END"]
[null,null,null,null,null,null,null,null,null,null,null,null,null,null,null,null,null,null,null,"zSpare 1",990,992,994,996,998,999,null,null,null,null,null,null,null,null,null,null,null,null,"V3402 0.75 QR Uprit brass V34 155 8.0K VIC Firelock Brs",null,13,null,null,null,null,null,null,null,null,null,null,null,null,null,null,null,null,null,null,null,null,null,null,null,null,null,null,null,null,null,null,"VIC FireLock VS-747M Zone Control Riser module 2.5\"",null,555,null,null,null,null,null,null,"VIC 77 2.00\" Standard Flexible",null,{"$f":"33+(33*$CE$5)","v":44.55},null,null,null,null,null,null,null,null,null,null,null,null,null,null,null,null,null,null,null,null,null,null,null,null,null,null,"END"]
[null,null,null,null,null,null,null,null,null,null,null,null,null,null,null,null,null,null,null,"zSpare 2",null,45.66,null,null,null,null,null,null,null,null,null,null,null,null,null,null,null,null,"V3402 0.75 QR Uprit brass V34 200 8.0K VIC Firelock Brs",null,13,null,null,null,null,null,null,null,null,null,null,null,null,null,null,null,null,null,null,null,null,null,null,null,null,null,null,null,null,null,null,"VIC FireLock VS-757 K01 Air Trim assembly",null,{"$f":"368+42","v":410},null,"Info Page",null,null,null,null,"VIC 77 2.50\" Standard Flexible",null,{"$f":"38+(38*$CE$5)","v":51.3},null,null,null,null,null,null,null,null,null,null,null,null,null,null,null,null,null,null,null,null,null,null,null,null,null,null,"END"]
[null,null,null,null,null,null,null,null,null,null,null,null,null,null,null,null,null,null,null,{"$f":"SUBTOTAL(103,Table27[Description])","v":97},null,null,null,null,{"$f":"SUBTOTAL(103,Table27[Galvanised])","v":5},null,null,null,null,null,null,null,null,null,null,null,null,null,"V3402 0.75 QR Uprit brass V34 286 8.0K VIC Firelock Brs",null,13,null,null,null,null,null,null,null,null,null,null,null,null,null,null,null,null,null,null,null,null,null,null,null,null,null,null,null,null,null,null,"Wafer Butterfly Valve Domestic w/Switch 4\"",null,{"$f":"375+75","v":450},null,null,null,null,null,null,"VIC 77 3.00\" Standard Flexible",null,{"$f":"42+(42*$CE$5)","v":56.7},null,null,null,null,null,null,null,null,null,null,null,null,null,null,null,null,null,null,null,null,null,null,null,null,null,null,"END"]
[null,null,null,null,null,null,null,null,null,null,null,null,null,null,null,null,null,null,null,null,null,null,null,null,null,null,null,null,null,null,null,null,null,null,null,null,null,null,"V3404 SSU 11.2 ELO231 QR SPKR HD BRASS 200",null,42,null,null,null,null,null,null,null,null,null,null,null,null,null,null,null,null,null,null,null,null,null,null,null,null,null,null,null,null,null,null,"Wafer Butterfly Valve Domestic w/Switch 8\"",null,{"$f":"761+75","v":836},null,null,null,null,null,null,"VIC 77 4.00\" Standard Flexible",null,{"$f":"60+(60*$CE$5)","v":81},null,null,null,null,null,null,null,null,null,null,null,null,null,null,null,null,null,null,null,null,null,null,null,null,null,null,"END"]
[null,null,null,null,null,null,null,null,null,null,null,null,null,null,null,null,null,null,null,null,null,null,null,null,null,null,null,null,null,null,null,null,null,null,null,null,null,null,"V3405 SSP 3/4 X 17/32 SPKR HD CHROME 155 Blk",null,18,null,null,null,null,null,null,null,null,null,null,null,null,null,null,null,null,null,null,null,null,null,null,null,null,null,null,null,null,null,null,"ZoneCheck Retro 4\" add $90 to freight field",null,1207,null,null,null,null,null,null,"VIC 77 6.00\" Standard Flexible",null,{"$f":"107+(107*$CE$5)","v":144.44999999999999},null,null,null,null,null,null,null,null,null,null,null,null,null,null,null,null,null,null,null,null,null,null,null,null,null,null,"END"]
[null,null,null,null,null,null,null,null,null,null,null,null,null,null,null,null,null,null,null,null,null,null,null,null,null,null,null,null,null,null,null,null,null,null,null,null,null,null,"V3406 SSP 3/4 X 17/32 QR SPKR HD Brass 155",null,12,null,null,null,null,null,null,null,null,null,null,null,null,null,null,null,null,null,null,null,null,null,null,null,null,null,null,null,null,null,null,{"$f":"SUBTOTAL(103,Table05[Description])","v":101},null,null,null,{"$f":"SUBTOTAL(103,Table05[Notes])","v":5},null,null,null,null,"VIC 77 8.00\" Standard Flexible",null,{"$f":"172+(172*$CE$5)","v":232.2},null,null,null,null,null,null,null,null,null,null,null,null,null,null,null,null,null,null,null,null,null,null,null,null,null,null,"END"]
[null,null,null,null,null,null,null,null,null,null,null,null,null,null,null,null,null,null,null,null,null,null,null,null,null,null,null,null,null,null,null,null,null,null,null,null,null,null,"V3406 SSP 3/4 X 17/32 QR SPKR HD Brass 200",null,20,null,null,null,null,null,null,null,null,null,null,null,null,null,null,null,null,null,null,null,null,null,null,null,null,null,null,null,null,null,null,"All Ranges must be sorted ALPHABETICALLY on 'Description'",null,null,null,null,null,null,null,null,"VIC Roust-A-Bout M99 1\"",null,{"$f":"117+(117*$CE$5)","v":157.94999999999999},null,null,null,null,null,null,null,null,null,null,null,null,null,null,null,null,null,null,null,null,null,null,null,null,null,null,"END"]
[null,null,null,null,null,null,null,null,null,null,null,null,null,null,null,null,null,null,null,null,null,null,null,null,null,null,null,null,null,null,null,null,null,null,null,null,null,null,"V3406 SSP 3/4 X 17/32 QR SPKR HD Chrome 155",null,14,null,null,null,null,null,null,null,null,null,null,null,null,null,null,null,null,null,null,null,null,null,null,null,null,null,null,null,null,null,null,null,null,null,null,null,null,null,null,null,"VIC Roust-A-Bout M99 2\"",null,{"$f":"131+(131*$CE$5)","v":176.85},null,null,null,null,null,null,null,null,null,null,null,null,null,null,null,null,null,null,null,null,null,null,null,null,null,null,"END"]
[null,"Index",null,null,null,null,null,null,null,"Index",null,null,null,null,null,null,null,"Index",null,null,null,null,null,null,null,null,null,"Index",null,null,null,null,null,null,null,"Index",null,null,"V3406 SSP 3/4 X 17/32 QR SPKR HD White 155",null,13,null,null,"Index",null,null,null,null,null,null,null,"Index",null,null,null,null,null,"Index",null,null,null,null,null,null,null,null,null,null,"Index",null,null,"https://www.pottersignal.com/",null,null,null,null,null,"Index",null,null,"VIC Roust-A-Bout M99 3\"",null,{"$f":"192+(192*$CE$5)","v":259.2},null,null,null,null,null,"Index",null,null,null,null,null,null,"Index",null,null,null,null,null,null,null,null,null,null,null,null,"Index","END"]
[null,null,null,null,null,null,null,null,null,null,null,null,null,null,null,null,null,null,null,null,null,null,null,null,null,null,null,null,null,null,null,null,null,null,null,null,null,null,"V3410 QR HSW 3/4 X 17/32 SPKR HD Blk 155",null,24,null,null,null,null,null,null,null,null,null,null,null,null,null,null,null,null,null,null,null,null,null,null,null,null,null,null,null,null,null,null,null,null,null,null,null,null,null,null,null,"VIC Roust-A-Bout M99 3.5\"",null,{"$f":"221+(221*$CE$5)","v":298.35000000000002},null,null,null,null,null,null,null,null,null,null,null,null,null,null,null,null,null,null,null,null,null,null,null,null,null,null,"END"]
[null,null,null,null,null,null,null,null,null,null,null,null,null,null,null,null,null,null,null,null,null,null,null,null,null,null,null,null,null,null,null,null,null,null,null,null,null,null,"V3410 QR HSW 3/4 X 17/32 SPKR HD BRASS 155",null,24,null,null,null,null,null,null,null,null,null,null,null,null,null,null,null,null,null,null,null,null,null,null,null,null,null,null,null,null,null,null,null,null,null,null,null,null,null,null,null,"VIC Roust-A-Bout M99 4\"",null,{"$f":"221+(221*$CE$5)","v":298.35000000000002},null,null,null,null,null,null,null,null,null,null,null,null,null,null,null,null,null,null,null,null,null,null,null,null,null,null,"END"]
[null,null,null,null,null,null,null,null,null,null,null,null,null,null,null,null,null,null,null,null,null,null,null,null,null,null,null,null,null,null,null,null,null,null,null,null,null,null,"V3410 QR HSW 3/4 X 17/32 SPKR HD CHROME 155 Blk",null,24,null,null,null,null,null,null,null,null,null,null,null,null,null,null,null,null,null,null,null,null,null,null,null,null,null,null,null,null,null,null,null,null,null,null,null,null,null,null,null,"VIC Roust-A-Bout M99 6\"",null,{"$f":"384+(384*$CE$5)","v":518.4},null,null,null,null,null,null,null,null,null,null,null,null,null,null,null,null,null,null,null,null,null,null,null,null,null,null,"END"]
[null,null,null,null,null,null,null,null,null,null,null,null,null,null,null,null,null,null,null,null,null,null,null,null,null,null,null,null,null,null,null,null,null,null,null,null,null,null,"V3410 QR HSW 3/4 X 17/32 SPKR HD CHROME 200 Blk",null,24,null,null,null,null,null,null,null,null,null,null,null,null,null,null,null,null,null,null,null,null,null,null,null,null,null,null,null,null,null,null,null,null,null,null,null,null,null,null,null,"VL0099PTO",null,{"$f":"325+(325*$CE$5)","v":438.75},null,null,null,null,null,null,null,null,null,null,null,null,null,null,null,null,null,null,null,null,null,null,null,null,null,null,"END"]
[null,null,null,null,null,null,null,null,null,null,null,null,null,null,null,null,null,null,null,null,null,null,null,null,null,null,null,null,null,null,null,null,null,null,null,null,null,null,"V3411 SSP 11.2 ELO-ECLH SPKR HD CHROME 155",null,29,null,null,null,null,null,null,null,null,null,null,null,null,null,null,null,null,null,null,null,null,null,null,null,null,null,null,null,null,null,null,null,null,null,null,null,null,null,null,null,"Weldlet 3 x 0.50",null,{"$f":"37.22+(37.22*$CE$5)","v":50.247},null,null,null,null,null,null,null,null,null,null,null,null,null,null,null,null,null,null,null,null,null,null,null,null,null,null,"END"]
[null,null,null,null,null,null,null,null,null,null,null,null,null,null,null,null,null,null,null,null,null,null,null,null,null,null,null,null,null,null,null,null,null,null,null,null,null,null,"V3506 QR 0.50 Dry SSP Brs V35 155 5.6K VIC Firelock  38\"",null,{"$f":"195+N(\"Head\")+22+N(\"Bracket\")","v":217},null,null,null,null,null,null,null,null,null,null,null,null,null,null,null,null,null,null,null,null,null,null,null,null,null,null,null,null,null,null,null,null,null,null,null,null,null,null,null,"Weldlet 3 x 0.75",null,{"$f":"37.22+(37.22*$CE$5)","v":50.247},null,null,null,null,null,null,null,null,null,null,null,null,null,null,null,null,null,null,null,null,null,null,null,null,null,null,"END"]
[null,null,null,null,null,null,null,null,null,null,null,null,null,null,null,null,null,null,null,null,null,null,null,null,null,null,null,null,null,null,null,null,null,null,null,null,null,null,"V3506 QR 0.50 Dry SSP Brs V35 155 5.6K VIC Firelock  58\"",null,{"$f":"+N(\"Head @\")+210+N(\"Bracket @\")+22","v":232},null,null,null,null,null,null,null,null,null,null,null,null,null,null,null,null,null,null,null,null,null,null,null,null,null,null,null,null,null,null,null,null,null,null,null,null,null,null,null,"Weldlet 3 x 1.00",null,{"$f":"38.96+(38.96*$CE$5)","v":52.596000000000004},null,null,null,null,null,null,null,null,null,null,null,null,null,null,null,null,null,null,null,null,null,null,null,null,null,null,"END"]
[null,null,null,null,null,null,null,null,null,null,null,null,null,null,null,null,null,null,null,null,null,null,null,null,null,null,null,null,null,null,null,null,null,null,null,null,null,null,"V3602 QR 0.50 Dry SSU Brs V36 200 8.0K VIC Firelock SSU",null,80,null,null,null,null,null,null,null,null,null,null,null,null,null,null,null,null,null,null,null,null,null,null,null,null,null,null,null,null,null,null,null,null,null,null,null,null,null,null,null,"Weldlet 3 x 1.25",null,{"$f":"48.95+(48.95*$CE$5)","v":66.08250000000001},null,null,null,null,null,null,null,null,null,null,null,null,null,null,null,null,null,null,null,null,null,null,null,null,null,null,"END"]
[null,null,null,null,null,null,null,null,null,null,null,null,null,null,null,null,null,null,null,null,null,null,null,null,null,null,null,null,null,null,null,null,null,null,null,null,null,null,"V3606 A-20 NR 135 Cover Plate VIC Firelock",null,13,null,null,null,null,null,null,null,null,null,null,null,null,null,null,null,null,null,null,null,null,null,null,null,null,null,null,null,null,null,null,null,null,null,null,null,null,null,null,null,"Weldlet 3 x 1.50",null,{"$f":"44.66+(44.66*$CE$5)","v":60.290999999999997},null,null,null,null,null,null,null,null,null,null,null,null,null,null,null,null,null,null,null,null,null,null,null,null,null,null,"END"]
[null,null,null,null,null,null,null,null,null,null,null,null,null,null,null,null,null,null,null,null,null,null,null,null,null,null,null,null,null,null,null,null,null,null,null,null,null,null,"V3606 QR 1.00 Dry Pendant 155 K5.6 401 Escutcheon VIC Firelock 12\" or 18\"",null,140,null,null,null,null,null,null,null,null,null,null,null,null,null,null,null,null,null,null,null,null,null,null,null,null,null,null,null,null,null,null,null,null,null,null,{"$f":"SUBTOTAL(103,ListWet!$P$113:$P$119)","v":0},null,null,null,null,"WROT CxF Adapter (copper) (female) 1.0\"",null,11,null,null,null,null,null,null,null,null,null,null,null,null,null,null,null,null,null,null,null,null,null,null,null,null,null,null,"END"]
[null,null,null,null,null,null,null,null,null,null,null,null,null,null,null,null,null,null,null,null,null,null,null,null,null,null,null,null,null,null,null,null,null,null,null,null,null,null,"V3606 QR 1.00 Dry Pendant 200 K5.6 401 Escutcheon VIC Firelock 12\" or 18\"",null,148,null,null,null,null,null,null,null,null,null,null,null,null,null,null,null,null,null,null,null,null,null,null,null,null,null,null,null,null,null,null,null,null,null,null,null,null,null,null,null,"WROT CxF Adapter (copper) (female) 1.5\"",null,32,null,null,null,null,null,null,null,null,null,null,null,null,null,null,null,null,null,null,null,null,null,null,null,null,null,null,"END"]
[null,null,null,null,null,null,null,null,null,null,null,null,null,null,null,null,null,null,null,null,null,null,null,null,null,null,null,null,null,null,null,null,null,null,null,null,null,null,"V3610 QR DRY HSW 200 K5.6 VIC Firelock",null,110,null,null,null,null,null,null,null,null,null,null,null,null,null,null,null,null,null,null,null,null,null,null,null,null,null,null,null,null,null,null,null,null,null,null,null,null,null,null,null,"WROT CxF Adapter (copper) (female) 3/4 x 1/2 \"",null,8,null,null,null,null,null,null,null,null,null,null,null,null,null,null,null,null,null,null,null,null,null,null,null,null,null,null,"END"]
[null,null,null,null,null,null,null,null,null,null,null,null,null,null,null,null,null,null,null,null,null,null,null,null,null,null,null,null,null,null,null,null,null,null,null,null,null,null,"V3612 DRY HSW & Recessed HSW K8 VIC Firelock",null,95,null,null,null,null,null,null,null,null,null,null,null,null,null,null,null,null,null,null,null,null,null,null,null,null,null,null,null,null,null,null,null,null,null,null,null,null,null,null,null,"WROT CxM Adapter (copper) (male)",null,21,null,null,null,null,null,null,null,null,null,null,null,null,null,null,null,null,null,null,null,null,null,null,null,null,null,null,"END"]
[null,null,null,null,null,null,null,null,null,null,null,null,null,null,null,null,null,null,null,null,null,null,null,null,null,null,null,null,null,null,null,null,null,null,null,null,null,null,"V3800 Concealer Cover Plate White 135",null,10,null,null,null,null,null,null,null,null,null,null,null,null,null,null,null,null,null,null,null,null,null,null,null,null,null,null,null,null,null,null,null,null,null,null,null,null,null,null,null,"zSpare",null,35,null,null,null,null,null,null,null,null,null,null,null,null,null,null,null,null,null,null,null,null,null,null,null,null,null,null,"END"]
[null,"Index",null,null,null,null,null,null,null,"Index",null,null,null,null,null,null,null,"Index",null,null,null,null,null,null,null,null,null,"Index",null,null,null,null,null,null,null,"Index",null,null,"V3801 SR 0.50 Conc K5.6 Ord/Light Haz VIC Firelock",null,18.86,null,null,"Index",null,null,null,null,null,null,null,"Index",null,null,null,null,null,"Index",null,null,null,null,null,null,null,null,null,null,"Index",null,null,null,null,null,null,null,null,"Index",null,null,"zSpare",null,65,null,null,null,null,null,"Index",null,null,null,null,null,null,"Index",null,null,null,null,null,null,null,null,null,null,null,null,"Index","END"]
[null,null,null,null,null,null,null,null,null,null,null,null,null,null,null,null,null,null,null,null,null,null,null,null,null,null,null,null,null,null,null,null,null,null,null,null,null,null,"V3801 SR K5.6 Cover Plate VIC Firelock",null,12.75,null,null,null,null,null,null,null,null,null,null,null,null,null,null,null,null,null,null,null,null,null,null,null,null,null,null,null,null,null,null,null,null,null,null,null,null,null,null,null,null,null,null,null,null,null,null,null,null,null,null,null,null,null,null,null,null,null,null,null,null,null,null,null,null,null,null,null,null,"END"]
[null,null,null,null,null,null,null,null,null,null,null,null,null,null,null,null,null,null,null,null,null,null,null,null,null,null,null,null,null,null,null,null,null,null,null,null,null,null,"V3802 QR 155 Conc K5.6 VIC Firelock 0.50\" Brs",null,16.25,null,null,null,null,null,null,null,null,null,null,null,null,null,null,null,null,null,null,null,null,null,null,null,null,null,null,null,null,null,null,null,null,null,null,null,null,null,null,null,{"$f":"SUBTOTAL(103,Table26[Description])","v":120},null,null,null,null,null,{"$f":"SUBTOTAL(103,Table26[Galvanised])","v":32},null,null,null,null,null,null,null,null,null,null,null,null,null,null,null,null,null,null,null,null,null,null,"END"]
[null,null,null,null,null,null,null,null,null,null,null,null,null,null,null,null,null,null,null,null,null,null,null,null,null,null,null,null,null,null,null,null,null,null,null,null,null,null,"V3802 QR K5.6 Cover Plate VIC Firelock",null,9,null,null,null,null,null,null,null,null,null,null,null,null,null,null,null,null,null,null,null,null,null,null,null,null,null,null,null,null,null,null,null,null,null,null,null,null,null,null,null,null,null,null,null,null,null,null,null,null,null,null,null,null,null,null,null,null,null,null,null,null,null,null,null,null,null,null,null,null,"END"]
[null,null,null,null,null,null,null,null,null,null,null,null,null,null,null,null,null,null,null,null,null,null,null,null,null,null,null,null,null,null,null,null,null,null,null,null,null,null,"V3806 SP Res 1/2 5.6K Conc BZ 155 Brass",null,14,null,null,null,null,null,null,null,null,null,null,null,null,null,null,null,null,null,null,null,null,null,null,null,null,null,null,null,null,null,null,null,null,null,null,null,null,null,null,null,null,null,null,null,null,null,null,null,null,null,null,null,null,null,null,null,null,null,null,null,null,null,null,null,null,null,null,null,null,"END"]
[null,null,null,null,null,null,null,null,null,null,null,null,null,null,null,null,null,null,null,null,null,null,null,null,null,null,null,null,null,null,null,null,null,null,null,null,null,null,"Viking VK545 Dry Pendent head P/N 20783JNE12  12\" Heat Resistant coat",null,160,"Costco #1019 WA32443",null,null,null,null,null,null,null,null,null,null,null,null,null,null,null,null,null,null,null,null,null,null,null,null,null,null,null,null,null,null,null,null,null,null,null,null,null,null,null,null,null,null,null,null,null,null,null,null,null,null,null,null,null,null,null,null,null,null,null,null,null,null,null,null,null,null,null,"END"]
[null,null,null,null,null,null,null,null,null,null,null,null,null,null,null,null,null,null,null,null,null,null,null,null,null,null,null,null,null,null,null,null,null,null,null,null,null,null,"Viking VK685 BB head see Viking web site"]
[null,null,null,null,null,null,null,null,null,null,null,null,null,null,null,null,null,null,null,null,null,null,null,null,null,null,null,null,null,null,null,null,null,null,null,null,null,null,"zSpare 01",null,6]
[null,null,null,null,null,null,null,null,null,null,null,null,null,null,null,null,null,null,null,null,null,null,null,null,null,null,null,null,null,null,null,null,null,null,null,null,null,null,"zSpare 02"]
[null,null,null,null,null,null,null,null,null,null,null,null,null,null,null,null,null,null,null,null,null,null,null,null,null,null,null,null,null,null,null,null,null,null,null,null,null,null,{"$f":"SUBTOTAL(103,tblHeads[Description]) & \" Items\"","v":"128 Items"},null,null,{"$f":"SUBTOTAL(103,tblHeads[Notes])","v":9}]
[]
[]
[null,null,null,null,null,null,null,null,null,null,null,null,null,null,null,null,null,null,null,null,null,null,null,null,null,null,null,null,null,null,null,null,null,null,null,null,null,null,"http://www.fppi.com/"]
[]
[null,null,null,null,null,null,null,null,null,null,null,null,null,null,null,null,null,null,null,null,null,null,null,null,null,null,null,null,null,null,null,null,null,null,null,null,null,null,"http://www.nibco.com/Valves/Fire-Protection/"]

{"sheet":"ListSub","index":2,"n_rows":39,"n_cols":28,"rows_kept":39,"cut":false,"hidden":false,"merged":[]}
[null,"Ver 2020-Feb-03   13:22",null,null,"SUBCONTRACTORS & Monitoring"]
[null,null,null,null,null,null,null,"Medium Blue 9",null,null,null,null,null,null,null,null,null,null,null,"Alarm Devices Index"]
[null,"INDEX",null,null,"All Ranges must be sorted ALPHABETICALLY on 'Description'",null,null,null,null,"Index",null,null,"All Ranges must be sorted ALPHABETICALLY on 'Description'"]
[null,null,null,null,null,null,null,"Styles>Format-as-Table",null,null,null,null,null,null,null,null,null,null,null,"Sprinkler Devices Index"]
[null,"AWP & Rentals",null,null,"OutSide SubContractors",null,null,null,null,null,null,null,"Monitoring  EM24=Craig Popowcer","Cost to FSS","Sell Price","Monthly","Annualised",null,null,"AWP & Rentals",null,null,"AWP & Rentals"]
[null,"Monitoring",null,null,"Description","CP $Hr","SP $Hr","Column1",null,null,null,null,"Description","$cost","$sell","$perMo","REVIEW","Notes",null,"Monitoring",null,null,"Height","Description","Day","Week","Month","PkUpAnDroPov"]
[null,"Subs",null,null,"01 Core Driller A-Core",200,{"$f":"+F7+(F7/2)","v":300},null,null,null,null,null,"A DSC24 Wireless per panel Annual",{"$f":"+N(\"C24 \")+17.7+N(\"E24 \")+6+N(\"DailyAuto\")+1.5+N(\"BillFee\")+1+4.5","v":30.7},{"$f":"12*60","v":720},72,{"$f":"+O7","v":720},null,null,"Subs",null,null,1932,"19 ft Scissor Lift FSS1930 30 ins wide",115,250,450,75]
[null,null,null,null,"01 Design KLJ Kent J NICET IV",55,{"$f":"+F8+(F8/2)","v":82.5},null,null,null,null,null,"A POTS Line per panel Annual",{"$f":"6+1.5+4.5+1","v":13},{"$f":"12*55","v":660},{"$f":"+O8/12","v":55},{"$f":"+O8","v":660},null,null,null,null,null,2032,"20 ft Scissor Lift FSS2032 30 ins wide  3,439 lb",125,265,575,75]
[null,null,null,null,"01 Electrician KP Electric Sandy",55,{"$f":"+F9+(F9/2)","v":82.5},null,null,null,null,null,"A STARLINK SLE-LTEV-CFB-PS RADIO W/ Power supply",30.7,{"$f":"12*60","v":720},3,720,null,null,null,null,null,2632,"26 ft Scissor Lift Genie (narrow) 2632 32 ins wide",215,365,725,75]
[null,null,null,null,"02 Design SFPS Rafael Castillo NICET IV",55,{"$f":"+F10+(F10/2)","v":82.5},null,null,null,null,null,"B DSC24 Wireless per panel bi-annual",{"$f":"6+1.5+4.5+1+17.7","v":30.7},{"$f":"6*61","v":366},{"$f":"+O10/6","v":61},{"$f":"+O10*2","v":732},null,null,null,null,null,"2632T","26 ft Scissor Lift Genie 2632 32 ins wide w/Howe Trailer",215,450,950,75]
[null,null,null,null,"02 Electrician Girres James Brother",50,{"$f":"+F11+(F11/2)","v":75},null,null,null,null,null,"B POTS DigiLine per panel bi-annual",{"$f":"6+1.5+4.5+1","v":13},{"$f":"6*56","v":336},{"$f":"+O11/6","v":56},{"$f":"+O11*2","v":672},null,null,null,null,null,2646,"26 ft Scissor Lift Genie 2646  46 ins wide 4,530lb 2 5/16\"",120,325,650,75]
[null,null,null,null,"03 Fabrication All Fab",null,"enter $->",null,null,null,null,null,"C DSC24 Wireless per panel per quarter",{"$f":"6+1.5+4.5+1+17.7","v":30.7},{"$f":"3*63","v":189},{"$f":"+O12/3","v":63},{"$f":"+O12*4","v":756},null,null,null,null,null,2630,"26 ft Scissor Lift JLG2646ES 46 ins wide",125,265,575,75]
[null,null,null,null,"03 Fabrication Ferguson Fab",null,"enter $->",null,null,null,null,null,"C POTS DigiLine per panel quarter",{"$f":"6+1.5+4.5+1","v":13},{"$f":"3*58","v":174},{"$f":"+O13/3","v":58},{"$f":"+O13*4","v":696},null,null,null,null,null,3232,"32 ft Scissor Lift GS3232 32 ins wide",165,450,950,75]
[null,null,null,null,"04 Design EST Spectrum Brock Sere",null,"enter $->",null,null,null,null,null,"E NapCo Wireless per panel per month",{"$f":"6+1.5+4.5+1+17.7","v":30.7},66,{"$f":"+O14/1","v":66},{"$f":"+O14*12","v":792},null,null,null,null,null,3246,"32 ft Scissor Lift JLG3246ES 46 ins wide",150,445,650,75]
[null,null,null,null,"04 Design PCI Brady Haws et al",null,"enter $->",null,null,null,null,null,"E POTS DigiLine per panel per month",{"$f":"6+1.5+4.5+1","v":13},60,{"$f":"+O15/1","v":60},{"$f":"+O15*12","v":720},null,null,null,null,null,3947,"39 ft Scissor Lift Haulotte 3947 47\" wide",375,700,1200,75]
[null,null,null,null,"05 Design RDF Engineering & Fazzio",550,{"$f":"+F16+(F16/2)","v":825},null,null,null,null,null,"Numerex-Sierra for UpLink",0,{"$f":"12*60","v":720},72,0,null,null,null,null,null,4076,"40 ft Boom lift G4076 Narrow Knuckle with rotator Electric",340,825,1920,140]
[null,null,null,null,"05 Insulation Cardall USI TENTING",null,"enter $->",null,null,null,null,null,"z DSC24 Monitoring plus WireLess Connection. Annual Contract",null,720,{"$f":"+O17/12","v":60},null,null,null,null,null,null,4069,"40 ft Scissor lift JLG 4069LE 69\" Wide",370,740,1500,125]
[null,null,null,null,"09 a Compliance Reporting Fee generic",null,30,null,null,null,null,null,"z POTS Monitoring only. YOU pay for Line. Annual Contract",null,660,{"$f":"+O18/12","v":55},null,null,null,null,null,null,4525,"45 ft Boom lift Articulated Battery Genie 4525",325,650,1600,130]
[null,null,null,null,"09 b Compliance Reporting Fee American Fork",null,55,null,null,null,null,null,{"$f":"SUBTOTAL(103,Table03[Description])&\" Items\"","v":"12 Items"},null,null,null,null,null,null,null,null,null,"450A","45 ft Boom lift Articulated Battery JLG E450A",325,650,1600,130]
[null,null,null,null,"10 Consulting Arun or Other",80,100,null,null,null,null,null,"MUST SELECT 'Supervisory 300secs' to see the 4MByte option",null,null,null,null,null,null,null,null,null,4575,"45 ft Boom Lift Knuckle JLG4075",325,650,1600,130]
[null,null,null,null,null,null,null,null,null,null,null,null,null,null,null,null,null,null,null,null,null,null,6972,"69-72 Boom Lift Compact Crawler Teupen LE023GT",1762,4980,13762,150]
[null,null,null,null,null,null,null,null,null,null,null,null,null,null,null,null,null,null,null,null,null,null,80,"80 ft Boom Articulated",600,2000,4800,{"$f":"150/2","v":75}]
[null,null,null,null,null,null,null,null,null,null,null,null,null,null,null,null,null,null,null,null,null,null,550,"Boom Lift Compact Crawler JLG x550-AJ",782,null,null,110]
[null,null,null,null,null,null,null,null,null,null,null,null,null,null,null,null,null,null,null,null,null,null,32,"Compressor Cage 32 CFM truck deck",60,300,500,75]
[null,null,null,null,null,null,null,null,null,null,null,null,"DSC Annual",720,{"$f":"+N25","v":720},"aa",null,null,null,null,null,null,50,"Compressor Hose w/Chicago Fittings",10,40,80,10]
[null,null,null,null,null,null,null,null,null,null,null,null,"POTS Annual",660,{"$f":"+N26","v":660},"aa",null,null,null,null,null,null,185,"Compressor Trailered 185 CFM",140,365,895,75]
[null,null,null,null,null,null,null,null,null,null,null,null,"DSC Bi-Annual",366,{"$f":"+N27*2","v":732},"bb",{"$f":"+N27/6","v":61},null,null,null,null,null,375,"Compressor Trailered 375 CFM",220,575,1400,75]
[null,null,null,null,null,null,null,null,null,null,null,null,"POTS Bi-Annual",336,{"$f":"+N28*2","v":672},"bb",{"$f":"+N28/6","v":56},null,null,null,null,null,15,"Dumpster 15 yd $100",165,165,165,45]
[null,null,null,null,null,null,null,null,null,null,null,null,"DSC Quarterly",189,{"$f":"+N29*3","v":567},"cc",{"$f":"+N29/3","v":63},null,null,null,null,null,8000,"Fork Lift Howe 8000 lb",150,575,1500,75]
[null,null,null,null,null,null,null,null,null,null,null,null,"POTS Quarterly",174,{"$f":"+N30*3","v":522},"cc",{"$f":"+N30/3","v":58},null,null,null,null,null,2,"Hitch w/Ball & Pin (trailer)",13,50,100,13]
[null,null,null,null,null,null,null,null,null,null,null,null,"DSC Monthly",65,{"$f":"+N31*12","v":780},"dd",null,null,null,null,null,null,21,"Pallet Jack Narrow = 21\"",35,240,750,75]
[null,null,null,null,null,null,null,null,null,null,null,null,"POTS Monthly",60,{"$f":"+N32*12","v":720},"dd",null,null,null,null,null,null,27,"Pallet Jack Narrow = 27\"",45,315,1200,75]
[null,null,null,null,null,null,null,null,null,null,null,null,null,null,null,null,null,null,null,null,null,null,30,"Personnel lift Genie AWP30 ft",{"$f":"120+35","v":155},null,null,75]
[null,null,null,null,null,null,null,null,null,null,null,null,null,"Index",null,null,null,null,null,null,null,null,6000,"Reach Lift 6000 lb",350,900,2050,95]
[null,null,null,null,null,null,null,null,null,"Index",null,null,null,null,null,null,null,null,null,"Index",null,null,7000,"Trailer Hydraulic FSS 7000lb Lift Bed",135,380,925,25]
[null,null,null,null,null,null,null,null,null,null,null,null,null,null,null,null,null,null,null,null,null,null,2703,"Trailer Hydraulic Lift Bed",150,385,950,0]
[null,null,null,null,null,null,null,null,null,null,null,null,null,null,null,null,null,null,null,null,null,null,20,"Trailer w/winch FSS",100,275,450,25]
[null,null,null,null,null,null,null,null,null,null,null,null,null,null,null,null,null,null,null,null,null,null,19,"zzSpare",100,215,450,75]
[null,null,null,null,null,null,null,null,null,null,null,null,null,null,null,null,null,null,null,null,null,null,null,{"$f":"SUBTOTAL(103,Table01[Description])","v":32}]

{"sheet":"Misc","index":3,"n_rows":103,"n_cols":11,"rows_kept":103,"cut":false,"hidden":false,"merged":[]}
[null,"Ver 2021-Jan-06   11:03",null,null,"Bits & Pieces"]
[]
[null,"INDEX",null,null,"All Ranges must be sorted ALPHABETICALLY on 'Description'",null,null,null,"Index",null,"IMPLEMENTED 2016-10-16"]
[]
[null,null,null,null,null,null,null,null,null,"END"]
[null,null,null,null,"Misc",{"$f":"(12)%","v":0.12},{"$f":"(12)%","v":0.12},null,null,"END"]
[null,null,null,null,"Description","$","$2","Notes","Column1","END"]
[null,null,null,null,"A1 Drivers cPVC Screw for Tolco 22,23,24   500 in box",null,30,null,null,"END"]
[null,null,null,null,"All Thread 1/2 Black 10ft length 0.57 per ft",0.57999999999999996,{"$f":"+Table2911[[#This Row],[$]]*10","v":5.8},null,null,"END"]
[null,null,null,null,"All Thread 3/4 Black 10ft length 1.20 per ft",0.62,{"$f":"+Table2911[[#This Row],[$]]*10","v":6.2},null,null,"END"]
[null,null,null,null,"All Thread 3/8 Black 10ft length 0.38 per ft",0.55000000000000004,{"$f":"+Table2911[[#This Row],[$]]*10","v":5.5},null,null,"END"]
[null,null,null,null,"All Thread 3/8 Rod Chaser tool Cleans threadss after a cut",null,44,null,null,"END"]
[null,null,null,null,"All Thread 3/8 Rod Coupler (joins All thread rod)",null,5.75,null,null,"END"]
[null,null,null,null,"Bac-T Pack Tester Kit black, red yellow (Potter Electric)",null,203,null,null,"END"]
[null,null,null,null,"Barricade Tape per 1,000ft",null,10,null,null,"END"]
[null,null,null,null,"Battery Lithium Ion Millwaukee M18 Red XC6.0 extended",119,60,null,null,"END"]
[null,null,null,null,"Bell Alarm External Gong 120V AC 10\" add $11 for WeatherPf BackBox",null,36,null,null,"END"]
[null,null,null,null,"Bell Alarm External Gong 120V AC 6\" add $11 for WeatherPf BackBox",null,25,null,null,"END"]
[null,null,null,null,"Bell Alarm External Gong 12VDC 10\" add $11 for WeatherPf BackBox",null,36,null,null,"END",{"$f":"5/8","v":0.625}]
[null,null,null,null,"Bell Alarm External Gong 12VDC 6\" add $11 for WeatherPf BackBox",null,29,null,null,"END"]
[null,null,null,null,"Bell Alarm External Gong 12VDC 8\" add $11 for WeatherPf BackBox",null,38,null,null,"END"]
[null,null,null,null,"Chain for signs at riser. Per foot",null,0.25,null,null,"END"]
[null,null,null,null,"Chop Saw DeWalt 14\" HD 15 Amp $215",null,{"$f":"215/5","v":43},null,null,"END"]
[null,null,null,null,"CPVC DeBur tool for CPVC 0.5-1-0.5\"",null,24,null,null,"END"]
[null,null,null,null,"CPVC Glue One-Step One Pint",null,11,null,null,"END"]
[null,null,null,null,"CPVC Glue One-Step One Quart",null,21,null,null,"END"]
[null,null,null,null,"CPVC Pipe Cutter 1.25\" - 2\"",56,60,null,null,"END"]
[null,null,null,null,"CPVC Pipe Cutter 3/4\" - 2\"  (here I put 1/4 of our cost)",195,{"$f":"+F28/4","v":48.75},null,null,"END"]
[null,null,null,null,"CPVC Pipe Cutter Hand Cutter FFAB  (here I put 1/4 of our cost)",110,28,null,null,"END"]
[null,null,null,null,"CPVC Pipe Cutter INSIDE FFAB  (here I put 1/4 of our cost)",225,55,null,null,"END"]
[null,null,null,null,"Cutting Oil Rigid per gallon",null,28,null,null,"END"]
[null,null,null,null,"Drill Bits (for Wood, Hammer drill etc.)",4,25,null,null,"END"]
[null,null,null,null,"Drill portable. Milwaukee 0.5\" chuck  (here I put 1/4 of our cost)",170,{"$f":"+F33/4","v":42.5},null,null,"END"]
[null,null,null,null,"Drill portable. Milwaukee 5/8\" Hammer  (here I put 1/8 of our cost)",705,35,null,null,"END"]
[null,null,null,null,"Dura Ink 15 Marker pen",null,1.25,null,null,"END"]
[null,null,null,null,"Electrical Breaker B120 S01- SP20A",30,30,null,null,"END"]
[null,null,null,null,"Electrical Breaker Shunt-Trip B12000 S01- SP20A Siemens",75,75,null,null,"END"]
[null,null,null,null,"Electrical Breaker Shunt-Trip B21500 S01- DP15A Siemens",75,75,null,null,"END"]
[null,null,null,null,"FeDex Binding per one NFPA-25  Red cover",null,5.5,null,null,"END"]
[null,null,null,null,"FeDex Binding per one NFPA-72  Red cover",null,5.5,null,null,"END"]
[null,null,null,null,"Fire Caulk Ferguson 12 in a case, price ea tube is",null,12,null,null,"END"]
[null,null,null,null,"Fire Caulk HD Supply 12 in a case, price ea tube is",null,12,null,null,"END"]
[null,null,null,null,"Flashlight Nebo Slyde King 6434 rechargeable LED wok light",null,36,null,null,"END"]
[null,null,null,null,"Foam insulating expansion per can",null,8,null,null,"END"]
[null,null,null,null,"Gloves per pair Black Nitr Foam Coat",null,4.25,null,null,"END"]
[null,null,null,null,"Hole Saw 1.00\" ARBOR QC (it means it comes with a shaft-drill)",null,26.25,null,null,"END"]
[null,null,null,null,"Hole Saw 1.50\"",null,13,null,null,"END"]
[null,null,null,null,"Hole Saw 1.75\"",null,13.55,null,null,"END"]
[null,null,null,null,"Hole Saw 2.00\"",null,15.59,null,null,"END"]
[null,null,null,null,"Hole Saw 2.50\"",null,17.5,null,null,"END"]
[null,null,null,null,"Hole Saw 2.75\"",null,16.75,null,null,"END"]
[null,null,null,null,"Hole Saw 3.00\"",null,17,null,null,"END"]
[null,null,null,null,"Hole Saw 3.50\"",null,18,null,null,"END",1]
[null,null,null,null,"Hole Saw 4.00\"",null,26,null,null,"END"]
[null,null,null,null,"Hole Saw 4.50\"",null,51,null,null,"END"]
[null,null,null,null,"Hole Saw 7/16\" ARBOR QC",null,19,null,null,"END"]
[null,null,null,null,"Hole Saw Keyhole",null,12,null,null,"END"]
[null,null,null,null,"Jim-Caps with Hose Clamp",null,3,null,null,"END"]
[null,null,null,null,"Laser Measure 135ft $100",null,100,null,null,"END"]
[null,null,null,null,"Level Torpedo",null,32,null,null,"END"]
[null,null,null,null,"LF 1# Prem Silver Solder per roll",null,24,null,null,"END"]
[null,null,null,null,"LF 14gal ASME Expansion Tank",null,2500,null,null,"END"]
[null,null,null,null,"LF 2.1gal ASME Expansion Tank",null,1250,null,null,"END"]
[null,null,null,null,"Magnetic bit holder 3\"",null,6.85,null,null,"END"]
[null,null,null,null,"Marker VLV Action Paint  Red/Whit/ or Yell  each",null,4.25,null,null,"END"]
[null,"Index",null,null,"Metaprod SP316100 1.50\"x3.0\" 16Ga Nail Safety Plate Box of 100=$10",0.1,10,null,null,"END"]
[null,null,null,null,"Pipe Dope",null,47.66,null,null,"END"]
[null,null,null,null,"Pipe Sleeve Blue/Cold IPS 2\"x 200ft box LP3016 (AKA Cock or Blue Sleeve)",null,42,"Link",null,"END"]
[null,null,null,null,"Pipe Wrap Mtn States",null,165,null,null,"END"]
[null,null,null,null,"Plastic sheeting per Roll",null,20,null,null,"END"]
[null,null,null,null,"Porta Band blades Milwaukee each",null,9,null,null,"END"]
[null,null,null,null,"Punch OC 2 Center & Level",null,69,null,null,"END"]
[null,null,null,null,"Respirator 3M 3pk",null,5,null,null,"END"]
[null,null,null,null,"Rigid Die Set 1 to 2 \" HS  (here I put 1/4 of our cost)",170,{"$f":"+F74/4","v":42.5},null,null,"END"]
[null,null,null,null,"Rigid Pipe Extractor .75\" Model 84 35615",null,26,null,null,"END"]
[null,null,null,null,"Rigid Pipe Extractor 1.00\" Model 85 35620",null,27,null,null,"END"]
[null,null,null,null,"Rigid Pipe Extractor 1.25\" Model 86 35625",null,28,null,null,"END"]
[null,null,null,null,"Rigid Pipe Extractor 1.5\" Model 87 35630",null,32,null,null,"END"]
[null,null,null,null,"Rigid Pipe Extractor SET 1.5\" Model 87 35630",null,null,null,null,"END"]
[null,null,null,null,"Riser Sign  \"Fire Sprinkler Riser Room\" 9\" x 15\"",null,37,null,null,"END"]
[null,null,null,null,"Sammy Xpress Install Tool",113,30,null,null,"END"]
[null,null,null,null,"Screwdriver 4-in-1 Electronic",null,17]
[null,null,null,null,"Signs for riser stack: AntiFrz, Alarm Test, Auxiliary Drain, Control Valve, Main Drain etc.",0.55000000000000004,1]
[null,null,null,null,"Tape Pipe Grinnell PT 1000",null,32]
[null,null,null,null,"Tape Teflon 0.75\" x 520\" 80 rolls to a ctn.  Per roll is",null,1]
[null,null,null,null,"Terry Cloth (3 towels)",null,5]
[null,null,null,null,"Thread Seal Blue 75 1 pint",null,21]
[null,null,null,null,"Thread Seal Blue 75 1 quart",null,30]
[null,null,null,null,"Toggles 1/2-13 $97.36 per 100",null,1]
[null,null,null,null,"Trubolt (RedHead) Wedge Anchr 3/8x2-3/4 CS WA38234 $106 per 100",null,{"$f":"(105.287/100)","v":1.05287}]
[null,null,null,null,"Unistrut $2.5 per foot. Or      per 10 feet it is:",2.5,25]
[null,null,null,null,"Vic Lube $11 per Quart + Brush $2",null,13]
[null,null,null,null,"WD-40 8oz",null,7,null,"Index"]
[null,null,null,null,"Weld Sealant ANAEROBIC 1-LITER",null,24]
[null,null,null,null,"Wrench Impact Milwaukee 0.5\"  (here I put 1/4 of our cost)",160,{"$f":"+F95/4","v":40}]
[null,null,null,null,"Wrench Pipe Rigid #31100 Alum 18\"  $62 (here I put 1/4 of our cost)",62,15.5]
[null,null,null,null,"Wrench Pipe Rigid #31105 Alum 24\"  $140 (here I put 1/4 of our cost)",140,{"$f":"140/4","v":35}]
[null,null,null,null,"Lock Break-away brs Anvil",null,14]
[]
[]
[]
[]
[null,null,null,null,"All Ranges must be sorted ALPHABETICALLY on 'Description'"]

{"sheet":"Calcs","index":4,"n_rows":55,"n_cols":18,"rows_kept":55,"cut":false,"hidden":false,"merged":[]}
[null,"Ver 2016-May-17   21:00"]
[null,null,null,"All Ranges must be sorted ALPHABETICALLY on 'Description'"]
[]
[]
[]
[null,null,null,"List","T","$",null,null,null,"Automatic Sprinkler","NFPA-13"]
[null,null,null,"One",6,3,null,null,null,"One or two family dwelling","NFPA-13D"]
[null,null,null,"Two",6,2,null,null,null,"Residential occupancy up to four stories","NFPA-13R"]
[null,null,null,"Three",null,1,null,null,null,"National Fire Alarm Code","NFPA-72"]
[]
[null,null,null,null,null,null,null,null,null,"Day Care = Group E Occupancy"]
[null,null,null,{"$f":"SUBTOTAL(103,Calcs!$D$7:$D$11) &\" Items\"","v":"3 Items"}]
[]
[]
[null,"Need to create a 'Build' list"]
[null,null,"ie pick a Compress, add Pads, Floor Mounting Bolts, AMD Pipe, Gauges. Blow-Down, Dessicant"]
[]
[]
[]
[]
[null,null,null,null,null,null,null,null,null,"Alarm Monitoring Rates",null,null,null,null,null,"as at::","2016-04-26"]
[null,null,null,null,null,null,null,null,null,null,null,null,"POTS",null,null,"DSC"]
[null,null,"EST"," -FSS Does not supply only via Spectrum-Brock","GE",null,null,null,null,null,"Number of","pay every",null,null,"Over the",null,null,"Over the"]
[null,null,"FIKE"," -FSS Does not supply",null,null,null,null,null,"Desc","Payments","x Months","Rate","Invoice","Year","Rate","Invoice","Year"]
[null,null,"FIRE-LITE"," -FSS Does not supply",null,null,null,null,null,"Pay once a Year",1,12,55,{"$f":"+M25*$L25","v":660},{"$f":"+M25*$K25*$L25","v":660},60,{"$f":"+P25*$L25","v":720},{"$f":"+P25*$K25*$L25","v":720}]
[null,null,"GAMEWELL"," -FSS Does not supply"]
[null,null,"NOTIFIER"," -FSS Does not supply",null,null,null,null,null,"Pay twice a Year",2,6,56,{"$f":"+M27*$L27","v":336},{"$f":"+M27*$K27*$L27","v":672},61,{"$f":"+P27*$L27","v":366},{"$f":"+P27*$K27*$L27","v":732}]
[null,null,"SIMPLEX"," -FSS Does not supply"]
[null,null,null,null,null,null,null,null,null,"Pay Quarterly",4,3,58,{"$f":"+M29*$L29","v":174},{"$f":"+M29*$K29*$L29","v":696},63,{"$f":"+P29*$L29","v":189},{"$f":"+P29*$K29*$L29","v":756}]
[null,null,"Edwards/Vigilant"," -FSS YES","UTC"]
[null,null,"Silent Knight"," -FSS YES",null,null,null,null,null,"Pay each month",12,1,60,{"$f":"+M31*$L31","v":60},{"$f":"+M31*$K31*$L31","v":720},65,{"$f":"+P31*$L31","v":65},{"$f":"+P31*$K31*$L31","v":780}]
[]
[null,null,null,"BOWS & LOC",null,null,null,null,null,"POTS rate is $60 minimum per month",null,"or $660 per year"]
[null,null,null,"Dialer Units",null,null,null,null,null,"DSC rate is $65 minimum per month",null,"or $720 per year"]
[null,null,null,"Horns"]
[null,null,null,"Horn-Strobes",null,null,null,null,null,"POTS = Plain Old Telephone Service",null,"AKA Landline"]
[null,null,null,"Misc"]
[null,null,null,"Monitoring  EM24=Craig Popowcer",null,null,null,null,null,"DSC = Digital Service Cellular",null,"or Subscriber"]
[null,null,null,"Parts & Accessories"]
[null,null,null,"Power Supplies"]
[null,null,null,"Pull Stations"]
[null,null,null,"SK Addressable Devices"]
[null,null,null,"SK Other Devices"]
[null,null,null,"Smokes & Detectors"]
[null,null,null,"Strobes"]
[]
[null,"For the drop-downs to copy correctly to other columns "]
[null,null,"(i.e. to the right in the worksheet), use"]
[null,null,"relative column (without the $ sign) and"]
[null,null,"absolute row (with $) references like = Sheet2!B$1."]
[]
[null,"To  copy the dropdowns to other rows"]
[null,null,"(i.e. down to other cells in the column), then use"]
[null,null,"absolute column (with $) and"]
[null,null,"relative row (without $) references like = Sheet2!$B1."]

{"sheet":"Instructions","index":5,"n_rows":36,"n_cols":11,"rows_kept":36,"cut":false,"hidden":false,"merged":[]}
[null,"Ver 2017-Nov-07   18:07"]
[]
[]
[null,null,"Normally the database should remain minimised. However if you need to see the database:"]
[]
[]
[]
[]
[null,null,"A","Choose"]
[null,null,"B","then Click"]
[]
[]
[]
[]
[]
[]
[]
[]
[]
[]
[null,null,null,"in the pop-up"]
[null,null,"C","Click [OK]"]
[]
[]
[null,null,null,"to See the tabs"]
[null,null,null,"at the bottom of"]
[null,null,"D","the workbook"]
[null,null,null,"window"]
[]
[]
[]
[]
[]
[null,null,null,null,null,null,null,null,null,null,"This Page"]
[null,null,null,null,"Alarm","Sprinkler","Subcontractors",null,"Odds & Ends"]
[null,null,null,null,"Parts","Parts",null,"to FSS"]

{"sheet":"Sheet1","index":6,"n_rows":124,"n_cols":13,"rows_kept":124,"cut":false,"hidden":false,"merged":[]}
["F3 Paste"]
[]
[]
[null,null,"AFChemDesc","=ListWet!$F$7:$F$9",null,"AlmAddressSKhdg","=ListAlm!$AN$6"]
[null,null,"AFChemEtAl","=ListWet!$F$7:$H$9",null,"AlmDialersHdg","=ListAlm!$F$22"]
[null,null,"AFgalPrice","=ListWet!$H$7:$H$9",null,"AlmEstHornsHdg","=ListAlm!$N$20"]
[null,null,"AlmBowDesc","=ListAlm!$F$7:$F$14",null,"AlmEstHShdg","=ListAlm!$N$28"]
[null,null,"AlmBowEtAl","=ListAlm!$F$7:$H$14",null,"AlmEstPullHdg","=ListAlm!$N$50"]
[null,null,"AlmDAddressSKDesc","=ListAlm!$AN$8:$AN$32",null,"AlmHdgBows","=ListAlm!$F$5"]
[null,null,"AlmDAddressSKetAl","=ListAlm!$AN$8:$AQ$32",null,"AlmHdgPartAccessory","=ListAlm!$CG$6",null,"subsDesc","=ListSub!$E$7:$E$17",null,"AWPDay","=ListSub!$Z$7:$Z$26"]
[null,null,"AlmDDetectESTDesc","=ListAlm!$N$8:$N$15",null,"AlmHdgPullGeneric","=ListAlm!$BW$22",null,"subsEtAl","=ListSub!$E$7:$H$17",null,"AWPDescription","=ListSub!$Y$7:$Y$26"]
[null,null,"AlmDDetectESTetAl","=ListAlm!$N$8:$Q$15",null,"AlmHdgSSStobes","=ListAlm!$AX$59",null,"wetMiscPartsDesc","=Misc!$E$8:$E$64",null,"AWPHeight","=ListSub!$X$7:$X$26"]
[null,null,"AlmDDetectHKDesc","=ListAlm!$V$8:$V$11",null,"AlmHdgVSHornzTitle","=ListAlm!$BE$19",null,"wetMiscPartsEtAl","=Table2911",null,"AWPMonth","=ListSub!$AB$7:$AB$26"]
[null,null,"AlmDDetectHKetAl","=ListAlm!$V$8:$Y$11",null,"AlmHdgVSPullStnTitle","=ListAlm!$BE$50",null,null,null,null,"AWPperiod","=ListSub!$Z$6:$AB$6"]
[null,null,"AlmDDetectHWDesc","=ListAlm!$AF$8:$AF$20",null,"AlmHdgVSStrobezTitle","=ListAlm!$BE$58",null,null,null,null,"AWPWeek","=ListSub!$AA$7:$AA$26"]
[null,null,"AlmDDetectHWetAl","=Table37",null,"AlmHdgVSzMiscTitle","=ListAlm!$BE$67",null,null,null,null,"equipRent","=ListSub!$Y$7:$AC$26"]
[null,null,"AlmDDetectSKDesc","=ListAlm!$AN$41:$AN$42",null,"AlmHdgVSzOtherTitle","=ListAlm!$BE$79"]
[null,null,"AlmDDetectSKEtAl","=ListAlm!$AN$41:$AQ$42",null,"AlmHWBattHdg","=ListAlm!$AF$40"]
[null,null,"AlmDDetectSSDesc","=ListAlm!$AX$8:$AX$12",null,"AlmHWDetectSmokesHdg","=ListAlm!$AF$6"]
[null,null,"AlmDDetectSSetAl","=ListAlm!$AX$8:$BA$12",null,"AlmHWhornsHdg","=ListAlm!$AF$26"]
[null,null,"AlmDDetectVSDesc","=ListAlm!$BE$8:$BE$11",null,"AlmHWHornStrobezHdg","=ListAlm!$AF$32"]
[null,null,"AlmDDetectVSetAl","=ListAlm!$BE$8:$BH$11",null,"AlmPanelESThdg","=ListAlm!$BO$6"]
[null,null,"AlmDHornsESTDesc","=ListAlm!$N$22:$N$24",null,"AlmPanelHWhdg","=ListAlm!$BO$22"]
[null,null,"AlmDHornsESTetAl","=ListAlm!$N$22:$Q$24",null,"AlmPanelSKhdg","=ListAlm!$BO$29"]
[null,null,"AlmDHornsHKDesc","=ListAlm!$V$22:$V$24",null,"AlmPanelVShdg","=ListAlm!$BO$47"]
[null,null,"AlmDHornsHKetAl","=ListAlm!$V$22:$Y$24",null,"AlmSKBatterriesHdg","=ListAlm!$AN$64"]
[null,null,"AlmDHornsHWDesc","=ListAlm!$AF$28:$AF$29",null,"AlmSSHornsHdg","=ListAlm!$AX$19"]
[null,null,"AlmDHornsHWetAl","=ListAlm!$AF$28:$AI$29",null,"AlmSSHornStobesHdg","=ListAlm!$AX$28"]
[null,null,"AlmDHornsSKDesc","=ListAlm!$AN$51:$AN$52",null,"AlmSSMiscHdg","=ListAlm!$AX$75"]
[null,null,"AlmDHornsSKEtAl","=ListAlm!$AN$51:$AQ$52",null,"AlmVSBatteriesHdg","=ListAlm!$BE$37"]
[null,null,"AlmDHornsSSDesc","=ListAlm!$AX$21:$AX$22",null,"AlmVSDetectHdg","=ListAlm!$BE$6"]
[null,null,"AlmDHornsSSetAl","=ListAlm!$AX$21:$BA$22",null,"AlmVSHornStrobezHdg","=ListAlm!$BE$28"]
[null,null,"AlmDHornStrobeHKDesc","=ListAlm!$V$31:$V$33",null,"TitleAFChem","=ListWet!$F$5:$F$5"]
[null,null,"AlmDHornStrobeHKetAl","=ListAlm!$V$31:$Y$33",null,"TitleAlmFACP","=ListAlm!$BO$5"]
[null,null,"AlmDHornStrobeHWDesc","=ListAlm!$AF$34:$AF$35",null,"TitleHochikiDevices","=ListAlm!$V$5"]
[null,null,"AlmDHornStrobeHWetAl","=ListAlm!$AF$34:$AI$35",null,"TitleAlmHoneywell","=ListAlm!$AF$5"]
[null,null,"AlmDHornStrobeSKDesc","=ListAlm!$AN$58:$AN$59",null,"TitleAlmSSensor","=ListAlm!$AX$5"]
[null,null,"AlmDHornStrobeSKEtAl","=ListAlm!$AN$58:$AQ$59",null,"TitleEstDevices","=ListAlm!$N$5"]
[null,null,"AlmDHornStrobeSSDesc","=ListAlm!$AX$30:$AX$41",null,"TitleSilentKnightDevices","=ListAlm!$AN$5"]
[null,null,"AlmDHornStrobeSSetAl","=ListAlm!$AX$30:$BA$41",null,"TitleVigilantDevices","=ListAlm!$BE$5"]
[null,null,"AlmDHornStrobeVSDesc","=ListAlm!$BE$30:$BE$31"]
[null,null,"AlmDHornStrobeVSetAl","=ListAlm!$BE$30:$BH$31"]
[null,null,"AlmDHornsVSDesc","=ListAlm!$BE$21:$BE$23"]
[null,null,"AlmDHornsVSetAl","=ListAlm!$BE$21:$BH$23"]
[null,null,"AlmDialerDesc","=ListAlm!$F$24:$F$33"]
[null,null,"AlmDialerEtAl","=ListAlm!$F$24:$I$33"]
[null,null,"AlmDMiscSKDesc","=ListAlm!$AN$106:$AN$107"]
[null,null,"AlmDMiscSKetAl","=ListAlm!$AN$106:$AQ$107"]
[null,null,"AlmDMiscVSDesc","=ListAlm!$BE$69:$BE$73"]
[null,null,"AlmDMiscVSetAl","=ListAlm!$BE$69:$BH$73"]
[null,null,"AlmDOtherHKDesc","=ListAlm!$V$72:$V$73"]
[null,null,"AlmDOtherHKetAl","=ListAlm!$V$72:$Y$73"]
[null,null,"AlmDOtherHWDesc","=ListAlm!$AF$66:$AF$67"]
[null,null,"AlmDOtherHWetAL","=ListAlm!$AF$66:$AI$67"]
[null,null,"AlmDOtherSKDesc","=ListAlm!$AN$98:$AN$99"]
[null,null,"AlmDOtherSKEtAl","=ListAlm!$AN$98:$AQ$99"]
[null,null,"AlmDOtherVSDesc","=ListAlm!$BE$81:$BE$84"]
[null,null,"AlmDOtherVSetAl","=ListAlm!$BE$81:$BH$84"]
[null,null,"AlmDPowerHWDesc","=ListAlm!$AF$42:$AF$45"]
[null,null,"AlmDPowerHWetAl","=ListAlm!$AF$42:$AI$45"]
[null,null,"AlmDPowerVSDesc","=ListAlm!$BE$39:$BE$43"]
[null,null,"AlmDPowerVSetAl","=ListAlm!$BE$39:$BH$43"]
[null,null,"AlmDPsBattSKDesc","=ListAlm!$AN$66:$AN$69"]
[null,null,"AlmDPsBattSKetAl","=ListAlm!$AN$66:$AQ$69"]
[null,null,"AlmDPullESTDesc","=ListAlm!$N$52:$N$55"]
[null,null,"AlmDPullESTetAl","=ListAlm!$N$52:$Q$55"]
[null,null,"AlmDPullSKDesc","=ListAlm!$AN$78:$AN$82"]
[null,null,"AlmDPullSKEtAl","=ListAlm!$AN$78:$AQ$82"]
[null,null,"AlmDPullVSDesc","=ListAlm!$BE$52:$BE$53"]
[null,null,"AlmDPullVSetAl","=ListAlm!$BE$52:$BH$53"]
[null,null,"AlmDStrobeESTDesc","=ListAlm!$N$62:$N$63"]
[null,null,"AlmDStrobeESTetAl","=ListAlm!$N$62:$Q$63"]
[null,null,"AlmDStrobeSKDesc","=ListAlm!$AN$90:$AN$91"]
[null,null,"AlmDStrobeSKetAl","=ListAlm!$AN$90:$AQ$91"]
[null,null,"AlmDStrobeSSDesc","=ListAlm!$AX$61:$AX$67"]
[null,null,"AlmDStrobeSSetAl","=ListAlm!$AX$61:$BA$67"]
[null,null,"AlmDStrobeVSDesc","=ListAlm!$BE$60:$BE$62"]
[null,null,"AlmDStrobeVSetAl","=ListAlm!$BE$60:$BH$62"]
[null,null,"AlmDzMiscESTDesc","=ListAlm!$N$71:$N$72"]
[null,null,"AlmDzMiscESTetAl","=ListAlm!$N$71:$Q$72"]
[null,null,"AlmDzMiscSSDesc","=ListAlm!$AX$77:$AX$79"]
[null,null,"AlmDzMiscSSetAl","=ListAlm!$AX$77:$BA$79"]
[null,null,"AlmHStrobeESTDesc","=ListAlm!$N$30:$N$36"]
[null,null,"AlmHStrobeESTetAl","=ListAlm!$N$30:$Q$36"]
[null,null,"AlmMonitorDesc","=ListSub!$M$7:$M$16"]
[null,null,"AlmMonitorEtAl","=ListSub!$M$7:$R$16"]
[null,null,"AlmPanelESTdesc","=ListAlm!$BO$8:$BO$18"]
[null,null,"AlmPanelESTetAl","=ListAlm!$BO$8:$BR$18"]
[null,null,"AlmPanellHWdesc","=ListAlm!$BO$24:$BO$25"]
[null,null,"AlmPanellHWellEtAl","=ListAlm!$BO$24:$BR$25"]
[null,null,"AlmPanelSKdesc","=ListAlm!$BO$31:$BO$43"]
[null,null,"AlmPanelSKetAl","=ListAlm!$BO$31:$BR$43"]
[null,null,"AlmPanelVigDesc","=ListAlm!$BO$49:$BO$66"]
[null,null,"AlmPanelVigEtAl","=ListAlm!$BO$49:$BR$66"]
[null,null,"AlmPartsAccessoriesDesc","=ListAlm!$CG$8:$CG$31"]
[null,null,"AlmPartsAccessoriesEtAl","=ListAlm!$CG$8:$CJ$31"]
[null,null,"AlmPSupplyDesc","=ListAlm!$BW$7:$BW$13"]
[null,null,"AlmPSupplyEtAl","=ListAlm!$BW$7:$BZ$13"]
[null,null,"AlmPullStnDesc","=ListAlm!$BW$24:$BW$25"]
[null,null,"AlmPullStnEtAl","=ListAlm!$BW$24:$BZ$25"]
[null,null,"AWPDay","=ListSub!$Y$7:$Y$26"]
[null,null,"AWPDescription","=ListSub!$X$7:$X$26"]
[null,null,"AWPHeight","=ListSub!$W$7:$W$26"]
[null,null,"AWPMonth","=ListSub!$AA$7:$AA$26"]
[null,null,"AWPperiod","=ListSub!$Y$6:$AA$6"]
[null,null,"AWPWeek","=ListSub!$Z$7:$Z$26"]
[null,null,"CategoryWetLst","=ListWet!$F$13:$F$30"]
[null,null,"ElbowMaterialType","=ListWet!$U$6:$Y$6"]
[null,null,"equipRent","=ListSub!$X$7:$AB$26"]
[null,null,"HangersEtAl","=ListWet!$AC$7:$AF$36"]
[null,null,"HangersList","=ListWet!$AC$7:$AC$36"]
[null,null,"mechTeezEtAl","=ListWet!$AZ$7:$BB$21"]
[null,null,"pipeDiam","=ListWet!$BG$8:$BG$17"]
[null,null,"pipeEtAl","=ListWet!$BG$8:$BM$17"]
[null,null,"pipeType","=ListWet!$BH$7:$BM$7"]
[null,null,"PSbatt","=ListAlm!$BW$5"]
[null,null,"sprinkHeadsAll","=ListWet!$AK$7:$AM$63"]
[null,null,"sprinkHeadsList","=ListWet!$AK$7:$AK$63"]
[null,null,"sprinkWrenchAll","=ListWet!$AS$7:$AU$14"]
[null,null,"sprinkWrenchList","=ListWet!$AS$7:$AS$14"]
[null,null,"subsDesc","=ListSub!$E$7:$E$17"]
[null,null,"subsEtAl","=ListSub!$E$7:$H$17"]
[null,null,"tblDryRiser","=ListWet!$L$7:$P$19"]
[null,null,"tblRiserDryComponents","=ListWet!$L$7:$P$19"]

{"sheet":"Notes","index":7,"n_rows":23,"n_cols":4,"rows_kept":23,"cut":false,"hidden":false,"merged":[]}
[]
[]
[]
[null,null,null,"United Technologies Corp BRANDS:"]
[null,null,null,"UTC owns Edwards which owns FireShield"]
[null,null,null,"UTC owns Edwards which owns Vigilant which owns Genesis"]
[null,null,null,"UTC owns Edwards which owns Walter Kidde"]
[null,null,null,"UTC owns InterLogic assets"]
[null,null,null,"UTC owns Otis Elevator, Pratt & Whitney"]
[]
[null,null,null,"ESL made by Fyrnetics Ltd. HK & CN"]
[]
[]
[null,null,null,"FCI = Fire Control Instruments aka Honeywell GW-FCI"]
[null,null,null,"GW = Gamewell aka Honeywell GW-FCI"]
[null,null,null,"SD = Hochiki Compatible with Silent Kinight"]
[null,null,null,"SK = Silent Knight aka Honeywell GW-FCI"]
[null,null,null,"SS = System Sensor aka Honeywell"]
[null,null,null,"UTC = Kidde-Fenwall Controls=MyEddie"]
[null,null,null,"UTC = United Technologies Corp aka Goodrich, Otis, Carrier"]
[null,null,null,"UTC = United Technologies Corp aka Kidde(Czech), Chubb, Vigilant, Edwards"]
[null,null,null,"UTC = used to be United Aircraft Corp. owns  Pratt & Whitney"]
[null,null,null,"VS = Vigilant ak GE aka UTC"]